Workbook

Sheet Menu

Sheet Cadastro
A1: CodigoInterno | B1: CodigoProduto | C1: NomeProduto | D1: LinhaProduto | E1: EstoqueMinimo | F1: Estoquemaximo
A2: 120 | B2: PRD00022 | C2: AGUA OX NC 20VOL 1L | D2: TINTURAS | E2: 2 | F2: 50
A3: 124 | B3: PRD00026 | C3: AGUA OX NC 30V MATIZAD 1L | D3: TINTURAS | E3: 2 | F3: 15
A4: 121 | B4: PRD00023 | C4: AGUA OX NC 30VOL 1L | D4: TINTURAS | E4: 2 | F4: 15
A5: 125 | B5: PRD00027 | C5: AGUA OX NC 40V MATIZAD 1L | D5: TINTURAS | E5: 2 | F5: 15
A6: 122 | B6: PRD00024 | C6: AGUA OX NC 40VOL 1L | D6: TINTURAS | E6: 2 | F6: 15
A7: 301 | B7: PRD00204 | C7: BALM CONTROLTOX PR 1L | D7: SHOCK3 | E7: 2 | F7: 15
A8: 305 | B8: PRD00248 | C8: BALS COND DAY BY DAY PROF SER 2,5L | D8: DAYBYDAY | E8: 2 | F8: 15
A9: 113 | B9: PRD00014 | C9: BLINDAGEM NANO REDUT PR 1L | D9: SHOCK3 | E9: 2 | F9: 15
A10: 252 | B10: PRD00154 | C10: BRUMA STYLING SP LUM 240ML | D10: LUMMEM | E10: 2 | F10: 15
A11: 300 | B11: PRD00203 | C11: COMP DISC CONTROLTOX PR 1KG | D11: SHOCK3 | E11: 2 | F11: 15
A12: 289 | B12: PRD00191 | C12: COMP FINAL SHOCK3 60G | D12: SHOCK3 | E12: 2 | F12: 15
A13: 224 | B13: PRD00126 | C13: COMP HID KAIKEN UNI 500ML | D13: KAIKEN | E13: 2 | F13: 15
A14: 226 | B14: PRD00128 | C14: COMP HID KAIKEN UNIQUE 2KG | D14: KAIKEN | E14: 2 | F14: 15
A15: 313 | B15: PRD00256 | C15: COMP REC MANTEIG KARITE ET 1KG | D15: ELEMENTOS DA TERRA | E15: 2 | F15: 15
A16: 314 | B16: PRD00257 | C16: COMP REC OLEO DE ARGAN ET 1KG | D16: ELEMENTOS DA TERRA | E16: 2 | F16: 15
A17: 315 | B17: PRD00258 | C17: COMP REC OLEO DE OLIVA ET 1KG | D17: ELEMENTOS DA TERRA | E17: 2 | F17: 15
A18: 316 | B18: PRD00259 | C18: COMP REC OLEO DE TUTANO ET 1KG | D18: ELEMENTOS DA TERRA | E18: 2 | F18: 15
A19: 317 | B19: PRD00260 | C19: COMP REC OLEO MACADAMIA ET 1KG | D19: ELEMENTOS DA TERRA | E19: 2 | F19: 15
A20: 318 | B20: PRD00261 | C20: COMP REC QUERATINA ET 1KG | D20: ELEMENTOS DA TERRA | E20: 2 | F20: 15
A21: 270 | B21: PRD00172 | C21: COMPOSTO OL OJON M PLU 1L | D21: MAISON | E21: 2 | F21: 15
A22: 259 | B22: PRD00161 | C22: COND ALECRIM E MENTA M 5L | D22: MAISON | E22: 2 | F22: 15
A23: 260 | B23: PRD00162 | C23: COND BRILHO PEROLA E MAIS 5L | D23: MAISON | E23: 2 | F23: 15
A24: 322 | B24: PRD00265 | C24: COND DAM LARANJ ET 250ML | D24: ELEMENTOS DA TERRA | E24: 2 | F24: 15
A25: 261 | B25: PRD00163 | C25: COND ERVA DOCE MAISON 5L | D25: MAISON | E25: 2 | F25: 15
A26: 334 | B26: PRD00277 | C26: COND EXT MANDIOC ET 250ML | D26: ELEMENTOS DA TERRA | E26: 2 | F26: 15
A27: 339 | B27: PRD00282 | C27: COND MACADÂMIA SOS 1LT ET | D27: ELEMENTOS DA TERRA | E27: 2 | F27: 15
A28: 262 | B28: PRD00164 | C28: COND MANT KARITE MAISON 5L | D28: MAISON | E28: 2 | F28: 15
A29: 263 | B29: PRD00165 | C29: COND MARACUJA MEL MAISO 5L | D29: MAISON | E29: 2 | F29: 15
A30: 328 | B30: PRD00271 | C30: COND OLEO DE ARGAN ET 250ML | D30: ELEMENTOS DA TERRA | E30: 2 | F30: 15
A31: 331 | B31: PRD00274 | C31: COND OLEO DE COCO ET 250ML | D31: ELEMENTOS DA TERRA | E31: 2 | F31: 15
A32: 325 | B32: PRD00268 | C32: COND PHYS BAUN ET 250ML | D32: ELEMENTOS DA TERRA | E32: 2 | F32: 15
A33: 338 | B33: PRD00281 | C33: COND QUERATINA SOS 1LT ET | D33: ELEMENTOS DA TERRA | E33: 2 | F33: 15
A34: 126 | B34: PRD00028 | C34: CORRETOR AMARELO NC 60G | D34: TINTURAS | E34: 2 | F34: 15
A35: 127 | B35: PRD00029 | C35: CORRETOR AZUL NC 60G | D35: TINTURAS | E35: 2 | F35: 15
A36: 128 | B36: PRD00030 | C36: CORRETOR CINZA | D36: TINTURAS | E36: 2 | F36: 15
A37: 129 | B37: PRD00031 | C37: CORRETOR VERMELHO NC 60G | D37: TINTURAS | E37: 2 | F37: 15
A38: 355 | B38: PRD00298 | C38: CR ALISANTE SODIO OSMIUM 1KG | D38: OSMIIUM | E38: 2 | F38: 15
A39: 235 | B39: PRD00137 | C39: CR ALISANTE SODIO OSMIUM 2KG | D39: OSMIIUM | E39: 2 | F39: 15
A40: 236 | B40: PRD00138 | C40: CR BASE CALCIO OSMIUM 1KG | D40: OSMIIUM | E40: 2 | F40: 15
A41: 237 | B41: PRD00139 | C41: CR BASE CALCIO OSMIUM 2KG | D41: OSMIIUM | E41: 2 | F41: 15
A42: 238 | B42: PRD00140 | C42: CR HID E NEUT OSM FLEX 1KG | D42: OSMIIUM | E42: 2 | F42: 15
A43: 239 | B43: PRD00141 | C43: CR PROTETOR OSM FLEX 100G | D43: OSMIIUM | E43: 2 | F43: 15
A44: 130 | B44: PRD00032 | C44: DESC NC AZUL 500G | D44: TINTURAS | E44: 2 | F44: 15
A45: 131 | B45: PRD00033 | C45: DESC NC BRANCO 500G | D45: TINTURAS | E45: 2 | F45: 15
A46: 123 | B46: PRD00025 | C46: EMULSAO NC 8VOL 1L | D46: TINTURAS | E46: 2 | F46: 15
A47: 271 | B47: PRD00173 | C47: FINAL OL OJON M PLU 500ML | D47: MAISON | E47: 2 | F47: 15
A48: 281 | B48: PRD00183 | C48: FLUIDO FINA MONOI PR 500ML | D48: MONOI | E48: 2 | F48: 15
A49: 244 | B49: PRD00146 | C49: FLUIDO FIX CACHO OSM 300ML | D49: OSMIIUM | E49: 2 | F49: 15
A50: 248 | B50: PRD00150 | C50: FLUIDO FIX CACHO OSM 500ML | D50: OSMIIUM | E50: 2 | F50: 15
A51: 253 | B51: PRD00155 | C51: FLUIDO REPAR LUMMEM 60ML | D51: LUMMEM | E51: 2 | F51: 15
A52: 245 | B52: PRD00147 | C52: GLOSS MOD CACHOS OSM 300ML | D52: OSMIIUM | E52: 2 | F52: 15
A53: 249 | B53: PRD00151 | C53: GLOSS MOD CACHOS OSM 500ML | D53: OSMIIUM | E53: 2 | F53: 15
A54: 111 | B54: PRD00012 | C54: GOLDEN MASK NUTRAHAI 200GR | D54: GOLDEN MASK | E54: 2 | F54: 15
A55: 254 | B55: PRD00156 | C55: HAIR SPRAY LUMMEN 400ML | D55: LUMMEM | E55: 2 | F55: 15
A56: 356 | B56: PRD00299 | C56: HENNA CASTANHO CLARO CORALY | D56: CORALY | E56: 2 | F56: 15
A57: 343 | B57: PRD00286 | C57: HENNA CASTANHO ESCURO CORALY | D57: CORALY | E57: 2 | F57: 15
A58: 354 | B58: PRD00297 | C58: HENNA CASTANHO MÉDIO CORALY | D58: CORALY | E58: 2 | F58: 15
A59: 352 | B59: PRD00295 | C59: HENNA LOURO CLARO CORALY | D59: CORALY | E59: 2 | F59: 15
A60: 351 | B60: PRD00294 | C60: HENNA MARROM CHOCOLATE CORALY | D60: CORALY | E60: 2 | F60: 15
A61: 353 | B61: PRD00296 | C61: HENNA MARROM CLARO CORALY | D61: CORALY | E61: 2 | F61: 15
A62: 342 | B62: PRD00285 | C62: HENNA PRETO CORALY | D62: CORALY | E62: 2 | F62: 15
A63: 101 | B63: PRD00001 | C63: KERATIN BALM CROMAT 500ML | D63: CROMATIC | E63: 2 | F63: 15
A64: 102 | B64: PRD00002 | C64: KERATIN SEALING CROMATIC 500ML | D64: CROMATIC | E64: 2 | F64: 15
A65: 103 | B65: PRD00003 | C65: KERATIN SH CROMATIC 500ML | D65: CROMATIC | E65: 2 | F65: 15
A66: 112 | B66: PRD00013 | C66: KIT FIBER VIT NH | D66: FIBER VIT | E66: 2 | F66: 15
A67: 290 | B67: PRD00192 | C67: KIT SHOCK3 PR 120ML | D67: SHOCK3 | E67: 2 | F67: 15
A68: 320 | B68: PRD00263 | C68: KIT SMART CALCIO OSMIUM | D68: OSMIIUM | E68: 2 | F68: 15
A69: 132 | B69: PRD00034 | C69: KIT ULTRAPLEX NUTRA COLOR | D69: ULTRAPLEX | E69: 2 | F69: 15
A70: 319 | B70: PRD00262 | C70: LEAVE IN DEFRIZ LUMMEM 500ML | D70: LUMMEM | E70: 2 | F70: 15
A71: 240 | B71: PRD00142 | C71: LIQUIDO ATIVADOR OSMIUM 1L | D71: OSMIIUM | E71: 2 | F71: 15
A72: 358 | B72: PRD00302 | C72: LIQUIDO ATIVADOR OSMIUM 500 | D72: OSMIUM | E72: 2 | F72: 15
A73: 273 | B73: PRD00175 | C73: MASC COND CAB COL EFFE 1L | D73: EFFECTUS | E73: 2 | F73: 15
A74: 246 | B74: PRD00148 | C74: MASC COND CACHOS OSM 300ML | D74: OSMIIUM | E74: 2 | F74: 15
A75: 250 | B75: PRD00152 | C75: MASC COND CACHOS OSM 500ML | D75: OSMIIUM | E75: 2 | F75: 15
A76: 109 | B76: PRD00009 | C76: MASC COND DAYBYDAY ABAC 500G | D76: DAYBYDAY | E76: 2 | F76: 15
A77: 274 | B77: PRD00176 | C77: MASC COND EFFECTUS 150ML | D77: EFFECTUS | E77: 2 | F77: 15
A78: 275 | B78: PRD00177 | C78: MASC COND EFFECTUS 500ML | D78: EFFECTUS | E78: 2 | F78: 15
A79: 311 | B79: PRD00254 | C79: MASC COND MANUT CROM 300ML | D79: CROMATIC | E79: 2 | F79: 15
A80: 335 | B80: PRD00278 | C80: MASC EXT MANDIOC ET 500G | D80: ELEMENTOS DA TERRA | E80: 2 | F80: 15
A81: 337 | B81: PRD00280 | C81: MASC GREEN THERAPY OJON 500 ML | D81: OJON | E81: 2 | F81: 15
A82: 329 | B82: PRD00272 | C82: MASC HID OLEO ARGAN ET 500G | D82: ELEMENTOS DA TERRA | E82: 2 | F82: 15
A83: 307 | B83: PRD00250 | C83: MASC KAIKEN ONIX ARGILA VERDE 1LT | D83: KAIKEN | E83: 2 | F83: 15
A84: 309 | B84: PRD00252 | C84: MASC KAIKEN ONIX ÓLEO DE AVELÃ 1LT | D84: KAIKEN | E84: 2 | F84: 15
A85: 308 | B85: PRD00251 | C85: MASC KAIKEN ONIX TUTANO E CENOURA 1LT | D85: KAIKEN | E85: 2 | F85: 15
A86: 332 | B86: PRD00275 | C86: MASC OLEO DE COCO ET 500G | D86: ELEMENTOS DA TERRA | E86: 2 | F86: 15
A87: 105 | B87: PRD00005 | C87: MASC REG DAYBYDAY CAMOM 500G | D87: DAYBYDAY | E87: 2 | F87: 15
A88: 326 | B88: PRD00269 | C88: MASC REST PHYS BAUN ET 500G | D88: ELEMENTOS DA TERRA | E88: 2 | F88: 15
A89: 323 | B89: PRD00266 | C89: MASC REVIT DAM LANRANJ ET 500G | D89: ELEMENTOS DA TERRA | E89: 2 | F89: 15
A90: 107 | B90: PRD00007 | C90: MASC REVIT DAYBYDAY CEN 500G | D90: DAYBYDAY | E90: 2 | F90: 15
A91: 357 | B91: PRD00301 | C91: MASCARA MATIZADORA NC 300ML | D91: MATIZADORES | E91: 2 | F91: 15
A92: 115 | B92: PRD00016 | C92: MASCARA TONALIZANTE ABSOLUT BLACK 260G | D92: TONALIZANTE | E92: 2 | F92: 15
A93: 116 | B93: PRD00017 | C93: MASCARA TONALIZANTE GRAND MARSALA 260G | D93: TONALIZANTE | E93: 2 | F93: 15
A94: 117 | B94: PRD00018 | C94: MASCARA TONALIZANTE LUX BROWN 260G | D94: TONALIZANTE | E94: 2 | F94: 15
A95: 118 | B95: PRD00019 | C95: MASCARA TONALIZANTE ROYAL RED 260G | D95: TONALIZANTE | E95: 2 | F95: 15
A96: 286 | B96: PRD00188 | C96: MONOI TAHITI PR 60ML | D96: MONOI | E96: 2 | F96: 15
A97: 255 | B97: PRD00157 | C97: NUTRA BRILHO SP LUMM 240ML | D97: LUMMEM | E97: 2 | F97: 15
A98: 279 | B98: PRD00181 | C98: OLEO ARGAN PRO REP 60ML | D98: PRO REPAIR | E98: 2 | F98: 15
A99: 280 | B99: PRD00182 | C99: PH CONTROL PROREPAIR 500ML | D99: PRO REPAIR | E99: 2 | F99: 15
A100: 256 | B100: PRD00158 | C100: POMADA MODELAD LUMMEM 100G | D100: LUMMEM | E100: 2 | F100: 15
A101: 258 | B101: PRD00160 | C101: PRIMER CAPILAR LUMM 120ML | D101: LUMMEM | E101: 2 | F101: 15
A102: 257 | B102: PRD00159 | C102: PRIMER CAPILAR LUMM 250ML | D102: LUMMEM | E102: 2 | F102: 15
A103: 312 | B103: PRD00255 | C103: RECOND FINAL CROMAT 300ML | D103: CROMATIC | E103: 2 | F103: 15
A104: 303 | B104: PRD00246 | C104: REDUTOR DE VOLUME MONOI PR 300ML | D104: MONOI | E104: 2 | F104: 15
A105: 282 | B105: PRD00184 | C105: REDUTOR VOLUME MONOI PR 1L | D105: MONOI | E105: 2 | F105: 15
A106: 283 | B106: PRD00185 | C106: REDUTOR VOLUME MONOI PR 500ML | D106: MONOI | E106: 2 | F106: 15
A107: 341 | B107: PRD00284 | C107: REGEN INT 4X1 ET 15ML | D107: ELEMENTOS DA TERRA | E107: 2 | F107: 15
A108: 291 | B108: PRD00193 | C108: REGEN NUT SHOCK3 OMEG 500G | D108: SHOCK3 | E108: 2 | F108: 15
A109: 292 | B109: PRD00194 | C109: REGEN SHOCK3 OL COCO 300ML | D109: SHOCK3 | E109: 2 | F109: 15
A110: 293 | B110: PRD00195 | C110: REGENER SHOCK3 P REP 1L | D110: SHOCK3 | E110: 2 | F110: 15
A111: 294 | B111: PRD00196 | C111: REGENER SHOCK3 P REP 300ML | D111: SHOCK3 | E111: 2 | F111: 15
A112: 295 | B112: PRD00197 | C112: REGENER SHOCK3 P REP 500ML | D112: SHOCK3 | E112: 2 | F112: 15
A113: 241 | B113: PRD00143 | C113: REGULADOR DE FORCA OSMIUM 1KG | D113: OSMIIUM | E113: 2 | F113: 15
A114: 287 | B114: PRD00189 | C114: REHIDRATANTE MONOI PR 500ML | D114: MONOI | E114: 2 | F114: 15
A115: 264 | B115: PRD00166 | C115: SH ALECRIM E MENTA MAIS 5L | D115: MAISON | E115: 2 | F115: 15
A116: 288 | B116: PRD00190 | C116: SH ALTA HID MONOI PR 500ML | D116: MONOI | E116: 2 | F116: 15
A117: 304 | B117: PRD00247 | C117: SH BRILHO PEROLA MAIS 2,5L | D117: MAISON | E117: 2 | F117: 15
A118: 265 | B118: PRD00167 | C118: SH BRILHO PEROLA MAIS 5L | D118: MAISON | E118: 2 | F118: 15
A119: 276 | B119: PRD00178 | C119: SH CAB TIN EFFECTUS 150ML | D119: EFFECTUS | E119: 2 | F119: 15
A120: 277 | B120: PRD00179 | C120: SH CAB TIN EFFECTUS 1L | D120: EFFECTUS | E120: 2 | F120: 15
A121: 278 | B121: PRD00180 | C121: SH CAB TIN EFFECTUS 500ML | D121: EFFECTUS | E121: 2 | F121: 15
A122: 247 | B122: PRD00149 | C122: SH CACHOS OSMIUM 300ML | D122: OSMIIUM | E122: 2 | F122: 15
A123: 251 | B123: PRD00153 | C123: SH CACHOS OSMIUM 500ML | D123: OSMIIUM | E123: 2 | F123: 15
A124: 321 | B124: PRD00264 | C124: SH DAM LARANJ ET 250ML | D124: ELEMENTOS DA TERRA | E124: 2 | F124: 15
A125: 108 | B125: PRD00008 | C125: SH DAYBYDAY ABAC 500ML | D125: DAYBYDAY | E125: 2 | F125: 15
A126: 104 | B126: PRD00004 | C126: SH DAYBYDAY CAMOMILA 500ML | D126: DAYBYDAY | E126: 2 | F126: 15
A127: 106 | B127: PRD00006 | C127: SH DAYBYDAY CEN 500ML | D127: DAYBYDAY | E127: 2 | F127: 15
A128: 302 | B128: PRD00208 | C128: SH DAYBYDAY CEN 500ML | D128: DAYBYDAY | E128: 2 | F128: 15
A129: 110 | B129: PRD00010 | C129: SH DAYBYDAY PROF SERV 2,5L | D129: DAYBYDAY | E129: 2 | F129: 15
A130: 284 | B130: PRD00186 | C130: SH DEEP COLD MONOI PR 1L | D130: MONOI | E130: 2 | F130: 15
A131: 285 | B131: PRD00187 | C131: SH DEEP COLD MONOI PR 500ML | D131: MONOI | E131: 2 | F131: 15
A132: 266 | B132: PRD00168 | C132: SH ERVA DOCE M SEM SAL 5L | D132: MAISON | E132: 2 | F132: 15
A133: 267 | B133: PRD00169 | C133: SH ERVA DOCE MAISON 5L | D133: MAISON | E133: 2 | F133: 15
A134: 333 | B134: PRD00276 | C134: SH EXT MANDIOC ET 250ML | D134: ELEMENTOS DA TERRA | E134: 2 | F134: 15
A135: 336 | B135: PRD00279 | C135: SH GREEN THERAPY OJON 500 ML | D135: OJON | E135: 2 | F135: 15
A136: 242 | B136: PRD00144 | C136: SH INDICADOR OSMIUM FL 1L | D136: OSMIIUM | E136: 2 | F136: 15
A137: 306 | B137: PRD00249 | C137: SH KAIKEN ONIX 1LT | D137: KAIKEN | E137: 2 | F137: 15
A138: 227 | B138: PRD00129 | C138: SH KAIKEN UNIQUE 1L | D138: KAIKEN | E138: 2 | F138: 15
A139: 225 | B139: PRD00127 | C139: SH KAIKEN UNIQUE 500ML | D139: KAIKEN | E139: 2 | F139: 15
A140: 268 | B140: PRD00170 | C140: SH MANT KARITE MAISON 5L | D140: MAISON | E140: 2 | F140: 15
A141: 310 | B141: PRD00253 | C141: SH MARACUJA E MEL MAISON 2,5L | D141: MAISON | E141: 2 | F141: 15
A142: 269 | B142: PRD00171 | C142: SH MARACUJA E MEL MAISON 5L | D142: MAISON | E142: 2 | F142: 15
A143: 119 | B143: PRD00020 | C143: SH MATIZADOR NC 300ML | D143: MATIZADORES | E143: 2 | F143: 15
A144: 327 | B144: PRD00270 | C144: SH OLEO DE ARGAN ET 250ML | D144: ELEMENTOS DA TERRA | E144: 2 | F144: 15
A145: 330 | B145: PRD00273 | C145: SH OLEO DE COCO ET 250ML | D145: ELEMENTOS DA TERRA | E145: 2 | F145: 15
A146: 324 | B146: PRD00267 | C146: SH PHYS BAUN ET 250ML | D146: ELEMENTOS DA TERRA | E146: 2 | F146: 15
A147: 272 | B147: PRD00174 | C147: SH REPARA OL OJON M PLU 1L | D147: MAISON | E147: 2 | F147: 15
A148: 340 | B148: PRD00283 | C148: SH REVITALIZANTE GREEN THERAPY 1LT | D148: OUTROS | E148: 2 | F148: 15
A149: 296 | B149: PRD00198 | C149: SH SHOCK3 OL COCO PR 300ML | D149: SHOCK3 | E149: 2 | F149: 15
A150: 297 | B150: PRD00199 | C150: SH SHOCK3 PRO REPAIR 1L | D150: SHOCK3 | E150: 2 | F150: 15
A151: 298 | B151: PRD00200 | C151: SH SHOCK3 PRO REPAIR 300ML | D151: SHOCK3 | E151: 2 | F151: 15
A152: 299 | B152: PRD00201 | C152: SH SHOCK3 PRO REPAIR 500ML | D152: SHOCK3 | E152: 2 | F152: 15
A153: 114 | B153: PRD00015 | C153: SH ULTRA GLOSS PR 1L | D153: SHOCK3 | E153: 2 | F153: 15
A154: 243 | B154: PRD00145 | C154: SOS ADVANCED OS FLEX 300ML | D154: OSMIIUM | E154: 2 | F154: 15
A155: 228 | B155: PRD00130 | C155: SOS BRILHO SUPREMO NH 1KG | D155: SOS | E155: 2 | F155: 15
A156: 229 | B156: PRD00131 | C156: SOS EQUILIBRIO ABS NH 1KG | D156: SOS | E156: 2 | F156: 15
A157: 230 | B157: PRD00132 | C157: SOS NUTRICAO INTEN NH 1KG | D157: SOS | E157: 2 | F157: 15
A158: 231 | B158: PRD00133 | C158: SOS PLAST CAPILAR 15ML 2 PARES | D158: SOS | E158: 2 | F158: 15
A159: 233 | B159: PRD00135 | C159: SOS PLAST CAPILAR 15ML 24UN | D159: SOS | E159: 2 | F159: 15
A160: 232 | B160: PRD00134 | C160: SOS PLAST CAPILAR 250ML 2UN | D160: SOS | E160: 2 | F160: 15
A161: 234 | B161: PRD00136 | C161: SOS ULTR VITAMINADO NH 2KG | D161: SOS | E161: 2 | F161: 15
A162: 350 | B162: PRD00293 | C162: SPORTELLI - MÁSCARA ÓLEO DE OJON E QUERATINA 1L | D162: N.APLICA | E162: 2 | F162: 15
A163: 349 | B163: PRD00292 | C163: SPORTELLI - MÁSCARA ÓLEO DE OJON E QUERATINA 300ML | D163: N.APLICA | E163: 2 | F163: 15
A164: 344 | B164: PRD00287 | C164: SPORTELLI - SHAMPOO ÓLEO DE OJON E QUERATINA 1L | D164: N.APLICA | E164: 2 | F164: 15
A165: 348 | B165: PRD00291 | C165: SPORTELLI - SHAMPOO ÓLEO DE OJON E QUERATINA 300ML | D165: N.APLICA | E165: 2 | F165: 15
A166: 345 | B166: PRD00288 | C166: SPORTELLI FINALIZADOR LEAVE-IN MULTIFUNCIONAL 150ML | D166: N.APLICA | E166: 2 | F166: 15
A167: 347 | B167: PRD00290 | C167: SPORTELLI LEAVE-IN - ÓLEO DE OJON E QUERATINA 300ML | D167: N.APLICA | E167: 2 | F167: 15
A168: 346 | B168: PRD00289 | C168: SPORTELLI LEAVE-IN - ÓLEO DE OJON E QUERATINA 500ML | D168: N.APLICA | E168: 2 | F168: 15
A169: 133 | B169: PRD00035 | C169: T NC 0.00 INTENS CLAREAMEN 60G | D169: TINTURAS | E169: 2 | F169: 15
A170: 134 | B170: PRD00036 | C170: T NC 1.0 PRETO ESSENCE 60G | D170: TINTURAS | E170: 2 | F170: 15
A171: 135 | B171: PRD00037 | C171: T NC 10.0 L CLARIS 60G | D171: TINTURAS | E171: 2 | F171: 15
A172: 136 | B172: PRD00038 | C172: T NC 10.1 L CLARIS ACZ 60G | D172: TINTURAS | E172: 2 | F172: 15
A173: 137 | B173: PRD00039 | C173: T NC 10.89 L CLARIS PEROLA 60G | D173: TINTURAS | E173: 2 | F173: 15
A174: 138 | B174: PRD00040 | C174: T NC 11.11 L CLARIS PL INT 60G | D174: TINTURAS | E174: 2 | F174: 15
A175: 139 | B175: PRD00041 | C175: T NC 12.0 L ULTRA CL 60G | D175: TINTURAS | E175: 2 | F175: 15
A176: 140 | B176: PRD00042 | C176: T NC 12.1 L ULTRA CL CINZ 60G | D176: TINTURAS | E176: 2 | F176: 15
A177: 141 | B177: PRD00043 | C177: T NC 12.12 L ULTRA CL IRIS 60G | D177: TINTURAS | E177: 2 | F177: 15
A178: 142 | B178: PRD00044 | C178: T NC 12.2 L ULTRA CL VIOL 60G | D178: TINTURAS | E178: 2 | F178: 15
A179: 143 | B179: PRD00045 | C179: T NC 12.22 L ULT CL VIO INT 60G | D179: TINTURAS | E179: 2 | F179: 15
A180: 144 | B180: PRD00046 | C180: T NC 12.89 L ULT CL PEROLA 60G | D180: TINTURAS | E180: 2 | F180: 15
A181: 145 | B181: PRD00047 | C181: T NC 3.0 CAST ESC ESSENCE 60G | D181: TINTURAS | E181: 2 | F181: 15
A182: 146 | B182: PRD00048 | C182: T NC 4.0 CAST MD ESSENCE 60G | D182: TINTURAS | E182: 2 | F182: 15
A183: 147 | B183: PRD00049 | C183: T NC 4.4 CAST MD ACOB 60G | D183: TINTURAS | E183: 2 | F183: 15
A184: 148 | B184: PRD00050 | C184: T NC 4.5 CAST MD ACAJU 60G | D184: TINTURAS | E184: 2 | F184: 15
A185: 149 | B185: PRD00051 | C185: T NC 4.64 CAST MD VER ACOB 60G | D185: TINTURAS | E185: 2 | F185: 15
A186: 150 | B186: PRD00052 | C186: T NC 4.66 CAST MD VER INT 60G | D186: TINTURAS | E186: 2 | F186: 15
A187: 151 | B187: PRD00053 | C187: T NC 5.0 CAST CL ESSENCE 60G | D187: TINTURAS | E187: 2 | F187: 15
A188: 152 | B188: PRD00054 | C188: T NC 5.1 CAST CL ACZ ESSEN 60G | D188: TINTURAS | E188: 2 | F188: 15
A189: 153 | B189: PRD00055 | C189: T NC 5.20 CAST CL VIO INT 60G | D189: TINTURAS | E189: 2 | F189: 15
A190: 154 | B190: PRD00056 | C190: T NC 5.3 CAST CL DOUR 60G | D190: TINTURAS | E190: 2 | F190: 15
A191: 155 | B191: PRD00057 | C191: T NC 5.34 CAST DOUR ACOB 60G | D191: TINTURAS | E191: 2 | F191: 15
A192: 156 | B192: PRD00058 | C192: T NC 5.4 CAST CL ACOBR 60G | D192: TINTURAS | E192: 2 | F192: 15
A193: 157 | B193: PRD00059 | C193: T NC 5.5 CAST CL ACAJU 60G | D193: TINTURAS | E193: 2 | F193: 15
A194: 158 | B194: PRD00060 | C194: T NC 5.56 CAST CL ACAJU AV 60G | D194: TINTURAS | E194: 2 | F194: 15
A195: 159 | B195: PRD00061 | C195: T NC 5.62 CAST CL VER VIOL 60G | D195: TINTURAS | E195: 2 | F195: 15
A196: 160 | B196: PRD00062 | C196: T NC 5.66 CAST CL VER INT 60G | D196: TINTURAS | E196: 2 | F196: 15
A197: 161 | B197: PRD00063 | C197: T NC 5.7 CAST CL MA 60G | D197: TINTURAS | E197: 2 | F197: 15
A198: 162 | B198: PRD00064 | C198: T NC 55.62 AMEIXA 60G | D198: TINTURAS | E198: 2 | F198: 15
A199: 163 | B199: PRD00065 | C199: T NC 6.0 L ESC ESSENCE 60G | D199: TINTURAS | E199: 2 | F199: 15
A200: 164 | B200: PRD00066 | C200: T NC 6.1 L ESC ACZ ESSENCE 60G | D200: TINTURAS | E200: 2 | F200: 15
... 59 more rows

Sheet Detalhado
A1: CodigoInterno | B1: CodigoProduto | C1: NomeProduto | D1: LinhaProduto | E1: Estoque | F1: Saldo Disponivel | G1: Venda | H1: Venda | I1: Quarentena | J1: Retrabalho
A2: 101 | B2: PRD00001 | C2: KERATIN BALM CROMAT 500ML | D2: CROMATIC | E2: =VLOOKUP(B2,Cadastro!#REF!,6,FALSE) ->  | F2: =SUM(G2:J2) -> 60 | H2: =SUMIF(Lote!$A:$M,$H$1&"-"&$B2,Lote!$M:$M) -> 60 | I2: =SUMIF(Lote!$A:$M,$I$1&"-"&$B2,Lote!$M:$M) -> 0 | J2: =SUMIF(Lote!$A:$M,$J$1&"-"&$B2,Lote!$M:$M) -> 0
A3: 102 | B3: PRD00002 | C3: KERATIN SEALING CROMATIC 500ML | D3: CROMATIC | E3: =VLOOKUP(B3,Cadastro!#REF!,6,FALSE) ->  | F3: =SUM(G3:J3) -> 75 | H3: =SUMIF(Lote!$A:$M,$H$1&"-"&$B3,Lote!$M:$M) -> 75 | I3: =SUMIF(Lote!$A:$M,$I$1&"-"&$B3,Lote!$M:$M) -> 0 | J3: =SUMIF(Lote!$A:$M,$J$1&"-"&$B3,Lote!$M:$M) -> 0
A4: 103 | B4: PRD00003 | C4: KERATIN SH CROMATIC 500ML | D4: CROMATIC | E4: =VLOOKUP(B4,Cadastro!#REF!,6,FALSE) ->  | F4: 20 | H4: =SUMIF(Lote!$A:$M,$H$1&"-"&$B4,Lote!$M:$M) -> 20 | I4: =SUMIF(Lote!$A:$M,$I$1&"-"&$B4,Lote!$M:$M) -> 0 | J4: =SUMIF(Lote!$A:$M,$J$1&"-"&$B4,Lote!$M:$M) -> 0
A5: 104 | B5: PRD00004 | C5: SH DAYBYDAY CAMOMILA 500ML | D5: DAYBYDAY | E5: =VLOOKUP(B5,Cadastro!#REF!,6,FALSE) ->  | F5: 121 | H5: =SUMIF(Lote!$A:$M,$H$1&"-"&$B5,Lote!$M:$M) -> 121 | I5: =SUMIF(Lote!$A:$M,$I$1&"-"&$B5,Lote!$M:$M) -> 0 | J5: =SUMIF(Lote!$A:$M,$J$1&"-"&$B5,Lote!$M:$M) -> 0
A6: 105 | B6: PRD00005 | C6: MASC REG DAYBYDAY CAMOM 500G | D6: DAYBYDAY | E6: =VLOOKUP(B6,Cadastro!#REF!,6,FALSE) ->  | F6: 76 | H6: =SUMIF(Lote!$A:$M,$H$1&"-"&$B6,Lote!$M:$M) -> 76 | I6: =SUMIF(Lote!$A:$M,$I$1&"-"&$B6,Lote!$M:$M) -> 0 | J6: =SUMIF(Lote!$A:$M,$J$1&"-"&$B6,Lote!$M:$M) -> 0
A7: 106 | B7: PRD00006 | C7: SH DAYBYDAY CEN 500ML | D7: DAYBYDAY | E7: =VLOOKUP(B7,Cadastro!#REF!,6,FALSE) ->  | F7: 12 | H7: =SUMIF(Lote!$A:$M,$H$1&"-"&$B7,Lote!$M:$M) -> 12 | I7: =SUMIF(Lote!$A:$M,$I$1&"-"&$B7,Lote!$M:$M) -> 0 | J7: =SUMIF(Lote!$A:$M,$J$1&"-"&$B7,Lote!$M:$M) -> 0
A8: 107 | B8: PRD00007 | C8: MASC REVIT DAYBYDAY CEN 500G | D8: DAYBYDAY | E8: =VLOOKUP(B8,Cadastro!#REF!,6,FALSE) ->  | F8: 462 | H8: =SUMIF(Lote!$A:$M,$H$1&"-"&$B8,Lote!$M:$M) -> 462 | I8: =SUMIF(Lote!$A:$M,$I$1&"-"&$B8,Lote!$M:$M) -> 0 | J8: =SUMIF(Lote!$A:$M,$J$1&"-"&$B8,Lote!$M:$M) -> 0
A9: 108 | B9: PRD00008 | C9: SH DAYBYDAY ABAC 500ML | D9: DAYBYDAY | E9: =VLOOKUP(B9,Cadastro!#REF!,6,FALSE) ->  | F9: 204 | H9: =SUMIF(Lote!$A:$M,$H$1&"-"&$B9,Lote!$M:$M) -> 2 | I9: =SUMIF(Lote!$A:$M,$I$1&"-"&$B9,Lote!$M:$M) -> 202 | J9: =SUMIF(Lote!$A:$M,$J$1&"-"&$B9,Lote!$M:$M) -> 0
A10: 109 | B10: PRD00009 | C10: MASC COND DAYBYDAY ABAC 500G | D10: DAYBYDAY | E10: =VLOOKUP(B10,Cadastro!#REF!,6,FALSE) ->  | F10: 146 | H10: =SUMIF(Lote!$A:$M,$H$1&"-"&$B10,Lote!$M:$M) -> 146 | I10: =SUMIF(Lote!$A:$M,$I$1&"-"&$B10,Lote!$M:$M) -> 0 | J10: =SUMIF(Lote!$A:$M,$J$1&"-"&$B10,Lote!$M:$M) -> 0
A11: 110 | B11: PRD00010 | C11: SH DAYBYDAY PROF SERV 2,5L | D11: DAYBYDAY | E11: =VLOOKUP(B11,Cadastro!#REF!,6,FALSE) ->  | F11: 27 | H11: =SUMIF(Lote!$A:$M,$H$1&"-"&$B11,Lote!$M:$M) -> 27 | I11: =SUMIF(Lote!$A:$M,$I$1&"-"&$B11,Lote!$M:$M) -> 0 | J11: =SUMIF(Lote!$A:$M,$J$1&"-"&$B11,Lote!$M:$M) -> 0
A12: 111 | B12: PRD00012 | C12: GOLDEN MASK NUTRAHAI 200GR | D12: GOLDEN MASK | E12: =VLOOKUP(B12,Cadastro!#REF!,6,FALSE) ->  | F12: 0 | H12: =SUMIF(Lote!$A:$M,$H$1&"-"&$B12,Lote!$M:$M) -> 0 | I12: =SUMIF(Lote!$A:$M,$I$1&"-"&$B12,Lote!$M:$M) -> 0 | J12: =SUMIF(Lote!$A:$M,$J$1&"-"&$B12,Lote!$M:$M) -> 0
A13: 112 | B13: PRD00013 | C13: KIT FIBER VIT NH | D13: FIBER VIT | E13: =VLOOKUP(B13,Cadastro!#REF!,6,FALSE) ->  | F13: 54 | H13: =SUMIF(Lote!$A:$M,$H$1&"-"&$B13,Lote!$M:$M) -> 54 | I13: =SUMIF(Lote!$A:$M,$I$1&"-"&$B13,Lote!$M:$M) -> 0 | J13: =SUMIF(Lote!$A:$M,$J$1&"-"&$B13,Lote!$M:$M) -> 0
A14: 113 | B14: PRD00014 | C14: BLINDAGEM NANO REDUT PR 1L | D14: SHOCK3 | E14: =VLOOKUP(B14,Cadastro!#REF!,6,FALSE) ->  | F14: 82 | H14: =SUMIF(Lote!$A:$M,$H$1&"-"&$B14,Lote!$M:$M) -> 82 | I14: =SUMIF(Lote!$A:$M,$I$1&"-"&$B14,Lote!$M:$M) -> 0 | J14: =SUMIF(Lote!$A:$M,$J$1&"-"&$B14,Lote!$M:$M) -> 0
A15: 114 | B15: PRD00015 | C15: SH ULTRA GLOSS PR 1L | D15: SHOCK3 | E15: =VLOOKUP(B15,Cadastro!#REF!,6,FALSE) ->  | F15: 22 | H15: =SUMIF(Lote!$A:$M,$H$1&"-"&$B15,Lote!$M:$M) -> 22 | I15: =SUMIF(Lote!$A:$M,$I$1&"-"&$B15,Lote!$M:$M) -> 0 | J15: =SUMIF(Lote!$A:$M,$J$1&"-"&$B15,Lote!$M:$M) -> 0
A16: 115 | B16: PRD00016 | C16: MASCARA TONALIZANTE ABSOLUT BLACK 260G | D16: TONALIZANTE | E16: =VLOOKUP(B16,Cadastro!#REF!,6,FALSE) ->  | F16: 0 | H16: =SUMIF(Lote!$A:$M,$H$1&"-"&$B16,Lote!$M:$M) -> 0 | I16: =SUMIF(Lote!$A:$M,$I$1&"-"&$B16,Lote!$M:$M) -> 0 | J16: =SUMIF(Lote!$A:$M,$J$1&"-"&$B16,Lote!$M:$M) -> 0
A17: 116 | B17: PRD00017 | C17: MASCARA TONALIZANTE GRAND MARSALA 260G | D17: TONALIZANTE | E17: =VLOOKUP(B17,Cadastro!#REF!,6,FALSE) ->  | F17: 0 | H17: =SUMIF(Lote!$A:$M,$H$1&"-"&$B17,Lote!$M:$M) -> 0 | I17: =SUMIF(Lote!$A:$M,$I$1&"-"&$B17,Lote!$M:$M) -> 0 | J17: =SUMIF(Lote!$A:$M,$J$1&"-"&$B17,Lote!$M:$M) -> 0
A18: 117 | B18: PRD00018 | C18: MASCARA TONALIZANTE LUX BROWN 260G | D18: TONALIZANTE | E18: =VLOOKUP(B18,Cadastro!#REF!,6,FALSE) ->  | F18: 0 | H18: =SUMIF(Lote!$A:$M,$H$1&"-"&$B18,Lote!$M:$M) -> 0 | I18: =SUMIF(Lote!$A:$M,$I$1&"-"&$B18,Lote!$M:$M) -> 0 | J18: =SUMIF(Lote!$A:$M,$J$1&"-"&$B18,Lote!$M:$M) -> 0
A19: 118 | B19: PRD00019 | C19: MASCARA TONALIZANTE ROYAL RED 260G | D19: TONALIZANTE | E19: =VLOOKUP(B19,Cadastro!#REF!,6,FALSE) ->  | F19: 0 | H19: =SUMIF(Lote!$A:$M,$H$1&"-"&$B19,Lote!$M:$M) -> 0 | I19: =SUMIF(Lote!$A:$M,$I$1&"-"&$B19,Lote!$M:$M) -> 0 | J19: =SUMIF(Lote!$A:$M,$J$1&"-"&$B19,Lote!$M:$M) -> 0
A20: 119 | B20: PRD00020 | C20: SH MATIZADOR NC 300ML | D20: MATIZADORES | E20: =VLOOKUP(B20,Cadastro!#REF!,6,FALSE) ->  | F20: 267 | H20: =SUMIF(Lote!$A:$M,$H$1&"-"&$B20,Lote!$M:$M) -> 267 | I20: =SUMIF(Lote!$A:$M,$I$1&"-"&$B20,Lote!$M:$M) -> 0 | J20: =SUMIF(Lote!$A:$M,$J$1&"-"&$B20,Lote!$M:$M) -> 0
A21: 120 | B21: PRD00022 | C21: AGUA OX NC 20VOL 1L | D21: TINTURAS | E21: =VLOOKUP(B21,Cadastro!#REF!,6,FALSE) ->  | F21: 0 | H21: =SUMIF(Lote!$A:$M,$H$1&"-"&$B21,Lote!$M:$M) -> 0 | I21: =SUMIF(Lote!$A:$M,$I$1&"-"&$B21,Lote!$M:$M) -> 0 | J21: =SUMIF(Lote!$A:$M,$J$1&"-"&$B21,Lote!$M:$M) -> 0
A22: 121 | B22: PRD00023 | C22: AGUA OX NC 30VOL 1L | D22: TINTURAS | E22: =VLOOKUP(B22,Cadastro!#REF!,6,FALSE) ->  | F22: 0 | H22: =SUMIF(Lote!$A:$M,$H$1&"-"&$B22,Lote!$M:$M) -> 0 | I22: =SUMIF(Lote!$A:$M,$I$1&"-"&$B22,Lote!$M:$M) -> 0 | J22: =SUMIF(Lote!$A:$M,$J$1&"-"&$B22,Lote!$M:$M) -> 0
A23: 122 | B23: PRD00024 | C23: AGUA OX NC 40VOL 1L | D23: TINTURAS | E23: =VLOOKUP(B23,Cadastro!#REF!,6,FALSE) ->  | F23: 0 | H23: =SUMIF(Lote!$A:$M,$H$1&"-"&$B23,Lote!$M:$M) -> 0 | I23: =SUMIF(Lote!$A:$M,$I$1&"-"&$B23,Lote!$M:$M) -> 0 | J23: =SUMIF(Lote!$A:$M,$J$1&"-"&$B23,Lote!$M:$M) -> 0
A24: 123 | B24: PRD00025 | C24: EMULSAO NC 8VOL 1L | D24: TINTURAS | E24: =VLOOKUP(B24,Cadastro!#REF!,6,FALSE) ->  | F24: 0 | H24: =SUMIF(Lote!$A:$M,$H$1&"-"&$B24,Lote!$M:$M) -> 0 | I24: =SUMIF(Lote!$A:$M,$I$1&"-"&$B24,Lote!$M:$M) -> 0 | J24: =SUMIF(Lote!$A:$M,$J$1&"-"&$B24,Lote!$M:$M) -> 0
A25: 124 | B25: PRD00026 | C25: AGUA OX NC 30V MATIZAD 1L | D25: TINTURAS | E25: =VLOOKUP(B25,Cadastro!#REF!,6,FALSE) ->  | F25: 0 | H25: =SUMIF(Lote!$A:$M,$H$1&"-"&$B25,Lote!$M:$M) -> 0 | I25: =SUMIF(Lote!$A:$M,$I$1&"-"&$B25,Lote!$M:$M) -> 0 | J25: =SUMIF(Lote!$A:$M,$J$1&"-"&$B25,Lote!$M:$M) -> 0
A26: 125 | B26: PRD00027 | C26: AGUA OX NC 40V MATIZAD 1L | D26: TINTURAS | E26: =VLOOKUP(B26,Cadastro!#REF!,6,FALSE) ->  | F26: 0 | H26: =SUMIF(Lote!$A:$M,$H$1&"-"&$B26,Lote!$M:$M) -> 0 | I26: =SUMIF(Lote!$A:$M,$I$1&"-"&$B26,Lote!$M:$M) -> 0 | J26: =SUMIF(Lote!$A:$M,$J$1&"-"&$B26,Lote!$M:$M) -> 0
A27: 126 | B27: PRD00028 | C27: CORRETOR AMARELO NC 60G | D27: TINTURAS | E27: =VLOOKUP(B27,Cadastro!#REF!,6,FALSE) ->  | F27: 0 | H27: =SUMIF(Lote!$A:$M,$H$1&"-"&$B27,Lote!$M:$M) -> 0 | I27: =SUMIF(Lote!$A:$M,$I$1&"-"&$B27,Lote!$M:$M) -> 0 | J27: =SUMIF(Lote!$A:$M,$J$1&"-"&$B27,Lote!$M:$M) -> 0
A28: 127 | B28: PRD00029 | C28: CORRETOR AZUL NC 60G | D28: TINTURAS | E28: =VLOOKUP(B28,Cadastro!#REF!,6,FALSE) ->  | F28: 0 | H28: =SUMIF(Lote!$A:$M,$H$1&"-"&$B28,Lote!$M:$M) -> 0 | I28: =SUMIF(Lote!$A:$M,$I$1&"-"&$B28,Lote!$M:$M) -> 0 | J28: =SUMIF(Lote!$A:$M,$J$1&"-"&$B28,Lote!$M:$M) -> 0
A29: 128 | B29: PRD00030 | C29: CORRETOR CINZA | D29: TINTURAS | E29: =VLOOKUP(B29,Cadastro!#REF!,6,FALSE) ->  | F29: 0 | H29: =SUMIF(Lote!$A:$M,$H$1&"-"&$B29,Lote!$M:$M) -> 0 | I29: =SUMIF(Lote!$A:$M,$I$1&"-"&$B29,Lote!$M:$M) -> 0 | J29: =SUMIF(Lote!$A:$M,$J$1&"-"&$B29,Lote!$M:$M) -> 0
A30: 129 | B30: PRD00031 | C30: CORRETOR VERMELHO NC 60G | D30: TINTURAS | E30: =VLOOKUP(B30,Cadastro!#REF!,6,FALSE) ->  | F30: 0 | H30: =SUMIF(Lote!$A:$M,$H$1&"-"&$B30,Lote!$M:$M) -> 0 | I30: =SUMIF(Lote!$A:$M,$I$1&"-"&$B30,Lote!$M:$M) -> 0 | J30: =SUMIF(Lote!$A:$M,$J$1&"-"&$B30,Lote!$M:$M) -> 0
A31: 130 | B31: PRD00032 | C31: DESC NC AZUL 500G | D31: TINTURAS | E31: =VLOOKUP(B31,Cadastro!#REF!,6,FALSE) ->  | F31: 0 | H31: =SUMIF(Lote!$A:$M,$H$1&"-"&$B31,Lote!$M:$M) -> 0 | I31: =SUMIF(Lote!$A:$M,$I$1&"-"&$B31,Lote!$M:$M) -> 0 | J31: =SUMIF(Lote!$A:$M,$J$1&"-"&$B31,Lote!$M:$M) -> 0
A32: 131 | B32: PRD00033 | C32: DESC NC BRANCO 500G | D32: TINTURAS | E32: =VLOOKUP(B32,Cadastro!#REF!,6,FALSE) ->  | F32: 0 | H32: =SUMIF(Lote!$A:$M,$H$1&"-"&$B32,Lote!$M:$M) -> 0 | I32: =SUMIF(Lote!$A:$M,$I$1&"-"&$B32,Lote!$M:$M) -> 0 | J32: =SUMIF(Lote!$A:$M,$J$1&"-"&$B32,Lote!$M:$M) -> 0
A33: 132 | B33: PRD00034 | C33: KIT ULTRAPLEX NUTRA COLOR | D33: ULTRAPLEX | E33: =VLOOKUP(B33,Cadastro!#REF!,6,FALSE) ->  | F33: 220 | H33: =SUMIF(Lote!$A:$M,$H$1&"-"&$B33,Lote!$M:$M) -> 220 | I33: =SUMIF(Lote!$A:$M,$I$1&"-"&$B33,Lote!$M:$M) -> 0 | J33: =SUMIF(Lote!$A:$M,$J$1&"-"&$B33,Lote!$M:$M) -> 0
A34: 133 | B34: PRD00035 | C34: T NC 0.00 INTENS CLAREAMEN 60G | D34: TINTURAS | E34: =VLOOKUP(B34,Cadastro!#REF!,6,FALSE) ->  | F34: 0 | H34: =SUMIF(Lote!$A:$M,$H$1&"-"&$B34,Lote!$M:$M) -> 0 | I34: =SUMIF(Lote!$A:$M,$I$1&"-"&$B34,Lote!$M:$M) -> 0 | J34: =SUMIF(Lote!$A:$M,$J$1&"-"&$B34,Lote!$M:$M) -> 0
A35: 134 | B35: PRD00036 | C35: T NC 1.0 PRETO ESSENCE 60G | D35: TINTURAS | E35: =VLOOKUP(B35,Cadastro!#REF!,6,FALSE) ->  | F35: 0 | H35: =SUMIF(Lote!$A:$M,$H$1&"-"&$B35,Lote!$M:$M) -> 0 | I35: =SUMIF(Lote!$A:$M,$I$1&"-"&$B35,Lote!$M:$M) -> 0 | J35: =SUMIF(Lote!$A:$M,$J$1&"-"&$B35,Lote!$M:$M) -> 0
A36: 135 | B36: PRD00037 | C36: T NC 10.0 L CLARIS 60G | D36: TINTURAS | E36: =VLOOKUP(B36,Cadastro!#REF!,6,FALSE) ->  | F36: 0 | H36: =SUMIF(Lote!$A:$M,$H$1&"-"&$B36,Lote!$M:$M) -> 0 | I36: =SUMIF(Lote!$A:$M,$I$1&"-"&$B36,Lote!$M:$M) -> 0 | J36: =SUMIF(Lote!$A:$M,$J$1&"-"&$B36,Lote!$M:$M) -> 0
A37: 136 | B37: PRD00038 | C37: T NC 10.1 L CLARIS ACZ 60G | D37: TINTURAS | E37: =VLOOKUP(B37,Cadastro!#REF!,6,FALSE) ->  | F37: 0 | H37: =SUMIF(Lote!$A:$M,$H$1&"-"&$B37,Lote!$M:$M) -> 0 | I37: =SUMIF(Lote!$A:$M,$I$1&"-"&$B37,Lote!$M:$M) -> 0 | J37: =SUMIF(Lote!$A:$M,$J$1&"-"&$B37,Lote!$M:$M) -> 0
A38: 137 | B38: PRD00039 | C38: T NC 10.89 L CLARIS PEROLA 60G | D38: TINTURAS | E38: =VLOOKUP(B38,Cadastro!#REF!,6,FALSE) ->  | F38: 0 | H38: =SUMIF(Lote!$A:$M,$H$1&"-"&$B38,Lote!$M:$M) -> 0 | I38: =SUMIF(Lote!$A:$M,$I$1&"-"&$B38,Lote!$M:$M) -> 0 | J38: =SUMIF(Lote!$A:$M,$J$1&"-"&$B38,Lote!$M:$M) -> 0
A39: 138 | B39: PRD00040 | C39: T NC 11.11 L CLARIS PL INT 60G | D39: TINTURAS | E39: =VLOOKUP(B39,Cadastro!#REF!,6,FALSE) ->  | F39: 179 | H39: =SUMIF(Lote!$A:$M,$H$1&"-"&$B39,Lote!$M:$M) -> 0 | I39: =SUMIF(Lote!$A:$M,$I$1&"-"&$B39,Lote!$M:$M) -> 0 | J39: =SUMIF(Lote!$A:$M,$J$1&"-"&$B39,Lote!$M:$M) -> 179
A40: 139 | B40: PRD00041 | C40: T NC 12.0 L ULTRA CL 60G | D40: TINTURAS | E40: =VLOOKUP(B40,Cadastro!#REF!,6,FALSE) ->  | F40: 0 | H40: =SUMIF(Lote!$A:$M,$H$1&"-"&$B40,Lote!$M:$M) -> 0 | I40: =SUMIF(Lote!$A:$M,$I$1&"-"&$B40,Lote!$M:$M) -> 0 | J40: =SUMIF(Lote!$A:$M,$J$1&"-"&$B40,Lote!$M:$M) -> 0
A41: 140 | B41: PRD00042 | C41: T NC 12.1 L ULTRA CL CINZ 60G | D41: TINTURAS | E41: =VLOOKUP(B41,Cadastro!#REF!,6,FALSE) ->  | F41: 0 | H41: =SUMIF(Lote!$A:$M,$H$1&"-"&$B41,Lote!$M:$M) -> 0 | I41: =SUMIF(Lote!$A:$M,$I$1&"-"&$B41,Lote!$M:$M) -> 0 | J41: =SUMIF(Lote!$A:$M,$J$1&"-"&$B41,Lote!$M:$M) -> 0
A42: 141 | B42: PRD00043 | C42: T NC 12.12 L ULTRA CL IRIS 60G | D42: TINTURAS | E42: =VLOOKUP(B42,Cadastro!#REF!,6,FALSE) ->  | F42: 0 | H42: =SUMIF(Lote!$A:$M,$H$1&"-"&$B42,Lote!$M:$M) -> 0 | I42: =SUMIF(Lote!$A:$M,$I$1&"-"&$B42,Lote!$M:$M) -> 0 | J42: =SUMIF(Lote!$A:$M,$J$1&"-"&$B42,Lote!$M:$M) -> 0
A43: 142 | B43: PRD00044 | C43: T NC 12.2 L ULTRA CL VIOL 60G | D43: TINTURAS | E43: =VLOOKUP(B43,Cadastro!#REF!,6,FALSE) ->  | F43: 0 | H43: =SUMIF(Lote!$A:$M,$H$1&"-"&$B43,Lote!$M:$M) -> 0 | I43: =SUMIF(Lote!$A:$M,$I$1&"-"&$B43,Lote!$M:$M) -> 0 | J43: =SUMIF(Lote!$A:$M,$J$1&"-"&$B43,Lote!$M:$M) -> 0
A44: 143 | B44: PRD00045 | C44: T NC 12.22 L ULT CL VIO INT 60G | D44: TINTURAS | E44: =VLOOKUP(B44,Cadastro!#REF!,6,FALSE) ->  | F44: 0 | H44: =SUMIF(Lote!$A:$M,$H$1&"-"&$B44,Lote!$M:$M) -> 0 | I44: =SUMIF(Lote!$A:$M,$I$1&"-"&$B44,Lote!$M:$M) -> 0 | J44: =SUMIF(Lote!$A:$M,$J$1&"-"&$B44,Lote!$M:$M) -> 0
A45: 144 | B45: PRD00046 | C45: T NC 12.89 L ULT CL PEROLA 60G | D45: TINTURAS | E45: =VLOOKUP(B45,Cadastro!#REF!,6,FALSE) ->  | F45: 0 | H45: =SUMIF(Lote!$A:$M,$H$1&"-"&$B45,Lote!$M:$M) -> 0 | I45: =SUMIF(Lote!$A:$M,$I$1&"-"&$B45,Lote!$M:$M) -> 0 | J45: =SUMIF(Lote!$A:$M,$J$1&"-"&$B45,Lote!$M:$M) -> 0
A46: 145 | B46: PRD00047 | C46: T NC 3.0 CAST ESC ESSENCE 60G | D46: TINTURAS | E46: =VLOOKUP(B46,Cadastro!#REF!,6,FALSE) ->  | F46: 0 | H46: =SUMIF(Lote!$A:$M,$H$1&"-"&$B46,Lote!$M:$M) -> 0 | I46: =SUMIF(Lote!$A:$M,$I$1&"-"&$B46,Lote!$M:$M) -> 0 | J46: =SUMIF(Lote!$A:$M,$J$1&"-"&$B46,Lote!$M:$M) -> 0
A47: 146 | B47: PRD00048 | C47: T NC 4.0 CAST MD ESSENCE 60G | D47: TINTURAS | E47: =VLOOKUP(B47,Cadastro!#REF!,6,FALSE) ->  | F47: 0 | H47: =SUMIF(Lote!$A:$M,$H$1&"-"&$B47,Lote!$M:$M) -> 0 | I47: =SUMIF(Lote!$A:$M,$I$1&"-"&$B47,Lote!$M:$M) -> 0 | J47: =SUMIF(Lote!$A:$M,$J$1&"-"&$B47,Lote!$M:$M) -> 0
A48: 147 | B48: PRD00049 | C48: T NC 4.4 CAST MD ACOB 60G | D48: TINTURAS | E48: =VLOOKUP(B48,Cadastro!#REF!,6,FALSE) ->  | F48: 0 | H48: =SUMIF(Lote!$A:$M,$H$1&"-"&$B48,Lote!$M:$M) -> 0 | I48: =SUMIF(Lote!$A:$M,$I$1&"-"&$B48,Lote!$M:$M) -> 0 | J48: =SUMIF(Lote!$A:$M,$J$1&"-"&$B48,Lote!$M:$M) -> 0
A49: 148 | B49: PRD00050 | C49: T NC 4.5 CAST MD ACAJU 60G | D49: TINTURAS | E49: =VLOOKUP(B49,Cadastro!#REF!,6,FALSE) ->  | F49: 1493 | H49: =SUMIF(Lote!$A:$M,$H$1&"-"&$B49,Lote!$M:$M) -> 0 | I49: =SUMIF(Lote!$A:$M,$I$1&"-"&$B49,Lote!$M:$M) -> 0 | J49: =SUMIF(Lote!$A:$M,$J$1&"-"&$B49,Lote!$M:$M) -> 1493
A50: 149 | B50: PRD00051 | C50: T NC 4.64 CAST MD VER ACOB 60G | D50: TINTURAS | E50: =VLOOKUP(B50,Cadastro!#REF!,6,FALSE) ->  | F50: 0 | H50: =SUMIF(Lote!$A:$M,$H$1&"-"&$B50,Lote!$M:$M) -> 0 | I50: =SUMIF(Lote!$A:$M,$I$1&"-"&$B50,Lote!$M:$M) -> 0 | J50: =SUMIF(Lote!$A:$M,$J$1&"-"&$B50,Lote!$M:$M) -> 0
A51: 150 | B51: PRD00052 | C51: T NC 4.66 CAST MD VER INT 60G | D51: TINTURAS | E51: =VLOOKUP(B51,Cadastro!#REF!,6,FALSE) ->  | F51: 0 | H51: =SUMIF(Lote!$A:$M,$H$1&"-"&$B51,Lote!$M:$M) -> 0 | I51: =SUMIF(Lote!$A:$M,$I$1&"-"&$B51,Lote!$M:$M) -> 0 | J51: =SUMIF(Lote!$A:$M,$J$1&"-"&$B51,Lote!$M:$M) -> 0
A52: 151 | B52: PRD00053 | C52: T NC 5.0 CAST CL ESSENCE 60G | D52: TINTURAS | E52: =VLOOKUP(B52,Cadastro!#REF!,6,FALSE) ->  | F52: 0 | H52: =SUMIF(Lote!$A:$M,$H$1&"-"&$B52,Lote!$M:$M) -> 0 | I52: =SUMIF(Lote!$A:$M,$I$1&"-"&$B52,Lote!$M:$M) -> 0 | J52: =SUMIF(Lote!$A:$M,$J$1&"-"&$B52,Lote!$M:$M) -> 0
A53: 152 | B53: PRD00054 | C53: T NC 5.1 CAST CL ACZ ESSEN 60G | D53: TINTURAS | E53: =VLOOKUP(B53,Cadastro!#REF!,6,FALSE) ->  | F53: 133 | H53: =SUMIF(Lote!$A:$M,$H$1&"-"&$B53,Lote!$M:$M) -> 0 | I53: =SUMIF(Lote!$A:$M,$I$1&"-"&$B53,Lote!$M:$M) -> 0 | J53: =SUMIF(Lote!$A:$M,$J$1&"-"&$B53,Lote!$M:$M) -> 133
A54: 153 | B54: PRD00055 | C54: T NC 5.20 CAST CL VIO INT 60G | D54: TINTURAS | E54: =VLOOKUP(B54,Cadastro!#REF!,6,FALSE) ->  | F54: 0 | H54: =SUMIF(Lote!$A:$M,$H$1&"-"&$B54,Lote!$M:$M) -> 0 | I54: =SUMIF(Lote!$A:$M,$I$1&"-"&$B54,Lote!$M:$M) -> 0 | J54: =SUMIF(Lote!$A:$M,$J$1&"-"&$B54,Lote!$M:$M) -> 0
A55: 154 | B55: PRD00056 | C55: T NC 5.3 CAST CL DOUR 60G | D55: TINTURAS | E55: =VLOOKUP(B55,Cadastro!#REF!,6,FALSE) ->  | F55: 0 | H55: =SUMIF(Lote!$A:$M,$H$1&"-"&$B55,Lote!$M:$M) -> 0 | I55: =SUMIF(Lote!$A:$M,$I$1&"-"&$B55,Lote!$M:$M) -> 0 | J55: =SUMIF(Lote!$A:$M,$J$1&"-"&$B55,Lote!$M:$M) -> 0
A56: 155 | B56: PRD00057 | C56: T NC 5.34 CAST DOUR ACOB 60G | D56: TINTURAS | E56: =VLOOKUP(B56,Cadastro!#REF!,6,FALSE) ->  | F56: 0 | H56: =SUMIF(Lote!$A:$M,$H$1&"-"&$B56,Lote!$M:$M) -> 0 | I56: =SUMIF(Lote!$A:$M,$I$1&"-"&$B56,Lote!$M:$M) -> 0 | J56: =SUMIF(Lote!$A:$M,$J$1&"-"&$B56,Lote!$M:$M) -> 0
A57: 156 | B57: PRD00058 | C57: T NC 5.4 CAST CL ACOBR 60G | D57: TINTURAS | E57: =VLOOKUP(B57,Cadastro!#REF!,6,FALSE) ->  | F57: 0 | H57: =SUMIF(Lote!$A:$M,$H$1&"-"&$B57,Lote!$M:$M) -> 0 | I57: =SUMIF(Lote!$A:$M,$I$1&"-"&$B57,Lote!$M:$M) -> 0 | J57: =SUMIF(Lote!$A:$M,$J$1&"-"&$B57,Lote!$M:$M) -> 0
A58: 157 | B58: PRD00059 | C58: T NC 5.5 CAST CL ACAJU 60G | D58: TINTURAS | E58: =VLOOKUP(B58,Cadastro!#REF!,6,FALSE) ->  | F58: 0 | H58: =SUMIF(Lote!$A:$M,$H$1&"-"&$B58,Lote!$M:$M) -> 0 | I58: =SUMIF(Lote!$A:$M,$I$1&"-"&$B58,Lote!$M:$M) -> 0 | J58: =SUMIF(Lote!$A:$M,$J$1&"-"&$B58,Lote!$M:$M) -> 0
A59: 158 | B59: PRD00060 | C59: T NC 5.56 CAST CL ACAJU AV 60G | D59: TINTURAS | E59: =VLOOKUP(B59,Cadastro!#REF!,6,FALSE) ->  | F59: 0 | H59: =SUMIF(Lote!$A:$M,$H$1&"-"&$B59,Lote!$M:$M) -> 0 | I59: =SUMIF(Lote!$A:$M,$I$1&"-"&$B59,Lote!$M:$M) -> 0 | J59: =SUMIF(Lote!$A:$M,$J$1&"-"&$B59,Lote!$M:$M) -> 0
A60: 159 | B60: PRD00061 | C60: T NC 5.62 CAST CL VER VIOL 60G | D60: TINTURAS | E60: =VLOOKUP(B60,Cadastro!#REF!,6,FALSE) ->  | F60: 0 | H60: =SUMIF(Lote!$A:$M,$H$1&"-"&$B60,Lote!$M:$M) -> 0 | I60: =SUMIF(Lote!$A:$M,$I$1&"-"&$B60,Lote!$M:$M) -> 0 | J60: =SUMIF(Lote!$A:$M,$J$1&"-"&$B60,Lote!$M:$M) -> 0
A61: 160 | B61: PRD00062 | C61: T NC 5.66 CAST CL VER INT 60G | D61: TINTURAS | E61: =VLOOKUP(B61,Cadastro!#REF!,6,FALSE) ->  | F61: 0 | H61: =SUMIF(Lote!$A:$M,$H$1&"-"&$B61,Lote!$M:$M) -> 0 | I61: =SUMIF(Lote!$A:$M,$I$1&"-"&$B61,Lote!$M:$M) -> 0 | J61: =SUMIF(Lote!$A:$M,$J$1&"-"&$B61,Lote!$M:$M) -> 0
A62: 161 | B62: PRD00063 | C62: T NC 5.7 CAST CL MA 60G | D62: TINTURAS | E62: =VLOOKUP(B62,Cadastro!#REF!,6,FALSE) ->  | F62: 0 | H62: =SUMIF(Lote!$A:$M,$H$1&"-"&$B62,Lote!$M:$M) -> 0 | I62: =SUMIF(Lote!$A:$M,$I$1&"-"&$B62,Lote!$M:$M) -> 0 | J62: =SUMIF(Lote!$A:$M,$J$1&"-"&$B62,Lote!$M:$M) -> 0
A63: 162 | B63: PRD00064 | C63: T NC 55.62 AMEIXA 60G | D63: TINTURAS | E63: =VLOOKUP(B63,Cadastro!#REF!,6,FALSE) ->  | F63: 0 | H63: =SUMIF(Lote!$A:$M,$H$1&"-"&$B63,Lote!$M:$M) -> 0 | I63: =SUMIF(Lote!$A:$M,$I$1&"-"&$B63,Lote!$M:$M) -> 0 | J63: =SUMIF(Lote!$A:$M,$J$1&"-"&$B63,Lote!$M:$M) -> 0
A64: 163 | B64: PRD00065 | C64: T NC 6.0 L ESC ESSENCE 60G | D64: TINTURAS | E64: =VLOOKUP(B64,Cadastro!#REF!,6,FALSE) ->  | F64: 0 | H64: =SUMIF(Lote!$A:$M,$H$1&"-"&$B64,Lote!$M:$M) -> 0 | I64: =SUMIF(Lote!$A:$M,$I$1&"-"&$B64,Lote!$M:$M) -> 0 | J64: =SUMIF(Lote!$A:$M,$J$1&"-"&$B64,Lote!$M:$M) -> 0
A65: 164 | B65: PRD00066 | C65: T NC 6.1 L ESC ACZ ESSENCE 60G | D65: TINTURAS | E65: =VLOOKUP(B65,Cadastro!#REF!,6,FALSE) ->  | F65: 0 | H65: =SUMIF(Lote!$A:$M,$H$1&"-"&$B65,Lote!$M:$M) -> 0 | I65: =SUMIF(Lote!$A:$M,$I$1&"-"&$B65,Lote!$M:$M) -> 0 | J65: =SUMIF(Lote!$A:$M,$J$1&"-"&$B65,Lote!$M:$M) -> 0
A66: 165 | B66: PRD00067 | C66: T NC 6.3 L ESC DOUR 60G | D66: TINTURAS | E66: =VLOOKUP(B66,Cadastro!#REF!,6,FALSE) ->  | F66: 0 | H66: =SUMIF(Lote!$A:$M,$H$1&"-"&$B66,Lote!$M:$M) -> 0 | I66: =SUMIF(Lote!$A:$M,$I$1&"-"&$B66,Lote!$M:$M) -> 0 | J66: =SUMIF(Lote!$A:$M,$J$1&"-"&$B66,Lote!$M:$M) -> 0
A67: 166 | B67: PRD00068 | C67: T NC 6.4 L ESC ACOB 60G | D67: TINTURAS | E67: =VLOOKUP(B67,Cadastro!#REF!,6,FALSE) ->  | F67: =SUM(G67:J67) -> 0 | H67: =SUMIF(Lote!$A:$M,$H$1&"-"&$B67,Lote!$M:$M) -> 0 | I67: =SUMIF(Lote!$A:$M,$I$1&"-"&$B67,Lote!$M:$M) -> 0 | J67: =SUMIF(Lote!$A:$M,$J$1&"-"&$B67,Lote!$M:$M) -> 0
A68: 167 | B68: PRD00069 | C68: T NC 6.41 MA 60G | D68: TINTURAS | E68: =VLOOKUP(B68,Cadastro!#REF!,6,FALSE) ->  | F68: 0 | H68: =SUMIF(Lote!$A:$M,$H$1&"-"&$B68,Lote!$M:$M) -> 0 | I68: =SUMIF(Lote!$A:$M,$I$1&"-"&$B68,Lote!$M:$M) -> 0 | J68: =SUMIF(Lote!$A:$M,$J$1&"-"&$B68,Lote!$M:$M) -> 0
A69: 168 | B69: PRD00070 | C69: T NC 6.43 L ESC COBR DOUR 60G | D69: TINTURAS | E69: =VLOOKUP(B69,Cadastro!#REF!,6,FALSE) ->  | F69: 0 | H69: =SUMIF(Lote!$A:$M,$H$1&"-"&$B69,Lote!$M:$M) -> 0 | I69: =SUMIF(Lote!$A:$M,$I$1&"-"&$B69,Lote!$M:$M) -> 0 | J69: =SUMIF(Lote!$A:$M,$J$1&"-"&$B69,Lote!$M:$M) -> 0
A70: 169 | B70: PRD00071 | C70: T NC 6.46 L ESC COBR AVERM 60G | D70: TINTURAS | E70: =VLOOKUP(B70,Cadastro!#REF!,6,FALSE) ->  | F70: 0 | H70: =SUMIF(Lote!$A:$M,$H$1&"-"&$B70,Lote!$M:$M) -> 0 | I70: =SUMIF(Lote!$A:$M,$I$1&"-"&$B70,Lote!$M:$M) -> 0 | J70: =SUMIF(Lote!$A:$M,$J$1&"-"&$B70,Lote!$M:$M) -> 0
A71: 170 | B71: PRD00072 | C71: T NC 6.6 L ESC AVER 60G | D71: TINTURAS | E71: =VLOOKUP(B71,Cadastro!#REF!,6,FALSE) ->  | F71: 0 | H71: =SUMIF(Lote!$A:$M,$H$1&"-"&$B71,Lote!$M:$M) -> 0 | I71: =SUMIF(Lote!$A:$M,$I$1&"-"&$B71,Lote!$M:$M) -> 0 | J71: =SUMIF(Lote!$A:$M,$J$1&"-"&$B71,Lote!$M:$M) -> 0
A72: 171 | B72: PRD00073 | C72: T NC 6.64 L ESC VER ACOB 60G | D72: TINTURAS | E72: =VLOOKUP(B72,Cadastro!#REF!,6,FALSE) ->  | F72: 0 | H72: =SUMIF(Lote!$A:$M,$H$1&"-"&$B72,Lote!$M:$M) -> 0 | I72: =SUMIF(Lote!$A:$M,$I$1&"-"&$B72,Lote!$M:$M) -> 0 | J72: =SUMIF(Lote!$A:$M,$J$1&"-"&$B72,Lote!$M:$M) -> 0
A73: 172 | B73: PRD00074 | C73: T NC 6.66 L ESC VERM INT 60G | D73: TINTURAS | E73: =VLOOKUP(B73,Cadastro!#REF!,6,FALSE) ->  | F73: 593 | H73: =SUMIF(Lote!$A:$M,$H$1&"-"&$B73,Lote!$M:$M) -> 0 | I73: =SUMIF(Lote!$A:$M,$I$1&"-"&$B73,Lote!$M:$M) -> 0 | J73: =SUMIF(Lote!$A:$M,$J$1&"-"&$B73,Lote!$M:$M) -> 593
A74: 173 | B74: PRD00075 | C74: T NC 6.7 CHOCOLATE ESSENCE 60G | D74: TINTURAS | E74: =VLOOKUP(B74,Cadastro!#REF!,6,FALSE) ->  | F74: 206 | H74: =SUMIF(Lote!$A:$M,$H$1&"-"&$B74,Lote!$M:$M) -> 0 | I74: =SUMIF(Lote!$A:$M,$I$1&"-"&$B74,Lote!$M:$M) -> 0 | J74: =SUMIF(Lote!$A:$M,$J$1&"-"&$B74,Lote!$M:$M) -> 206
A75: 174 | B75: PRD00076 | C75: T NC 6.71 L ESC MA ACZ 60G | D75: TINTURAS | E75: =VLOOKUP(B75,Cadastro!#REF!,6,FALSE) ->  | F75: 0 | H75: =SUMIF(Lote!$A:$M,$H$1&"-"&$B75,Lote!$M:$M) -> 0 | I75: =SUMIF(Lote!$A:$M,$I$1&"-"&$B75,Lote!$M:$M) -> 0 | J75: =SUMIF(Lote!$A:$M,$J$1&"-"&$B75,Lote!$M:$M) -> 0
A76: 175 | B76: PRD00077 | C76: T NC 66.46 CEREJA 60G | D76: TINTURAS | E76: =VLOOKUP(B76,Cadastro!#REF!,6,FALSE) ->  | F76: 0 | H76: =SUMIF(Lote!$A:$M,$H$1&"-"&$B76,Lote!$M:$M) -> 0 | I76: =SUMIF(Lote!$A:$M,$I$1&"-"&$B76,Lote!$M:$M) -> 0 | J76: =SUMIF(Lote!$A:$M,$J$1&"-"&$B76,Lote!$M:$M) -> 0
A77: 176 | B77: PRD00078 | C77: T NC 7.0 L MD ESSENCE 60G | D77: TINTURAS | E77: =VLOOKUP(B77,Cadastro!#REF!,6,FALSE) ->  | F77: 0 | H77: =SUMIF(Lote!$A:$M,$H$1&"-"&$B77,Lote!$M:$M) -> 0 | I77: =SUMIF(Lote!$A:$M,$I$1&"-"&$B77,Lote!$M:$M) -> 0 | J77: =SUMIF(Lote!$A:$M,$J$1&"-"&$B77,Lote!$M:$M) -> 0
A78: 177 | B78: PRD00079 | C78: T NC 7.1 L MD ACZ ESSENCE 60G | D78: TINTURAS | E78: =VLOOKUP(B78,Cadastro!#REF!,6,FALSE) ->  | F78: 0 | H78: =SUMIF(Lote!$A:$M,$H$1&"-"&$B78,Lote!$M:$M) -> 0 | I78: =SUMIF(Lote!$A:$M,$I$1&"-"&$B78,Lote!$M:$M) -> 0 | J78: =SUMIF(Lote!$A:$M,$J$1&"-"&$B78,Lote!$M:$M) -> 0
A79: 178 | B79: PRD00080 | C79: T NC 7.13 L MD BEGE ACZ 60G | D79: TINTURAS | E79: =VLOOKUP(B79,Cadastro!#REF!,6,FALSE) ->  | F79: 0 | H79: =SUMIF(Lote!$A:$M,$H$1&"-"&$B79,Lote!$M:$M) -> 0 | I79: =SUMIF(Lote!$A:$M,$I$1&"-"&$B79,Lote!$M:$M) -> 0 | J79: =SUMIF(Lote!$A:$M,$J$1&"-"&$B79,Lote!$M:$M) -> 0
A80: 179 | B80: PRD00081 | C80: T NC 7.3 L MD DOUR 60G | D80: TINTURAS | E80: =VLOOKUP(B80,Cadastro!#REF!,6,FALSE) ->  | F80: 279 | H80: =SUMIF(Lote!$A:$M,$H$1&"-"&$B80,Lote!$M:$M) -> 0 | I80: =SUMIF(Lote!$A:$M,$I$1&"-"&$B80,Lote!$M:$M) -> 0 | J80: =SUMIF(Lote!$A:$M,$J$1&"-"&$B80,Lote!$M:$M) -> 279
A81: 180 | B81: PRD00082 | C81: T NC 7.31 L BEGE DOUR 60G | D81: TINTURAS | E81: =VLOOKUP(B81,Cadastro!#REF!,6,FALSE) ->  | F81: 0 | H81: =SUMIF(Lote!$A:$M,$H$1&"-"&$B81,Lote!$M:$M) -> 0 | I81: =SUMIF(Lote!$A:$M,$I$1&"-"&$B81,Lote!$M:$M) -> 0 | J81: =SUMIF(Lote!$A:$M,$J$1&"-"&$B81,Lote!$M:$M) -> 0
A82: 181 | B82: PRD00083 | C82: T NC 7.4 L MD ACOB 60G | D82: TINTURAS | E82: =VLOOKUP(B82,Cadastro!#REF!,6,FALSE) ->  | F82: 0 | H82: =SUMIF(Lote!$A:$M,$H$1&"-"&$B82,Lote!$M:$M) -> 0 | I82: =SUMIF(Lote!$A:$M,$I$1&"-"&$B82,Lote!$M:$M) -> 0 | J82: =SUMIF(Lote!$A:$M,$J$1&"-"&$B82,Lote!$M:$M) -> 0
A83: 182 | B83: PRD00084 | C83: T NC 7.40 L MD COBRE INT 60G | D83: TINTURAS | E83: =VLOOKUP(B83,Cadastro!#REF!,6,FALSE) ->  | F83: 0 | H83: =SUMIF(Lote!$A:$M,$H$1&"-"&$B83,Lote!$M:$M) -> 0 | I83: =SUMIF(Lote!$A:$M,$I$1&"-"&$B83,Lote!$M:$M) -> 0 | J83: =SUMIF(Lote!$A:$M,$J$1&"-"&$B83,Lote!$M:$M) -> 0
A84: 183 | B84: PRD00085 | C84: T NC 7.43 L MD COBRE DOUR 60G | D84: TINTURAS | E84: =VLOOKUP(B84,Cadastro!#REF!,6,FALSE) ->  | F84: 0 | H84: =SUMIF(Lote!$A:$M,$H$1&"-"&$B84,Lote!$M:$M) -> 0 | I84: =SUMIF(Lote!$A:$M,$I$1&"-"&$B84,Lote!$M:$M) -> 0 | J84: =SUMIF(Lote!$A:$M,$J$1&"-"&$B84,Lote!$M:$M) -> 0
A85: 184 | B85: PRD00086 | C85: T NC 7.5 L MD ACAJU 60G | D85: TINTURAS | E85: =VLOOKUP(B85,Cadastro!#REF!,6,FALSE) ->  | F85: 0 | H85: =SUMIF(Lote!$A:$M,$H$1&"-"&$B85,Lote!$M:$M) -> 0 | I85: =SUMIF(Lote!$A:$M,$I$1&"-"&$B85,Lote!$M:$M) -> 0 | J85: =SUMIF(Lote!$A:$M,$J$1&"-"&$B85,Lote!$M:$M) -> 0
A86: 185 | B86: PRD00087 | C86: T NC 7.62 L MD IRISADO 60G | D86: TINTURAS | E86: =VLOOKUP(B86,Cadastro!#REF!,6,FALSE) ->  | F86: 0 | H86: =SUMIF(Lote!$A:$M,$H$1&"-"&$B86,Lote!$M:$M) -> 0 | I86: =SUMIF(Lote!$A:$M,$I$1&"-"&$B86,Lote!$M:$M) -> 0 | J86: =SUMIF(Lote!$A:$M,$J$1&"-"&$B86,Lote!$M:$M) -> 0
A87: 186 | B87: PRD00088 | C87: T NC 7.66 L MD VERM INT 60G | D87: TINTURAS | E87: =VLOOKUP(B87,Cadastro!#REF!,6,FALSE) ->  | F87: 0 | H87: =SUMIF(Lote!$A:$M,$H$1&"-"&$B87,Lote!$M:$M) -> 0 | I87: =SUMIF(Lote!$A:$M,$I$1&"-"&$B87,Lote!$M:$M) -> 0 | J87: =SUMIF(Lote!$A:$M,$J$1&"-"&$B87,Lote!$M:$M) -> 0
A88: 187 | B88: PRD00089 | C88: T NC 7.7 CHOCOLATE CL 60G | D88: TINTURAS | E88: =VLOOKUP(B88,Cadastro!#REF!,6,FALSE) ->  | F88: 112 | H88: =SUMIF(Lote!$A:$M,$H$1&"-"&$B88,Lote!$M:$M) -> 0 | I88: =SUMIF(Lote!$A:$M,$I$1&"-"&$B88,Lote!$M:$M) -> 0 | J88: =SUMIF(Lote!$A:$M,$J$1&"-"&$B88,Lote!$M:$M) -> 112
A89: 188 | B89: PRD00090 | C89: T NC 7.71 L MD MA ACZ 60G | D89: TINTURAS | E89: =VLOOKUP(B89,Cadastro!#REF!,6,FALSE) ->  | F89: 0 | H89: =SUMIF(Lote!$A:$M,$H$1&"-"&$B89,Lote!$M:$M) -> 0 | I89: =SUMIF(Lote!$A:$M,$I$1&"-"&$B89,Lote!$M:$M) -> 0 | J89: =SUMIF(Lote!$A:$M,$J$1&"-"&$B89,Lote!$M:$M) -> 0
A90: 189 | B90: PRD00091 | C90: T NC 7.75 L MD MA ACAJU 60G | D90: TINTURAS | E90: =VLOOKUP(B90,Cadastro!#REF!,6,FALSE) ->  | F90: 0 | H90: =SUMIF(Lote!$A:$M,$H$1&"-"&$B90,Lote!$M:$M) -> 0 | I90: =SUMIF(Lote!$A:$M,$I$1&"-"&$B90,Lote!$M:$M) -> 0 | J90: =SUMIF(Lote!$A:$M,$J$1&"-"&$B90,Lote!$M:$M) -> 0
A91: 190 | B91: PRD00092 | C91: T NC 7.89 L MD PEROLA 60G | D91: TINTURAS | E91: =VLOOKUP(B91,Cadastro!#REF!,6,FALSE) ->  | F91: 0 | H91: =SUMIF(Lote!$A:$M,$H$1&"-"&$B91,Lote!$M:$M) -> 0 | I91: =SUMIF(Lote!$A:$M,$I$1&"-"&$B91,Lote!$M:$M) -> 0 | J91: =SUMIF(Lote!$A:$M,$J$1&"-"&$B91,Lote!$M:$M) -> 0
A92: 191 | B92: PRD00093 | C92: T NC 77.44 RUBI 60G | D92: TINTURAS | E92: =VLOOKUP(B92,Cadastro!#REF!,6,FALSE) ->  | F92: 0 | H92: =SUMIF(Lote!$A:$M,$H$1&"-"&$B92,Lote!$M:$M) -> 0 | I92: =SUMIF(Lote!$A:$M,$I$1&"-"&$B92,Lote!$M:$M) -> 0 | J92: =SUMIF(Lote!$A:$M,$J$1&"-"&$B92,Lote!$M:$M) -> 0
A93: 192 | B93: PRD00094 | C93: T NC 8.0 L CL ESSENCE 60G | D93: TINTURAS | E93: =VLOOKUP(B93,Cadastro!#REF!,6,FALSE) ->  | F93: 0 | H93: =SUMIF(Lote!$A:$M,$H$1&"-"&$B93,Lote!$M:$M) -> 0 | I93: =SUMIF(Lote!$A:$M,$I$1&"-"&$B93,Lote!$M:$M) -> 0 | J93: =SUMIF(Lote!$A:$M,$J$1&"-"&$B93,Lote!$M:$M) -> 0
A94: 193 | B94: PRD00095 | C94: T NC 8.1 L CL ACZ 60G | D94: TINTURAS | E94: =VLOOKUP(B94,Cadastro!#REF!,6,FALSE) ->  | F94: 439 | H94: =SUMIF(Lote!$A:$M,$H$1&"-"&$B94,Lote!$M:$M) -> 0 | I94: =SUMIF(Lote!$A:$M,$I$1&"-"&$B94,Lote!$M:$M) -> 0 | J94: =SUMIF(Lote!$A:$M,$J$1&"-"&$B94,Lote!$M:$M) -> 439
A95: 194 | B95: PRD00096 | C95: T NC 8.26 MARSALA 60G | D95: TINTURAS | E95: =VLOOKUP(B95,Cadastro!#REF!,6,FALSE) ->  | F95: 38 | H95: =SUMIF(Lote!$A:$M,$H$1&"-"&$B95,Lote!$M:$M) -> 0 | I95: =SUMIF(Lote!$A:$M,$I$1&"-"&$B95,Lote!$M:$M) -> 0 | J95: =SUMIF(Lote!$A:$M,$J$1&"-"&$B95,Lote!$M:$M) -> 38
A96: 195 | B96: PRD00097 | C96: T NC 8.3 L CL DOUR 60G | D96: TINTURAS | E96: =VLOOKUP(B96,Cadastro!#REF!,6,FALSE) ->  | F96: 0 | H96: =SUMIF(Lote!$A:$M,$H$1&"-"&$B96,Lote!$M:$M) -> 0 | I96: =SUMIF(Lote!$A:$M,$I$1&"-"&$B96,Lote!$M:$M) -> 0 | J96: =SUMIF(Lote!$A:$M,$J$1&"-"&$B96,Lote!$M:$M) -> 0
A97: 196 | B97: PRD00098 | C97: T NC 8.31 L CL BEGE DOUR 60G | D97: TINTURAS | E97: =VLOOKUP(B97,Cadastro!#REF!,6,FALSE) ->  | F97: 0 | H97: =SUMIF(Lote!$A:$M,$H$1&"-"&$B97,Lote!$M:$M) -> 0 | I97: =SUMIF(Lote!$A:$M,$I$1&"-"&$B97,Lote!$M:$M) -> 0 | J97: =SUMIF(Lote!$A:$M,$J$1&"-"&$B97,Lote!$M:$M) -> 0
A98: 197 | B98: PRD00099 | C98: T NC 8.4 L CL ACOBREADO 60G | D98: TINTURAS | E98: =VLOOKUP(B98,Cadastro!#REF!,6,FALSE) ->  | F98: 0 | H98: =SUMIF(Lote!$A:$M,$H$1&"-"&$B98,Lote!$M:$M) -> 0 | I98: =SUMIF(Lote!$A:$M,$I$1&"-"&$B98,Lote!$M:$M) -> 0 | J98: =SUMIF(Lote!$A:$M,$J$1&"-"&$B98,Lote!$M:$M) -> 0
A99: 198 | B99: PRD00100 | C99: T NC 8.89 L CL PEROLA 60G | D99: TINTURAS | E99: =VLOOKUP(B99,Cadastro!#REF!,6,FALSE) ->  | F99: 0 | H99: =SUMIF(Lote!$A:$M,$H$1&"-"&$B99,Lote!$M:$M) -> 0 | I99: =SUMIF(Lote!$A:$M,$I$1&"-"&$B99,Lote!$M:$M) -> 0 | J99: =SUMIF(Lote!$A:$M,$J$1&"-"&$B99,Lote!$M:$M) -> 0
A100: 199 | B100: PRD00101 | C100: T NC 9.0 L MT CL 60G | D100: TINTURAS | E100: =VLOOKUP(B100,Cadastro!#REF!,6,FALSE) ->  | F100: 0 | H100: =SUMIF(Lote!$A:$M,$H$1&"-"&$B100,Lote!$M:$M) -> 0 | I100: =SUMIF(Lote!$A:$M,$I$1&"-"&$B100,Lote!$M:$M) -> 0 | J100: =SUMIF(Lote!$A:$M,$J$1&"-"&$B100,Lote!$M:$M) -> 0
A101: 200 | B101: PRD00102 | C101: T NC 9.00 L CLARIS NATURAL 60G | D101: TINTURAS | E101: =VLOOKUP(B101,Cadastro!#REF!,6,FALSE) ->  | F101: 76 | H101: =SUMIF(Lote!$A:$M,$H$1&"-"&$B101,Lote!$M:$M) -> 0 | I101: =SUMIF(Lote!$A:$M,$I$1&"-"&$B101,Lote!$M:$M) -> 0 | J101: =SUMIF(Lote!$A:$M,$J$1&"-"&$B101,Lote!$M:$M) -> 76
A102: 201 | B102: PRD00103 | C102: T NC 9.01 L CLARIS ACZ 60G | D102: TINTURAS | E102: =VLOOKUP(B102,Cadastro!#REF!,6,FALSE) ->  | F102: 237 | H102: =SUMIF(Lote!$A:$M,$H$1&"-"&$B102,Lote!$M:$M) -> 0 | I102: =SUMIF(Lote!$A:$M,$I$1&"-"&$B102,Lote!$M:$M) -> 0 | J102: =SUMIF(Lote!$A:$M,$J$1&"-"&$B102,Lote!$M:$M) -> 237
A103: 202 | B103: PRD00104 | C103: T NC 9.02 L CLARIS IRIZADO 60G | D103: TINTURAS | E103: =VLOOKUP(B103,Cadastro!#REF!,6,FALSE) ->  | F103: 0 | H103: =SUMIF(Lote!$A:$M,$H$1&"-"&$B103,Lote!$M:$M) -> 0 | I103: =SUMIF(Lote!$A:$M,$I$1&"-"&$B103,Lote!$M:$M) -> 0 | J103: =SUMIF(Lote!$A:$M,$J$1&"-"&$B103,Lote!$M:$M) -> 0
A104: 203 | B104: PRD00105 | C104: T NC 9.03 L CLARIS DOUR 60G | D104: TINTURAS | E104: =VLOOKUP(B104,Cadastro!#REF!,6,FALSE) ->  | F104: 0 | H104: =SUMIF(Lote!$A:$M,$H$1&"-"&$B104,Lote!$M:$M) -> 0 | I104: =SUMIF(Lote!$A:$M,$I$1&"-"&$B104,Lote!$M:$M) -> 0 | J104: =SUMIF(Lote!$A:$M,$J$1&"-"&$B104,Lote!$M:$M) -> 0
A105: 204 | B105: PRD00106 | C105: T NC 9.1 L MT CL ACZ 60G | D105: TINTURAS | E105: =VLOOKUP(B105,Cadastro!#REF!,6,FALSE) ->  | F105: 397 | H105: =SUMIF(Lote!$A:$M,$H$1&"-"&$B105,Lote!$M:$M) -> 0 | I105: =SUMIF(Lote!$A:$M,$I$1&"-"&$B105,Lote!$M:$M) -> 0 | J105: =SUMIF(Lote!$A:$M,$J$1&"-"&$B105,Lote!$M:$M) -> 397
A106: 205 | B106: PRD00107 | C106: T NC 9.13 L CLARIS CIN DOU 60G | D106: TINTURAS | E106: =VLOOKUP(B106,Cadastro!#REF!,6,FALSE) ->  | F106: 0 | H106: =SUMIF(Lote!$A:$M,$H$1&"-"&$B106,Lote!$M:$M) -> 0 | I106: =SUMIF(Lote!$A:$M,$I$1&"-"&$B106,Lote!$M:$M) -> 0 | J106: =SUMIF(Lote!$A:$M,$J$1&"-"&$B106,Lote!$M:$M) -> 0
A107: 206 | B107: PRD00108 | C107: T NC 9.3 L MT CL DOUR 60G | D107: TINTURAS | E107: =VLOOKUP(B107,Cadastro!#REF!,6,FALSE) ->  | F107: 0 | H107: =SUMIF(Lote!$A:$M,$H$1&"-"&$B107,Lote!$M:$M) -> 0 | I107: =SUMIF(Lote!$A:$M,$I$1&"-"&$B107,Lote!$M:$M) -> 0 | J107: =SUMIF(Lote!$A:$M,$J$1&"-"&$B107,Lote!$M:$M) -> 0
A108: 207 | B108: PRD00109 | C108: T NC 9.31 L MT CL BEGE ACZ 60G | D108: TINTURAS | E108: =VLOOKUP(B108,Cadastro!#REF!,6,FALSE) ->  | F108: 0 | H108: =SUMIF(Lote!$A:$M,$H$1&"-"&$B108,Lote!$M:$M) -> 0 | I108: =SUMIF(Lote!$A:$M,$I$1&"-"&$B108,Lote!$M:$M) -> 0 | J108: =SUMIF(Lote!$A:$M,$J$1&"-"&$B108,Lote!$M:$M) -> 0
A109: 208 | B109: PRD00110 | C109: T NC 90.01 PRATA 60G | D109: TINTURAS | E109: =VLOOKUP(B109,Cadastro!#REF!,6,FALSE) ->  | F109: 48 | H109: =SUMIF(Lote!$A:$M,$H$1&"-"&$B109,Lote!$M:$M) -> 0 | I109: =SUMIF(Lote!$A:$M,$I$1&"-"&$B109,Lote!$M:$M) -> 0 | J109: =SUMIF(Lote!$A:$M,$J$1&"-"&$B109,Lote!$M:$M) -> 48
A110: 209 | B110: PRD00111 | C110: TONAL NC 1.0 PRETO 60G | D110: TINTURAS | E110: =VLOOKUP(B110,Cadastro!#REF!,6,FALSE) ->  | F110: 0 | H110: =SUMIF(Lote!$A:$M,$H$1&"-"&$B110,Lote!$M:$M) -> 0 | I110: =SUMIF(Lote!$A:$M,$I$1&"-"&$B110,Lote!$M:$M) -> 0 | J110: =SUMIF(Lote!$A:$M,$J$1&"-"&$B110,Lote!$M:$M) -> 0
A111: 210 | B111: PRD00112 | C111: TONAL NC 3.0 CAST ESC 60G | D111: TINTURAS | E111: =VLOOKUP(B111,Cadastro!#REF!,6,FALSE) ->  | F111: 0 | H111: =SUMIF(Lote!$A:$M,$H$1&"-"&$B111,Lote!$M:$M) -> 0 | I111: =SUMIF(Lote!$A:$M,$I$1&"-"&$B111,Lote!$M:$M) -> 0 | J111: =SUMIF(Lote!$A:$M,$J$1&"-"&$B111,Lote!$M:$M) -> 0
A112: 211 | B112: PRD00113 | C112: TONAL NC 4.0 CAST MD 60G | D112: TINTURAS | E112: =VLOOKUP(B112,Cadastro!#REF!,6,FALSE) ->  | F112: 0 | H112: =SUMIF(Lote!$A:$M,$H$1&"-"&$B112,Lote!$M:$M) -> 0 | I112: =SUMIF(Lote!$A:$M,$I$1&"-"&$B112,Lote!$M:$M) -> 0 | J112: =SUMIF(Lote!$A:$M,$J$1&"-"&$B112,Lote!$M:$M) -> 0
A113: 212 | B113: PRD00114 | C113: TONAL NC 5.0 CAST CL 60G | D113: TINTURAS | E113: =VLOOKUP(B113,Cadastro!#REF!,6,FALSE) ->  | F113: 0 | H113: =SUMIF(Lote!$A:$M,$H$1&"-"&$B113,Lote!$M:$M) -> 0 | I113: =SUMIF(Lote!$A:$M,$I$1&"-"&$B113,Lote!$M:$M) -> 0 | J113: =SUMIF(Lote!$A:$M,$J$1&"-"&$B113,Lote!$M:$M) -> 0
A114: 213 | B114: PRD00115 | C114: TONAL NC 5.34 CAST DO ACOB 60G | D114: TINTURAS | E114: =VLOOKUP(B114,Cadastro!#REF!,6,FALSE) ->  | F114: 0 | H114: =SUMIF(Lote!$A:$M,$H$1&"-"&$B114,Lote!$M:$M) -> 0 | I114: =SUMIF(Lote!$A:$M,$I$1&"-"&$B114,Lote!$M:$M) -> 0 | J114: =SUMIF(Lote!$A:$M,$J$1&"-"&$B114,Lote!$M:$M) -> 0
A115: 214 | B115: PRD00116 | C115: TONAL NC 6.0 L ESC 60G | D115: TINTURAS | E115: =VLOOKUP(B115,Cadastro!#REF!,6,FALSE) ->  | F115: 0 | H115: =SUMIF(Lote!$A:$M,$H$1&"-"&$B115,Lote!$M:$M) -> 0 | I115: =SUMIF(Lote!$A:$M,$I$1&"-"&$B115,Lote!$M:$M) -> 0 | J115: =SUMIF(Lote!$A:$M,$J$1&"-"&$B115,Lote!$M:$M) -> 0
A116: 215 | B116: PRD00117 | C116: TONAL NC 6.1 L ESC ACZ 60G | D116: TINTURAS | E116: =VLOOKUP(B116,Cadastro!#REF!,6,FALSE) ->  | F116: 0 | H116: =SUMIF(Lote!$A:$M,$H$1&"-"&$B116,Lote!$M:$M) -> 0 | I116: =SUMIF(Lote!$A:$M,$I$1&"-"&$B116,Lote!$M:$M) -> 0 | J116: =SUMIF(Lote!$A:$M,$J$1&"-"&$B116,Lote!$M:$M) -> 0
A117: 216 | B117: PRD00118 | C117: TONAL NC 6.41 MARROM 60G | D117: TINTURAS | E117: =VLOOKUP(B117,Cadastro!#REF!,6,FALSE) ->  | F117: 0 | H117: =SUMIF(Lote!$A:$M,$H$1&"-"&$B117,Lote!$M:$M) -> 0 | I117: =SUMIF(Lote!$A:$M,$I$1&"-"&$B117,Lote!$M:$M) -> 0 | J117: =SUMIF(Lote!$A:$M,$J$1&"-"&$B117,Lote!$M:$M) -> 0
A118: 217 | B118: PRD00119 | C118: TONAL NC 6.7 CHOCOLATE 60G | D118: TINTURAS | E118: =VLOOKUP(B118,Cadastro!#REF!,6,FALSE) ->  | F118: 0 | H118: =SUMIF(Lote!$A:$M,$H$1&"-"&$B118,Lote!$M:$M) -> 0 | I118: =SUMIF(Lote!$A:$M,$I$1&"-"&$B118,Lote!$M:$M) -> 0 | J118: =SUMIF(Lote!$A:$M,$J$1&"-"&$B118,Lote!$M:$M) -> 0
A119: 218 | B119: PRD00120 | C119: TONAL NC 66.46 CEREJA 60G | D119: TINTURAS | E119: =VLOOKUP(B119,Cadastro!#REF!,6,FALSE) ->  | F119: 0 | H119: =SUMIF(Lote!$A:$M,$H$1&"-"&$B119,Lote!$M:$M) -> 0 | I119: =SUMIF(Lote!$A:$M,$I$1&"-"&$B119,Lote!$M:$M) -> 0 | J119: =SUMIF(Lote!$A:$M,$J$1&"-"&$B119,Lote!$M:$M) -> 0
A120: 219 | B120: PRD00121 | C120: TONAL NC 7.0 L MD 60G | D120: TINTURAS | E120: =VLOOKUP(B120,Cadastro!#REF!,6,FALSE) ->  | F120: 0 | H120: =SUMIF(Lote!$A:$M,$H$1&"-"&$B120,Lote!$M:$M) -> 0 | I120: =SUMIF(Lote!$A:$M,$I$1&"-"&$B120,Lote!$M:$M) -> 0 | J120: =SUMIF(Lote!$A:$M,$J$1&"-"&$B120,Lote!$M:$M) -> 0
A121: 220 | B121: PRD00122 | C121: TONAL NC 7.3 L MD DOUR 60G | D121: TINTURAS | E121: =VLOOKUP(B121,Cadastro!#REF!,6,FALSE) ->  | F121: 0 | H121: =SUMIF(Lote!$A:$M,$H$1&"-"&$B121,Lote!$M:$M) -> 0 | I121: =SUMIF(Lote!$A:$M,$I$1&"-"&$B121,Lote!$M:$M) -> 0 | J121: =SUMIF(Lote!$A:$M,$J$1&"-"&$B121,Lote!$M:$M) -> 0
A122: 221 | B122: PRD00123 | C122: TONAL NC 7.66 L MD VER INT 60G | D122: TINTURAS | E122: =VLOOKUP(B122,Cadastro!#REF!,6,FALSE) ->  | F122: 0 | H122: =SUMIF(Lote!$A:$M,$H$1&"-"&$B122,Lote!$M:$M) -> 0 | I122: =SUMIF(Lote!$A:$M,$I$1&"-"&$B122,Lote!$M:$M) -> 0 | J122: =SUMIF(Lote!$A:$M,$J$1&"-"&$B122,Lote!$M:$M) -> 0
A123: 222 | B123: PRD00124 | C123: TONAL NC 7.7 CHOCOLATE CL 60G | D123: TINTURAS | E123: =VLOOKUP(B123,Cadastro!#REF!,6,FALSE) ->  | F123: 0 | H123: =SUMIF(Lote!$A:$M,$H$1&"-"&$B123,Lote!$M:$M) -> 0 | I123: =SUMIF(Lote!$A:$M,$I$1&"-"&$B123,Lote!$M:$M) -> 0 | J123: =SUMIF(Lote!$A:$M,$J$1&"-"&$B123,Lote!$M:$M) -> 0
A124: 223 | B124: PRD00125 | C124: TONAL NC 7.89 L MD PEROLA 60G | D124: TINTURAS | E124: =VLOOKUP(B124,Cadastro!#REF!,6,FALSE) ->  | F124: 0 | H124: =SUMIF(Lote!$A:$M,$H$1&"-"&$B124,Lote!$M:$M) -> 0 | I124: =SUMIF(Lote!$A:$M,$I$1&"-"&$B124,Lote!$M:$M) -> 0 | J124: =SUMIF(Lote!$A:$M,$J$1&"-"&$B124,Lote!$M:$M) -> 0
A125: 224 | B125: PRD00126 | C125: COMP HID KAIKEN UNI 500ML | D125: KAIKEN | E125: =VLOOKUP(B125,Cadastro!#REF!,6,FALSE) ->  | F125: 47 | H125: =SUMIF(Lote!$A:$M,$H$1&"-"&$B125,Lote!$M:$M) -> 47 | I125: =SUMIF(Lote!$A:$M,$I$1&"-"&$B125,Lote!$M:$M) -> 0 | J125: =SUMIF(Lote!$A:$M,$J$1&"-"&$B125,Lote!$M:$M) -> 0
A126: 225 | B126: PRD00127 | C126: SH KAIKEN UNIQUE 500ML | D126: KAIKEN | E126: =VLOOKUP(B126,Cadastro!#REF!,6,FALSE) ->  | F126: 7 | H126: =SUMIF(Lote!$A:$M,$H$1&"-"&$B126,Lote!$M:$M) -> 7 | I126: =SUMIF(Lote!$A:$M,$I$1&"-"&$B126,Lote!$M:$M) -> 0 | J126: =SUMIF(Lote!$A:$M,$J$1&"-"&$B126,Lote!$M:$M) -> 0
A127: 226 | B127: PRD00128 | C127: COMP HID KAIKEN UNIQUE 2KG | D127: KAIKEN | E127: =VLOOKUP(B127,Cadastro!#REF!,6,FALSE) ->  | F127: 0 | H127: =SUMIF(Lote!$A:$M,$H$1&"-"&$B127,Lote!$M:$M) -> 0 | I127: =SUMIF(Lote!$A:$M,$I$1&"-"&$B127,Lote!$M:$M) -> 0 | J127: =SUMIF(Lote!$A:$M,$J$1&"-"&$B127,Lote!$M:$M) -> 0
A128: 227 | B128: PRD00129 | C128: SH KAIKEN UNIQUE 1L | D128: KAIKEN | E128: =VLOOKUP(B128,Cadastro!#REF!,6,FALSE) ->  | F128: 0 | H128: =SUMIF(Lote!$A:$M,$H$1&"-"&$B128,Lote!$M:$M) -> 0 | I128: =SUMIF(Lote!$A:$M,$I$1&"-"&$B128,Lote!$M:$M) -> 0 | J128: =SUMIF(Lote!$A:$M,$J$1&"-"&$B128,Lote!$M:$M) -> 0
A129: 228 | B129: PRD00130 | C129: SOS BRILHO SUPREMO NH 1KG | D129: SOS | E129: =VLOOKUP(B129,Cadastro!#REF!,6,FALSE) ->  | F129: 85 | H129: =SUMIF(Lote!$A:$M,$H$1&"-"&$B129,Lote!$M:$M) -> 85 | I129: =SUMIF(Lote!$A:$M,$I$1&"-"&$B129,Lote!$M:$M) -> 0 | J129: =SUMIF(Lote!$A:$M,$J$1&"-"&$B129,Lote!$M:$M) -> 0
A130: 229 | B130: PRD00131 | C130: SOS EQUILIBRIO ABS NH 1KG | D130: SOS | E130: =VLOOKUP(B130,Cadastro!#REF!,6,FALSE) ->  | F130: 16 | H130: =SUMIF(Lote!$A:$M,$H$1&"-"&$B130,Lote!$M:$M) -> 16 | I130: =SUMIF(Lote!$A:$M,$I$1&"-"&$B130,Lote!$M:$M) -> 0 | J130: =SUMIF(Lote!$A:$M,$J$1&"-"&$B130,Lote!$M:$M) -> 0
A131: 230 | B131: PRD00132 | C131: SOS NUTRICAO INTEN NH 1KG | D131: SOS | E131: =VLOOKUP(B131,Cadastro!#REF!,6,FALSE) ->  | F131: =SUM(G131:J131) -> 50 | H131: =SUMIF(Lote!$A:$M,$H$1&"-"&$B131,Lote!$M:$M) -> 50 | I131: =SUMIF(Lote!$A:$M,$I$1&"-"&$B131,Lote!$M:$M) -> 0 | J131: =SUMIF(Lote!$A:$M,$J$1&"-"&$B131,Lote!$M:$M) -> 0
A132: 231 | B132: PRD00133 | C132: SOS PLAST CAPILAR 15ML 2 PARES | D132: SOS | E132: =VLOOKUP(B132,Cadastro!#REF!,6,FALSE) ->  | F132: 0 | H132: =SUMIF(Lote!$A:$M,$H$1&"-"&$B132,Lote!$M:$M) -> 0 | I132: =SUMIF(Lote!$A:$M,$I$1&"-"&$B132,Lote!$M:$M) -> 0 | J132: =SUMIF(Lote!$A:$M,$J$1&"-"&$B132,Lote!$M:$M) -> 0
A133: 232 | B133: PRD00134 | C133: SOS PLAST CAPILAR 250ML 2UN | D133: SOS | E133: =VLOOKUP(B133,Cadastro!#REF!,6,FALSE) ->  | F133: 68 | H133: =SUMIF(Lote!$A:$M,$H$1&"-"&$B133,Lote!$M:$M) -> 68 | I133: =SUMIF(Lote!$A:$M,$I$1&"-"&$B133,Lote!$M:$M) -> 0 | J133: =SUMIF(Lote!$A:$M,$J$1&"-"&$B133,Lote!$M:$M) -> 0
A134: 233 | B134: PRD00135 | C134: SOS PLAST CAPILAR 15ML 24UN | D134: SOS | E134: =VLOOKUP(B134,Cadastro!#REF!,6,FALSE) ->  | F134: 0 | H134: =SUMIF(Lote!$A:$M,$H$1&"-"&$B134,Lote!$M:$M) -> 0 | I134: =SUMIF(Lote!$A:$M,$I$1&"-"&$B134,Lote!$M:$M) -> 0 | J134: =SUMIF(Lote!$A:$M,$J$1&"-"&$B134,Lote!$M:$M) -> 0
A135: 234 | B135: PRD00136 | C135: SOS ULTR VITAMINADO NH 2KG | D135: SOS | E135: =VLOOKUP(B135,Cadastro!#REF!,6,FALSE) ->  | F135: 18 | H135: =SUMIF(Lote!$A:$M,$H$1&"-"&$B135,Lote!$M:$M) -> 0 | I135: =SUMIF(Lote!$A:$M,$I$1&"-"&$B135,Lote!$M:$M) -> 18 | J135: =SUMIF(Lote!$A:$M,$J$1&"-"&$B135,Lote!$M:$M) -> 0
A136: 235 | B136: PRD00137 | C136: CR ALISANTE SODIO OSMIUM 2KG | D136: OSMIIUM | E136: =VLOOKUP(B136,Cadastro!#REF!,6,FALSE) ->  | F136: 0 | H136: =SUMIF(Lote!$A:$M,$H$1&"-"&$B136,Lote!$M:$M) -> 0 | I136: =SUMIF(Lote!$A:$M,$I$1&"-"&$B136,Lote!$M:$M) -> 0 | J136: =SUMIF(Lote!$A:$M,$J$1&"-"&$B136,Lote!$M:$M) -> 0
A137: 236 | B137: PRD00138 | C137: CR BASE CALCIO OSMIUM 1KG | D137: OSMIIUM | E137: =VLOOKUP(B137,Cadastro!#REF!,6,FALSE) ->  | F137: 49 | H137: =SUMIF(Lote!$A:$M,$H$1&"-"&$B137,Lote!$M:$M) -> 0 | I137: =SUMIF(Lote!$A:$M,$I$1&"-"&$B137,Lote!$M:$M) -> 49 | J137: =SUMIF(Lote!$A:$M,$J$1&"-"&$B137,Lote!$M:$M) -> 0
A138: 237 | B138: PRD00139 | C138: CR BASE CALCIO OSMIUM 2KG | D138: OSMIIUM | E138: =VLOOKUP(B138,Cadastro!#REF!,6,FALSE) ->  | F138: 31 | H138: =SUMIF(Lote!$A:$M,$H$1&"-"&$B138,Lote!$M:$M) -> 31 | I138: =SUMIF(Lote!$A:$M,$I$1&"-"&$B138,Lote!$M:$M) -> 0 | J138: =SUMIF(Lote!$A:$M,$J$1&"-"&$B138,Lote!$M:$M) -> 0
A139: 238 | B139: PRD00140 | C139: CR HID E NEUT OSM FLEX 1KG | D139: OSMIIUM | E139: =VLOOKUP(B139,Cadastro!#REF!,6,FALSE) ->  | F139: 33 | H139: =SUMIF(Lote!$A:$M,$H$1&"-"&$B139,Lote!$M:$M) -> 33 | I139: =SUMIF(Lote!$A:$M,$I$1&"-"&$B139,Lote!$M:$M) -> 0 | J139: =SUMIF(Lote!$A:$M,$J$1&"-"&$B139,Lote!$M:$M) -> 0
A140: 239 | B140: PRD00141 | C140: CR PROTETOR OSM FLEX 100G | D140: OSMIIUM | E140: =VLOOKUP(B140,Cadastro!#REF!,6,FALSE) ->  | F140: 3 | H140: =SUMIF(Lote!$A:$M,$H$1&"-"&$B140,Lote!$M:$M) -> 3 | I140: =SUMIF(Lote!$A:$M,$I$1&"-"&$B140,Lote!$M:$M) -> 0 | J140: =SUMIF(Lote!$A:$M,$J$1&"-"&$B140,Lote!$M:$M) -> 0
A141: 240 | B141: PRD00142 | C141: LIQUIDO ATIVADOR OSMIUM 1L | D141: OSMIIUM | E141: =VLOOKUP(B141,Cadastro!#REF!,6,FALSE) ->  | F141: 27 | H141: =SUMIF(Lote!$A:$M,$H$1&"-"&$B141,Lote!$M:$M) -> 27 | I141: =SUMIF(Lote!$A:$M,$I$1&"-"&$B141,Lote!$M:$M) -> 0 | J141: =SUMIF(Lote!$A:$M,$J$1&"-"&$B141,Lote!$M:$M) -> 0
A142: 241 | B142: PRD00143 | C142: REGULADOR DE FORCA OSMIUM 1KG | D142: OSMIIUM | E142: =VLOOKUP(B142,Cadastro!#REF!,6,FALSE) ->  | F142: 0 | H142: =SUMIF(Lote!$A:$M,$H$1&"-"&$B142,Lote!$M:$M) -> 0 | I142: =SUMIF(Lote!$A:$M,$I$1&"-"&$B142,Lote!$M:$M) -> 0 | J142: =SUMIF(Lote!$A:$M,$J$1&"-"&$B142,Lote!$M:$M) -> 0
A143: 242 | B143: PRD00144 | C143: SH INDICADOR OSMIUM FL 1L | D143: OSMIIUM | E143: =VLOOKUP(B143,Cadastro!#REF!,6,FALSE) ->  | F143: 115 | H143: =SUMIF(Lote!$A:$M,$H$1&"-"&$B143,Lote!$M:$M) -> 115 | I143: =SUMIF(Lote!$A:$M,$I$1&"-"&$B143,Lote!$M:$M) -> 0 | J143: =SUMIF(Lote!$A:$M,$J$1&"-"&$B143,Lote!$M:$M) -> 0
A144: 243 | B144: PRD00145 | C144: SOS ADVANCED OS FLEX 300ML | D144: OSMIIUM | E144: =VLOOKUP(B144,Cadastro!#REF!,6,FALSE) ->  | F144: 55 | H144: =SUMIF(Lote!$A:$M,$H$1&"-"&$B144,Lote!$M:$M) -> 55 | I144: =SUMIF(Lote!$A:$M,$I$1&"-"&$B144,Lote!$M:$M) -> 0 | J144: =SUMIF(Lote!$A:$M,$J$1&"-"&$B144,Lote!$M:$M) -> 0
A145: 244 | B145: PRD00146 | C145: FLUIDO FIX CACHO OSM 300ML | D145: OSMIIUM | E145: =VLOOKUP(B145,Cadastro!#REF!,6,FALSE) ->  | F145: 87 | H145: =SUMIF(Lote!$A:$M,$H$1&"-"&$B145,Lote!$M:$M) -> 87 | I145: =SUMIF(Lote!$A:$M,$I$1&"-"&$B145,Lote!$M:$M) -> 0 | J145: =SUMIF(Lote!$A:$M,$J$1&"-"&$B145,Lote!$M:$M) -> 0
A146: 245 | B146: PRD00147 | C146: GLOSS MOD CACHOS OSM 300ML | D146: OSMIIUM | E146: =VLOOKUP(B146,Cadastro!#REF!,6,FALSE) ->  | F146: 19 | H146: =SUMIF(Lote!$A:$M,$H$1&"-"&$B146,Lote!$M:$M) -> 19 | I146: =SUMIF(Lote!$A:$M,$I$1&"-"&$B146,Lote!$M:$M) -> 0 | J146: =SUMIF(Lote!$A:$M,$J$1&"-"&$B146,Lote!$M:$M) -> 0
A147: 246 | B147: PRD00148 | C147: MASC COND CACHOS OSM 300ML | D147: OSMIIUM | E147: =VLOOKUP(B147,Cadastro!#REF!,6,FALSE) ->  | F147: 102 | H147: =SUMIF(Lote!$A:$M,$H$1&"-"&$B147,Lote!$M:$M) -> 102 | I147: =SUMIF(Lote!$A:$M,$I$1&"-"&$B147,Lote!$M:$M) -> 0 | J147: =SUMIF(Lote!$A:$M,$J$1&"-"&$B147,Lote!$M:$M) -> 0
A148: 247 | B148: PRD00149 | C148: SH CACHOS OSMIUM 300ML | D148: OSMIIUM | E148: =VLOOKUP(B148,Cadastro!#REF!,6,FALSE) ->  | F148: 21 | H148: =SUMIF(Lote!$A:$M,$H$1&"-"&$B148,Lote!$M:$M) -> 21 | I148: =SUMIF(Lote!$A:$M,$I$1&"-"&$B148,Lote!$M:$M) -> 0 | J148: =SUMIF(Lote!$A:$M,$J$1&"-"&$B148,Lote!$M:$M) -> 0
A149: 248 | B149: PRD00150 | C149: FLUIDO FIX CACHO OSM 500ML | D149: OSMIIUM | E149: =VLOOKUP(B149,Cadastro!#REF!,6,FALSE) ->  | F149: 305 | H149: =SUMIF(Lote!$A:$M,$H$1&"-"&$B149,Lote!$M:$M) -> 152 | I149: =SUMIF(Lote!$A:$M,$I$1&"-"&$B149,Lote!$M:$M) -> 153 | J149: =SUMIF(Lote!$A:$M,$J$1&"-"&$B149,Lote!$M:$M) -> 0
A150: 249 | B150: PRD00151 | C150: GLOSS MOD CACHOS OSM 500ML | D150: OSMIIUM | E150: =VLOOKUP(B150,Cadastro!#REF!,6,FALSE) ->  | F150: 420 | H150: =SUMIF(Lote!$A:$M,$H$1&"-"&$B150,Lote!$M:$M) -> 189 | I150: =SUMIF(Lote!$A:$M,$I$1&"-"&$B150,Lote!$M:$M) -> 231 | J150: =SUMIF(Lote!$A:$M,$J$1&"-"&$B150,Lote!$M:$M) -> 0
A151: 250 | B151: PRD00152 | C151: MASC COND CACHOS OSM 500ML | D151: OSMIIUM | E151: =VLOOKUP(B151,Cadastro!#REF!,6,FALSE) ->  | F151: 121 | H151: =SUMIF(Lote!$A:$M,$H$1&"-"&$B151,Lote!$M:$M) -> 121 | I151: =SUMIF(Lote!$A:$M,$I$1&"-"&$B151,Lote!$M:$M) -> 0 | J151: =SUMIF(Lote!$A:$M,$J$1&"-"&$B151,Lote!$M:$M) -> 0
A152: 251 | B152: PRD00153 | C152: SH CACHOS OSMIUM 500ML | D152: OSMIIUM | E152: =VLOOKUP(B152,Cadastro!#REF!,6,FALSE) ->  | F152: 317 | H152: =SUMIF(Lote!$A:$M,$H$1&"-"&$B152,Lote!$M:$M) -> 121 | I152: =SUMIF(Lote!$A:$M,$I$1&"-"&$B152,Lote!$M:$M) -> 196 | J152: =SUMIF(Lote!$A:$M,$J$1&"-"&$B152,Lote!$M:$M) -> 0
A153: 252 | B153: PRD00154 | C153: BRUMA STYLING SP LUM 240ML | D153: LUMMEM | E153: =VLOOKUP(B153,Cadastro!#REF!,6,FALSE) ->  | F153: 0 | H153: =SUMIF(Lote!$A:$M,$H$1&"-"&$B153,Lote!$M:$M) -> 0 | I153: =SUMIF(Lote!$A:$M,$I$1&"-"&$B153,Lote!$M:$M) -> 0 | J153: =SUMIF(Lote!$A:$M,$J$1&"-"&$B153,Lote!$M:$M) -> 0
A154: 253 | B154: PRD00155 | C154: FLUIDO REPAR LUMMEM 60ML | D154: LUMMEM | E154: =VLOOKUP(B154,Cadastro!#REF!,6,FALSE) ->  | F154: 15 | H154: =SUMIF(Lote!$A:$M,$H$1&"-"&$B154,Lote!$M:$M) -> 0 | I154: =SUMIF(Lote!$A:$M,$I$1&"-"&$B154,Lote!$M:$M) -> 15 | J154: =SUMIF(Lote!$A:$M,$J$1&"-"&$B154,Lote!$M:$M) -> 0
A155: 254 | B155: PRD00156 | C155: HAIR SPRAY LUMMEN 400ML | D155: LUMMEM | E155: =VLOOKUP(B155,Cadastro!#REF!,6,FALSE) ->  | F155: 0 | H155: =SUMIF(Lote!$A:$M,$H$1&"-"&$B155,Lote!$M:$M) -> 0 | I155: =SUMIF(Lote!$A:$M,$I$1&"-"&$B155,Lote!$M:$M) -> 0 | J155: =SUMIF(Lote!$A:$M,$J$1&"-"&$B155,Lote!$M:$M) -> 0
A156: 255 | B156: PRD00157 | C156: NUTRA BRILHO SP LUMM 240ML | D156: LUMMEM | E156: =VLOOKUP(B156,Cadastro!#REF!,6,FALSE) ->  | F156: 0 | H156: =SUMIF(Lote!$A:$M,$H$1&"-"&$B156,Lote!$M:$M) -> 0 | I156: =SUMIF(Lote!$A:$M,$I$1&"-"&$B156,Lote!$M:$M) -> 0 | J156: =SUMIF(Lote!$A:$M,$J$1&"-"&$B156,Lote!$M:$M) -> 0
A157: 256 | B157: PRD00158 | C157: POMADA MODELAD LUMMEM 100G | D157: LUMMEM | E157: =VLOOKUP(B157,Cadastro!#REF!,6,FALSE) ->  | F157: 0 | H157: =SUMIF(Lote!$A:$M,$H$1&"-"&$B157,Lote!$M:$M) -> 0 | I157: =SUMIF(Lote!$A:$M,$I$1&"-"&$B157,Lote!$M:$M) -> 0 | J157: =SUMIF(Lote!$A:$M,$J$1&"-"&$B157,Lote!$M:$M) -> 0
A158: 257 | B158: PRD00159 | C158: PRIMER CAPILAR LUMM 250ML | D158: LUMMEM | E158: =VLOOKUP(B158,Cadastro!#REF!,6,FALSE) ->  | F158: 0 | H158: =SUMIF(Lote!$A:$M,$H$1&"-"&$B158,Lote!$M:$M) -> 0 | I158: =SUMIF(Lote!$A:$M,$I$1&"-"&$B158,Lote!$M:$M) -> 0 | J158: =SUMIF(Lote!$A:$M,$J$1&"-"&$B158,Lote!$M:$M) -> 0
A159: 258 | B159: PRD00160 | C159: PRIMER CAPILAR LUMM 120ML | D159: LUMMEM | E159: =VLOOKUP(B159,Cadastro!#REF!,6,FALSE) ->  | F159: 109 | H159: =SUMIF(Lote!$A:$M,$H$1&"-"&$B159,Lote!$M:$M) -> 109 | I159: =SUMIF(Lote!$A:$M,$I$1&"-"&$B159,Lote!$M:$M) -> 0 | J159: =SUMIF(Lote!$A:$M,$J$1&"-"&$B159,Lote!$M:$M) -> 0
A160: 259 | B160: PRD00161 | C160: COND ALECRIM E MENTA M 5L | D160: MAISON | E160: =VLOOKUP(B160,Cadastro!#REF!,6,FALSE) ->  | F160: 17 | H160: =SUMIF(Lote!$A:$M,$H$1&"-"&$B160,Lote!$M:$M) -> 17 | I160: =SUMIF(Lote!$A:$M,$I$1&"-"&$B160,Lote!$M:$M) -> 0 | J160: =SUMIF(Lote!$A:$M,$J$1&"-"&$B160,Lote!$M:$M) -> 0
A161: 260 | B161: PRD00162 | C161: COND BRILHO PEROLA E MAIS 5L | D161: MAISON | E161: =VLOOKUP(B161,Cadastro!#REF!,6,FALSE) ->  | F161: 51 | H161: =SUMIF(Lote!$A:$M,$H$1&"-"&$B161,Lote!$M:$M) -> 7 | I161: =SUMIF(Lote!$A:$M,$I$1&"-"&$B161,Lote!$M:$M) -> 44 | J161: =SUMIF(Lote!$A:$M,$J$1&"-"&$B161,Lote!$M:$M) -> 0
A162: 261 | B162: PRD00163 | C162: COND ERVA DOCE MAISON 5L | D162: MAISON | E162: =VLOOKUP(B162,Cadastro!#REF!,6,FALSE) ->  | F162: 8 | H162: =SUMIF(Lote!$A:$M,$H$1&"-"&$B162,Lote!$M:$M) -> 8 | I162: =SUMIF(Lote!$A:$M,$I$1&"-"&$B162,Lote!$M:$M) -> 0 | J162: =SUMIF(Lote!$A:$M,$J$1&"-"&$B162,Lote!$M:$M) -> 0
A163: 262 | B163: PRD00164 | C163: COND MANT KARITE MAISON 5L | D163: MAISON | E163: =VLOOKUP(B163,Cadastro!#REF!,6,FALSE) ->  | F163: 12 | H163: =SUMIF(Lote!$A:$M,$H$1&"-"&$B163,Lote!$M:$M) -> 12 | I163: =SUMIF(Lote!$A:$M,$I$1&"-"&$B163,Lote!$M:$M) -> 0 | J163: =SUMIF(Lote!$A:$M,$J$1&"-"&$B163,Lote!$M:$M) -> 0
A164: 263 | B164: PRD00165 | C164: COND MARACUJA MEL MAISO 5L | D164: MAISON | E164: =VLOOKUP(B164,Cadastro!#REF!,6,FALSE) ->  | F164: 17 | H164: =SUMIF(Lote!$A:$M,$H$1&"-"&$B164,Lote!$M:$M) -> 17 | I164: =SUMIF(Lote!$A:$M,$I$1&"-"&$B164,Lote!$M:$M) -> 0 | J164: =SUMIF(Lote!$A:$M,$J$1&"-"&$B164,Lote!$M:$M) -> 0
A165: 264 | B165: PRD00166 | C165: SH ALECRIM E MENTA MAIS 5L | D165: MAISON | E165: =VLOOKUP(B165,Cadastro!#REF!,6,FALSE) ->  | F165: 26 | H165: =SUMIF(Lote!$A:$M,$H$1&"-"&$B165,Lote!$M:$M) -> 5 | I165: =SUMIF(Lote!$A:$M,$I$1&"-"&$B165,Lote!$M:$M) -> 21 | J165: =SUMIF(Lote!$A:$M,$J$1&"-"&$B165,Lote!$M:$M) -> 0
A166: 265 | B166: PRD00167 | C166: SH BRILHO PEROLA MAIS 5L | D166: MAISON | E166: =VLOOKUP(B166,Cadastro!#REF!,6,FALSE) ->  | F166: 55 | H166: =SUMIF(Lote!$A:$M,$H$1&"-"&$B166,Lote!$M:$M) -> 8 | I166: =SUMIF(Lote!$A:$M,$I$1&"-"&$B166,Lote!$M:$M) -> 47 | J166: =SUMIF(Lote!$A:$M,$J$1&"-"&$B166,Lote!$M:$M) -> 0
A167: 266 | B167: PRD00168 | C167: SH ERVA DOCE M SEM SAL 5L | D167: MAISON | E167: =VLOOKUP(B167,Cadastro!#REF!,6,FALSE) ->  | F167: 0 | H167: =SUMIF(Lote!$A:$M,$H$1&"-"&$B167,Lote!$M:$M) -> 0 | I167: =SUMIF(Lote!$A:$M,$I$1&"-"&$B167,Lote!$M:$M) -> 0 | J167: =SUMIF(Lote!$A:$M,$J$1&"-"&$B167,Lote!$M:$M) -> 0
A168: 267 | B168: PRD00169 | C168: SH ERVA DOCE MAISON 5L | D168: MAISON | E168: =VLOOKUP(B168,Cadastro!#REF!,6,FALSE) ->  | F168: 8 | H168: =SUMIF(Lote!$A:$M,$H$1&"-"&$B168,Lote!$M:$M) -> 8 | I168: =SUMIF(Lote!$A:$M,$I$1&"-"&$B168,Lote!$M:$M) -> 0 | J168: =SUMIF(Lote!$A:$M,$J$1&"-"&$B168,Lote!$M:$M) -> 0
A169: 268 | B169: PRD00170 | C169: SH MANT KARITE MAISON 5L | D169: MAISON | E169: =VLOOKUP(B169,Cadastro!#REF!,6,FALSE) ->  | F169: 6 | H169: =SUMIF(Lote!$A:$M,$H$1&"-"&$B169,Lote!$M:$M) -> 6 | I169: =SUMIF(Lote!$A:$M,$I$1&"-"&$B169,Lote!$M:$M) -> 0 | J169: =SUMIF(Lote!$A:$M,$J$1&"-"&$B169,Lote!$M:$M) -> 0
A170: 269 | B170: PRD00171 | C170: SH MARACUJA E MEL MAISON 5L | D170: MAISON | E170: =VLOOKUP(B170,Cadastro!#REF!,6,FALSE) ->  | F170: 21 | H170: =SUMIF(Lote!$A:$M,$H$1&"-"&$B170,Lote!$M:$M) -> 21 | I170: =SUMIF(Lote!$A:$M,$I$1&"-"&$B170,Lote!$M:$M) -> 0 | J170: =SUMIF(Lote!$A:$M,$J$1&"-"&$B170,Lote!$M:$M) -> 0
A171: 270 | B171: PRD00172 | C171: COMPOSTO OL OJON M PLU 1L | D171: MAISON | E171: =VLOOKUP(B171,Cadastro!#REF!,6,FALSE) ->  | F171: 4 | H171: =SUMIF(Lote!$A:$M,$H$1&"-"&$B171,Lote!$M:$M) -> 4 | I171: =SUMIF(Lote!$A:$M,$I$1&"-"&$B171,Lote!$M:$M) -> 0 | J171: =SUMIF(Lote!$A:$M,$J$1&"-"&$B171,Lote!$M:$M) -> 0
A172: 271 | B172: PRD00173 | C172: FINAL OL OJON M PLU 500ML | D172: MAISON | E172: =VLOOKUP(B172,Cadastro!#REF!,6,FALSE) ->  | F172: 10 | H172: =SUMIF(Lote!$A:$M,$H$1&"-"&$B172,Lote!$M:$M) -> 10 | I172: =SUMIF(Lote!$A:$M,$I$1&"-"&$B172,Lote!$M:$M) -> 0 | J172: =SUMIF(Lote!$A:$M,$J$1&"-"&$B172,Lote!$M:$M) -> 0
A173: 272 | B173: PRD00174 | C173: SH REPARA OL OJON M PLU 1L | D173: MAISON | E173: =VLOOKUP(B173,Cadastro!#REF!,6,FALSE) ->  | F173: 57 | H173: =SUMIF(Lote!$A:$M,$H$1&"-"&$B173,Lote!$M:$M) -> 7 | I173: =SUMIF(Lote!$A:$M,$I$1&"-"&$B173,Lote!$M:$M) -> 50 | J173: =SUMIF(Lote!$A:$M,$J$1&"-"&$B173,Lote!$M:$M) -> 0
A174: 273 | B174: PRD00175 | C174: MASC COND CAB COL EFFE 1L | D174: EFFECTUS | E174: =VLOOKUP(B174,Cadastro!#REF!,6,FALSE) ->  | F174: 4 | H174: =SUMIF(Lote!$A:$M,$H$1&"-"&$B174,Lote!$M:$M) -> 4 | I174: =SUMIF(Lote!$A:$M,$I$1&"-"&$B174,Lote!$M:$M) -> 0 | J174: =SUMIF(Lote!$A:$M,$J$1&"-"&$B174,Lote!$M:$M) -> 0
A175: 274 | B175: PRD00176 | C175: MASC COND EFFECTUS 150ML | D175: EFFECTUS | E175: =VLOOKUP(B175,Cadastro!#REF!,6,FALSE) ->  | F175: 945 | H175: =SUMIF(Lote!$A:$M,$H$1&"-"&$B175,Lote!$M:$M) -> 945 | I175: =SUMIF(Lote!$A:$M,$I$1&"-"&$B175,Lote!$M:$M) -> 0 | J175: =SUMIF(Lote!$A:$M,$J$1&"-"&$B175,Lote!$M:$M) -> 0
A176: 275 | B176: PRD00177 | C176: MASC COND EFFECTUS 500ML | D176: EFFECTUS | E176: =VLOOKUP(B176,Cadastro!#REF!,6,FALSE) ->  | F176: 53 | H176: =SUMIF(Lote!$A:$M,$H$1&"-"&$B176,Lote!$M:$M) -> 53 | I176: =SUMIF(Lote!$A:$M,$I$1&"-"&$B176,Lote!$M:$M) -> 0 | J176: =SUMIF(Lote!$A:$M,$J$1&"-"&$B176,Lote!$M:$M) -> 0
A177: 276 | B177: PRD00178 | C177: SH CAB TIN EFFECTUS 150ML | D177: EFFECTUS | E177: =VLOOKUP(B177,Cadastro!#REF!,6,FALSE) ->  | F177: 1224 | H177: =SUMIF(Lote!$A:$M,$H$1&"-"&$B177,Lote!$M:$M) -> 1224 | I177: =SUMIF(Lote!$A:$M,$I$1&"-"&$B177,Lote!$M:$M) -> 0 | J177: =SUMIF(Lote!$A:$M,$J$1&"-"&$B177,Lote!$M:$M) -> 0
A178: 277 | B178: PRD00179 | C178: SH CAB TIN EFFECTUS 1L | D178: EFFECTUS | E178: =VLOOKUP(B178,Cadastro!#REF!,6,FALSE) ->  | F178: 92 | H178: =SUMIF(Lote!$A:$M,$H$1&"-"&$B178,Lote!$M:$M) -> 39 | I178: =SUMIF(Lote!$A:$M,$I$1&"-"&$B178,Lote!$M:$M) -> 53 | J178: =SUMIF(Lote!$A:$M,$J$1&"-"&$B178,Lote!$M:$M) -> 0
A179: 278 | B179: PRD00180 | C179: SH CAB TIN EFFECTUS 500ML | D179: EFFECTUS | E179: =VLOOKUP(B179,Cadastro!#REF!,6,FALSE) ->  | F179: 42 | H179: =SUMIF(Lote!$A:$M,$H$1&"-"&$B179,Lote!$M:$M) -> 42 | I179: =SUMIF(Lote!$A:$M,$I$1&"-"&$B179,Lote!$M:$M) -> 0 | J179: =SUMIF(Lote!$A:$M,$J$1&"-"&$B179,Lote!$M:$M) -> 0
A180: 279 | B180: PRD00181 | C180: OLEO ARGAN PRO REP 60ML | D180: PRO REPAIR | E180: =VLOOKUP(B180,Cadastro!#REF!,6,FALSE) ->  | F180: 0 | H180: =SUMIF(Lote!$A:$M,$H$1&"-"&$B180,Lote!$M:$M) -> 0 | I180: =SUMIF(Lote!$A:$M,$I$1&"-"&$B180,Lote!$M:$M) -> 0 | J180: =SUMIF(Lote!$A:$M,$J$1&"-"&$B180,Lote!$M:$M) -> 0
A181: 280 | B181: PRD00182 | C181: PH CONTROL PROREPAIR 500ML | D181: PRO REPAIR | E181: =VLOOKUP(B181,Cadastro!#REF!,6,FALSE) ->  | F181: 127 | H181: =SUMIF(Lote!$A:$M,$H$1&"-"&$B181,Lote!$M:$M) -> 127 | I181: =SUMIF(Lote!$A:$M,$I$1&"-"&$B181,Lote!$M:$M) -> 0 | J181: =SUMIF(Lote!$A:$M,$J$1&"-"&$B181,Lote!$M:$M) -> 0
A182: 281 | B182: PRD00183 | C182: FLUIDO FINA MONOI PR 500ML | D182: MONOI | E182: =VLOOKUP(B182,Cadastro!#REF!,6,FALSE) ->  | F182: 97 | H182: =SUMIF(Lote!$A:$M,$H$1&"-"&$B182,Lote!$M:$M) -> 97 | I182: =SUMIF(Lote!$A:$M,$I$1&"-"&$B182,Lote!$M:$M) -> 0 | J182: =SUMIF(Lote!$A:$M,$J$1&"-"&$B182,Lote!$M:$M) -> 0
A183: 282 | B183: PRD00184 | C183: REDUTOR VOLUME MONOI PR 1L | D183: MONOI | E183: =VLOOKUP(B183,Cadastro!#REF!,6,FALSE) ->  | F183: 176 | H183: =SUMIF(Lote!$A:$M,$H$1&"-"&$B183,Lote!$M:$M) -> 4 | I183: =SUMIF(Lote!$A:$M,$I$1&"-"&$B183,Lote!$M:$M) -> 172 | J183: =SUMIF(Lote!$A:$M,$J$1&"-"&$B183,Lote!$M:$M) -> 0
A184: 283 | B184: PRD00185 | C184: REDUTOR VOLUME MONOI PR 500ML | D184: MONOI | E184: =VLOOKUP(B184,Cadastro!#REF!,6,FALSE) ->  | F184: 188 | H184: =SUMIF(Lote!$A:$M,$H$1&"-"&$B184,Lote!$M:$M) -> 188 | I184: =SUMIF(Lote!$A:$M,$I$1&"-"&$B184,Lote!$M:$M) -> 0 | J184: =SUMIF(Lote!$A:$M,$J$1&"-"&$B184,Lote!$M:$M) -> 0
A185: 284 | B185: PRD00186 | C185: SH DEEP COLD MONOI PR 1L | D185: MONOI | E185: =VLOOKUP(B185,Cadastro!#REF!,6,FALSE) ->  | F185: 24 | H185: =SUMIF(Lote!$A:$M,$H$1&"-"&$B185,Lote!$M:$M) -> 24 | I185: =SUMIF(Lote!$A:$M,$I$1&"-"&$B185,Lote!$M:$M) -> 0 | J185: =SUMIF(Lote!$A:$M,$J$1&"-"&$B185,Lote!$M:$M) -> 0
A186: 285 | B186: PRD00187 | C186: SH DEEP COLD MONOI PR 500ML | D186: MONOI | E186: =VLOOKUP(B186,Cadastro!#REF!,6,FALSE) ->  | F186: 43 | H186: =SUMIF(Lote!$A:$M,$H$1&"-"&$B186,Lote!$M:$M) -> 43 | I186: =SUMIF(Lote!$A:$M,$I$1&"-"&$B186,Lote!$M:$M) -> 0 | J186: =SUMIF(Lote!$A:$M,$J$1&"-"&$B186,Lote!$M:$M) -> 0
A187: 286 | B187: PRD00188 | C187: MONOI TAHITI PR 60ML | D187: MONOI | E187: =VLOOKUP(B187,Cadastro!#REF!,6,FALSE) ->  | F187: 0 | H187: =SUMIF(Lote!$A:$M,$H$1&"-"&$B187,Lote!$M:$M) -> 0 | I187: =SUMIF(Lote!$A:$M,$I$1&"-"&$B187,Lote!$M:$M) -> 0 | J187: =SUMIF(Lote!$A:$M,$J$1&"-"&$B187,Lote!$M:$M) -> 0
A188: 287 | B188: PRD00189 | C188: REHIDRATANTE MONOI PR 500ML | D188: MONOI | E188: =VLOOKUP(B188,Cadastro!#REF!,6,FALSE) ->  | F188: 105 | H188: =SUMIF(Lote!$A:$M,$H$1&"-"&$B188,Lote!$M:$M) -> 105 | I188: =SUMIF(Lote!$A:$M,$I$1&"-"&$B188,Lote!$M:$M) -> 0 | J188: =SUMIF(Lote!$A:$M,$J$1&"-"&$B188,Lote!$M:$M) -> 0
A189: 288 | B189: PRD00190 | C189: SH ALTA HID MONOI PR 500ML | D189: MONOI | E189: =VLOOKUP(B189,Cadastro!#REF!,6,FALSE) ->  | F189: 73 | H189: =SUMIF(Lote!$A:$M,$H$1&"-"&$B189,Lote!$M:$M) -> 73 | I189: =SUMIF(Lote!$A:$M,$I$1&"-"&$B189,Lote!$M:$M) -> 0 | J189: =SUMIF(Lote!$A:$M,$J$1&"-"&$B189,Lote!$M:$M) -> 0
A190: 289 | B190: PRD00191 | C190: COMP FINAL SHOCK3 60G | D190: SHOCK3 | E190: =VLOOKUP(B190,Cadastro!#REF!,6,FALSE) ->  | F190: 93 | H190: =SUMIF(Lote!$A:$M,$H$1&"-"&$B190,Lote!$M:$M) -> 93 | I190: =SUMIF(Lote!$A:$M,$I$1&"-"&$B190,Lote!$M:$M) -> 0 | J190: =SUMIF(Lote!$A:$M,$J$1&"-"&$B190,Lote!$M:$M) -> 0
A191: 290 | B191: PRD00192 | C191: KIT SHOCK3 PR 120ML | D191: SHOCK3 | E191: =VLOOKUP(B191,Cadastro!#REF!,6,FALSE) ->  | F191: 70 | H191: =SUMIF(Lote!$A:$M,$H$1&"-"&$B191,Lote!$M:$M) -> 70 | I191: =SUMIF(Lote!$A:$M,$I$1&"-"&$B191,Lote!$M:$M) -> 0 | J191: =SUMIF(Lote!$A:$M,$J$1&"-"&$B191,Lote!$M:$M) -> 0
A192: 291 | B192: PRD00193 | C192: REGEN NUT SHOCK3 OMEG 500G | D192: SHOCK3 | E192: =VLOOKUP(B192,Cadastro!#REF!,6,FALSE) ->  | F192: 590 | H192: =SUMIF(Lote!$A:$M,$H$1&"-"&$B192,Lote!$M:$M) -> 218 | I192: =SUMIF(Lote!$A:$M,$I$1&"-"&$B192,Lote!$M:$M) -> 372 | J192: =SUMIF(Lote!$A:$M,$J$1&"-"&$B192,Lote!$M:$M) -> 0
A193: 292 | B193: PRD00194 | C193: REGEN SHOCK3 OL COCO 300ML | D193: SHOCK3 | E193: =VLOOKUP(B193,Cadastro!#REF!,6,FALSE) ->  | F193: 48 | H193: =SUMIF(Lote!$A:$M,$H$1&"-"&$B193,Lote!$M:$M) -> 48 | I193: =SUMIF(Lote!$A:$M,$I$1&"-"&$B193,Lote!$M:$M) -> 0 | J193: =SUMIF(Lote!$A:$M,$J$1&"-"&$B193,Lote!$M:$M) -> 0
A194: 293 | B194: PRD00195 | C194: REGENER SHOCK3 P REP 1L | D194: SHOCK3 | E194: =VLOOKUP(B194,Cadastro!#REF!,6,FALSE) ->  | F194: 3 | H194: =SUMIF(Lote!$A:$M,$H$1&"-"&$B194,Lote!$M:$M) -> 3 | I194: =SUMIF(Lote!$A:$M,$I$1&"-"&$B194,Lote!$M:$M) -> 0 | J194: =SUMIF(Lote!$A:$M,$J$1&"-"&$B194,Lote!$M:$M) -> 0
A195: 294 | B195: PRD00196 | C195: REGENER SHOCK3 P REP 300ML | D195: SHOCK3 | E195: =VLOOKUP(B195,Cadastro!#REF!,6,FALSE) ->  | F195: =SUM(G195:J195) -> 268 | H195: =SUMIF(Lote!$A:$M,$H$1&"-"&$B195,Lote!$M:$M) -> 2 | I195: =SUMIF(Lote!$A:$M,$I$1&"-"&$B195,Lote!$M:$M) -> 266 | J195: =SUMIF(Lote!$A:$M,$J$1&"-"&$B195,Lote!$M:$M) -> 0
A196: 295 | B196: PRD00197 | C196: REGENER SHOCK3 P REP 500ML | D196: SHOCK3 | E196: =VLOOKUP(B196,Cadastro!#REF!,6,FALSE) ->  | F196: 531 | H196: =SUMIF(Lote!$A:$M,$H$1&"-"&$B196,Lote!$M:$M) -> 149 | I196: =SUMIF(Lote!$A:$M,$I$1&"-"&$B196,Lote!$M:$M) -> 382 | J196: =SUMIF(Lote!$A:$M,$J$1&"-"&$B196,Lote!$M:$M) -> 0
A197: 296 | B197: PRD00198 | C197: SH SHOCK3 OL COCO PR 300ML | D197: SHOCK3 | E197: =VLOOKUP(B197,Cadastro!#REF!,6,FALSE) ->  | F197: 365 | H197: =SUMIF(Lote!$A:$M,$H$1&"-"&$B197,Lote!$M:$M) -> 156 | I197: =SUMIF(Lote!$A:$M,$I$1&"-"&$B197,Lote!$M:$M) -> 209 | J197: =SUMIF(Lote!$A:$M,$J$1&"-"&$B197,Lote!$M:$M) -> 0
A198: 297 | B198: PRD00199 | C198: SH SHOCK3 PRO REPAIR 1L | D198: SHOCK3 | E198: =VLOOKUP(B198,Cadastro!#REF!,6,FALSE) ->  | F198: 2 | H198: =SUMIF(Lote!$A:$M,$H$1&"-"&$B198,Lote!$M:$M) -> 2 | I198: =SUMIF(Lote!$A:$M,$I$1&"-"&$B198,Lote!$M:$M) -> 0 | J198: =SUMIF(Lote!$A:$M,$J$1&"-"&$B198,Lote!$M:$M) -> 0
A199: 298 | B199: PRD00200 | C199: SH SHOCK3 PRO REPAIR 300ML | D199: SHOCK3 | E199: =VLOOKUP(B199,Cadastro!#REF!,6,FALSE) ->  | F199: 298 | H199: =SUMIF(Lote!$A:$M,$H$1&"-"&$B199,Lote!$M:$M) -> 31 | I199: =SUMIF(Lote!$A:$M,$I$1&"-"&$B199,Lote!$M:$M) -> 267 | J199: =SUMIF(Lote!$A:$M,$J$1&"-"&$B199,Lote!$M:$M) -> 0
A200: 299 | B200: PRD00201 | C200: SH SHOCK3 PRO REPAIR 500ML | D200: SHOCK3 | E200: =VLOOKUP(B200,Cadastro!#REF!,6,FALSE) ->  | F200: 484 | H200: =SUMIF(Lote!$A:$M,$H$1&"-"&$B200,Lote!$M:$M) -> 323 | I200: =SUMIF(Lote!$A:$M,$I$1&"-"&$B200,Lote!$M:$M) -> 161 | J200: =SUMIF(Lote!$A:$M,$J$1&"-"&$B200,Lote!$M:$M) -> 0
... 59 more rows

Sheet Lote
A1: unificar | B1: CodSeq | C1: Data | D1: LocalEstoque | E1: CodigoInterno | F1: CodigoProduto | G1: NomeProduto | H1: LinhaProduto | I1: CodigoLote | J1: LoteProduto | K1: DataValidade | L1: ValidadeMesAno | M1: EstoqueProduto | N1: StatusValidade
A2: Venda-PRD00201 | B2: 375 | C2: 21/04/2025 | D2: Venda | E2: 299 | F2: PRD00201 | G2: SH SHOCK3 PRO REPAIR 500ML | H2: SHOCK3 | I2: 277 | J2: 0901250002 | K2: 31/01/2028 | L2: 01/28 | M2: 214
A3: Venda-PRD00193 | B3: 374 | C3: 21/04/2025 | D3: Venda | E3: 291 | F3: PRD00193 | G3: REGEN NUT SHOCK3 OMEG 500G | H3: SHOCK3 | I3: 276 | J3: 0210240002 | K3: 31/10/2027 | L3: 10/27 | M3: 218
A4: Retrabalho-PRD00102 | B4: 304 | C4: 17/04/2025 | D4: Retrabalho | E4: 200 | F4: PRD00102 | G4: T NC 9.00 L CLARIS NATURAL 60G | H4: TINTURAS | I4: 275 | J4: A141818 | K4: 31/01/2025 | L4: 01/25 | M4: 76
A5: Retrabalho-PRD00110 | B5: 303 | C5: 17/04/2025 | D5: Retrabalho | E5: 208 | F5: PRD00110 | G5: T NC 90.01 PRATA 60G | H5: TINTURAS | I5: 274 | J5: 13032014 | K5: 31/03/2023 | L5: 03/23 | M5: 48
A6: Retrabalho-PRD00040 | B6: 302 | C6: 17/04/2025 | D6: Retrabalho | E6: 138 | F6: PRD00040 | G6: T NC 11.11 L CLARIS PL INT 60G | H6: TINTURAS | I6: 273 | J6: 081120220013 | K6: 08/11/2024 | L6: 11/24 | M6: 179
A7: Reposição-PRD00053 | B7: 301 | C7: 17/04/2025 | D7: Reposição | E7: 151 | F7: PRD00053 | G7: T NC 5.0 CAST CL ESSENCE 60G | H7: TINTURAS | I7: 272 | J7: 2006240014 | K7: 30/06/2027 | L7: 06/27 | M7: 216
A8: Reposição-PRD00047 | B8: 300 | C8: 17/04/2025 | D8: Reposição | E8: 145 | F8: PRD00047 | G8: T NC 3.0 CAST ESC ESSENCE 60G | H8: TINTURAS | I8: 271 | J8: 0406240005 | K8: 30/06/2026 | L8: 06/26 | M8: 245
A9: Reposição-PRD00036 | B9: 299 | C9: 17/04/2025 | D9: Reposição | E9: 134 | F9: PRD00036 | G9: T NC 1.0 PRETO ESSENCE 60G | H9: TINTURAS | I9: 270 | J9: 19122023159 | K9: 19/12/2026 | L9: 12/26 | M9: 100
A10: Retrabalho-PRD00106 | B10: 298 | C10: 17/04/2025 | D10: Retrabalho | E10: 204 | F10: PRD00106 | G10: T NC 9.1 L MT CL ACZ 60G | H10: TINTURAS | I10: 269 | J10: 03112022008 | K10: 03/11/2024 | L10: 11/24 | M10: 397
A11: Retrabalho-PRD00103 | B11: 297 | C11: 17/04/2025 | D11: Retrabalho | E11: 201 | F11: PRD00103 | G11: T NC 9.01 L CLARIS ACZ 60G | H11: TINTURAS | I11: 268 | J11: 2701210026 | K11: 31/01/2024 | L11: 01/24 | M11: 237
A12: Retrabalho-PRD00096 | B12: 296 | C12: 17/04/2025 | D12: Retrabalho | E12: 194 | F12: PRD00096 | G12: T NC 8.26 MARSALA 60G | H12: TINTURAS | I12: 267 | J12: 0911202200116 | K12: 09/11/2024 | L12: 11/24 | M12: 38
A13: Reposição-PRD00096 | B13: 295 | C13: 17/04/2025 | D13: Reposição | E13: 194 | F13: PRD00096 | G13: T NC 8.26 MARSALA 60G | H13: TINTURAS | I13: 266 | J13: 23062023052 | K13: 31/12/2026 | L13: 12/26 | M13: 949
A14: Retrabalho-PRD00095 | B14: 294 | C14: 17/04/2025 | D14: Retrabalho | E14: 193 | F14: PRD00095 | G14: T NC 8.1 L CL ACZ 60G | H14: TINTURAS | I14: 265 | J14: 071120220011 | K14: 07/11/2024 | L14: 11/24 | M14: 439
A15: Retrabalho-PRD00089 | B15: 293 | C15: 17/04/2025 | D15: Retrabalho | E15: 187 | F15: PRD00089 | G15: T NC 7.7 CHOCOLATE CL 60G | H15: TINTURAS | I15: 264 | J15: 081120220014 | K15: 08/11/2024 | L15: 11/24 | M15: 112
A16: Retrabalho-PRD00081 | B16: 292 | C16: 17/04/2025 | D16: Retrabalho | E16: 179 | F16: PRD00081 | G16: T NC 7.3 L MD DOUR 60G | H16: TINTURAS | I16: 263 | J16: 01112022006 | K16: 01/11/2024 | L16: 11/24 | M16: 279
A17: Retrabalho-PRD00075 | B17: 291 | C17: 17/04/2025 | D17: Retrabalho | E17: 173 | F17: PRD00075 | G17: T NC 6.7 CHOCOLATE ESSENCE 60G | H17: TINTURAS | I17: 262 | J17: 31102023005 | K17: 31/10/2024 | L17: 10/24 | M17: 206
A18: Retrabalho-PRD00074 | B18: 290 | C18: 17/04/2025 | D18: Retrabalho | E18: 172 | F18: PRD00074 | G18: T NC 6.66 L ESC VERM INT 60G | H18: TINTURAS | I18: 261 | J18: 111120220020 | K18: 11/11/2024 | L18: 11/24 | M18: 593
A19: Reposição-PRD00073 | B19: 289 | C19: 17/04/2025 | D19: Reposição | E19: 171 | F19: PRD00073 | G19: T NC 6.64 L ESC VER ACOB 60G | H19: TINTURAS | I19: 260 | J19: K141518 | K19: 31/01/2027 | L19: 01/27 | M19: 45
A20: Retrabalho-PRD00054 | B20: 288 | C20: 17/04/2025 | D20: Retrabalho | E20: 152 | F20: PRD00054 | G20: T NC 5.1 CAST CL ACZ ESSEN 60G | H20: TINTURAS | I20: 259 | J20: 0911202200115 | K20: 09/11/2024 | L20: 11/24 | M20: 133
A21: Retrabalho-PRD00050 | B21: 287 | C21: 17/04/2025 | D21: Retrabalho | E21: 148 | F21: PRD00050 | G21: T NC 4.5 CAST MD ACAJU 60G | H21: TINTURAS | I21: 258 | J21: 3009210047 | K21: 30/09/2024 | L21: 09/24 | M21: 1493
A22: Venda-PRD00252 | B22: 286 | C22: 17/04/2025 | D22: Venda | E22: 309 | F22: PRD00252 | G22: MASC KAIKEN ONIX ÓLEO DE AVELÃ 1LT | H22: KAIKEN | I22: 257 | J22: 10072023059 | K22: 10/07/2026 | L22: 07/26 | M22: 31
A23: Venda-PRD00250 | B23: 285 | C23: 17/04/2025 | D23: Venda | E23: 307 | F23: PRD00250 | G23: MASC KAIKEN ONIX ARGILA VERDE 1LT | H23: KAIKEN | I23: 256 | J23: 10072023058 | K23: 10/07/2026 | L23: 07/26 | M23: 58
A24: Venda-PRD00249 | B24: 284 | C24: 17/04/2025 | D24: Venda | E24: 306 | F24: PRD00249 | G24: SH KAIKEN ONIX 1LT | H24: KAIKEN | I24: 255 | J24: 1204240017 | K24: 30/04/2027 | L24: 04/27 | M24: 12
A25: Venda-PRD00251 | B25: 283 | C25: 17/04/2025 | D25: Venda | E25: 308 | F25: PRD00251 | G25: MASC KAIKEN ONIX TUTANO E CENOURA 1LT | H25: KAIKEN | I25: 254 | J25: 10072023060 | K25: 10/07/2026 | L25: 07/26 | M25: 58
A26: Venda-PRD00034 | B26: 282 | C26: 17/04/2025 | D26: Venda | E26: 132 | F26: PRD00034 | G26: KIT ULTRAPLEX NUTRA COLOR | H26: ULTRAPLEX | I26: 253 | J26: 15012024177 | K26: 31/01/2027 | L26: 01/27 | M26: 220
A27: Venda-PRD00194 | B27: 281 | C27: 17/04/2025 | D27: Venda | E27: 292 | F27: PRD00194 | G27: REGEN SHOCK3 OL COCO 300ML | H27: SHOCK3 | I27: 252 | J27: 0305240005 | K27: 31/05/2027 | L27: 05/27 | M27: 48
A28: Venda-PRD00198 | B28: 280 | C28: 17/04/2025 | D28: Venda | E28: 296 | F28: PRD00198 | G28: SH SHOCK3 OL COCO PR 300ML | H28: SHOCK3 | I28: 251 | J28: 0612240006 | K28: 31/12/2027 | L28: 12/27 | M28: 155
A29: Venda-PRD00198 | B29: 279 | C29: 17/04/2025 | D29: Venda | E29: 296 | F29: PRD00198 | G29: SH SHOCK3 OL COCO PR 300ML | H29: SHOCK3 | I29: 250 | J29: 0305240006 | K29: 31/05/2028 | L29: 05/28 | M29: 1
A30: Venda-PRD00203 | B30: 278 | C30: 17/04/2025 | D30: Venda | E30: 300 | F30: PRD00203 | G30: COMP DISC CONTROLTOX PR 1KG | H30: SHOCK3 | I30: 249 | J30: 0402250002 | K30: 29/02/2028 | L30: 02/28 | M30: 45
A31: Venda-PRD00204 | B31: 277 | C31: 17/04/2025 | D31: Venda | E31: 301 | F31: PRD00204 | G31: BALM CONTROLTOX PR 1L | H31: SHOCK3 | I31: 248 | J31: 05102023116 | K31: 05/10/2027 | L31: 10/27 | M31: 48
A32: Venda-PRD00144 | B32: 276 | C32: 17/04/2025 | D32: Venda | E32: 242 | F32: PRD00144 | G32: SH INDICADOR OSMIUM FL 1L | H32: OSMIIUM | I32: 247 | J32: 03052023016 | K32: 03/05/2026 | L32: 05/26 | M32: 115
A33: Venda-PRD00140 | B33: 275 | C33: 17/04/2025 | D33: Venda | E33: 238 | F33: PRD00140 | G33: CR HID E NEUT OSM FLEX 1KG | H33: OSMIIUM | I33: 246 | J33: 1111240006 | K33: 30/11/2027 | L33: 11/27 | M33: 33
A34: Venda-PRD00141 | B34: 274 | C34: 17/04/2025 | D34: Venda | E34: 239 | F34: PRD00141 | G34: CR PROTETOR OSM FLEX 100G | H34: OSMIIUM | I34: 245 | J34: 0901180028 | K34: 31/03/2027 | L34: 03/27 | M34: 3
A35: Venda-PRD00145 | B35: 273 | C35: 17/04/2025 | D35: Venda | E35: 243 | F35: PRD00145 | G35: SOS ADVANCED OS FLEX 300ML | H35: OSMIIUM | I35: 244 | J35: 27042023015 | K35: 27/04/2026 | L35: 04/26 | M35: 55
A36: Venda-PRD00142 | B36: 272 | C36: 17/04/2025 | D36: Venda | E36: 240 | F36: PRD00142 | G36: LIQUIDO ATIVADOR OSMIUM 1L | H36: OSMIIUM | I36: 243 | J36: 2003250021 | K36: 31/03/2028 | L36: 03/28 | M36: 27
A37: Venda-PRD00139 | B37: 271 | C37: 17/04/2025 | D37: Venda | E37: 237 | F37: PRD00139 | G37: CR BASE CALCIO OSMIUM 2KG | H37: OSMIIUM | I37: 242 | J37: 0602250003 | K37: 29/02/2028 | L37: 02/28 | M37: 31
A38: Venda-PRD00298 | B38: 270 | C38: 17/04/2025 | D38: Venda | E38: 355 | F38: PRD00298 | G38: CR ALISANTE SODIO OSMIUM 1KG | H38: OSMIIUM | I38: 241 | J38: 0405240078 | K38: 31/05/2026 | L38: 05/26 | M38: 7
A39: Venda-PRD00152 | B39: 269 | C39: 17/04/2025 | D39: Venda | E39: 250 | F39: PRD00152 | G39: MASC COND CACHOS OSM 500ML | H39: OSMIIUM | I39: 240 | J39: 1204240012 | K39: 30/04/2027 | L39: 04/27 | M39: 121
A40: Venda-PRD00148 | B40: 268 | C40: 17/04/2025 | D40: Venda | E40: 246 | F40: PRD00148 | G40: MASC COND CACHOS OSM 300ML | H40: OSMIIUM | I40: 239 | J40: 21122023165 | K40: 26/12/2026 | L40: 12/26 | M40: 2
A41: Venda-PRD00148 | B41: 267 | C41: 17/04/2025 | D41: Venda | E41: 246 | F41: PRD00148 | G41: MASC COND CACHOS OSM 300ML | H41: OSMIIUM | I41: 238 | J41: 1705240021 | K41: 31/05/2027 | L41: 05/27 | M41: 100
A42: Venda-PRD00001 | B42: 266 | C42: 17/04/2025 | D42: Venda | E42: 101 | F42: PRD00001 | G42: KERATIN BALM CROMAT 500ML | H42: CROMATIC | I42: 237 | J42: 2105240023 | K42: 31/05/2027 | L42: 05/27 | M42: 60
A43: Venda-PRD00003 | B43: 265 | C43: 17/04/2025 | D43: Venda | E43: 103 | F43: PRD00003 | G43: KERATIN SH CROMATIC 500ML | H43: CROMATIC | I43: 236 | J43: 13122023154 | K43: 13/12/2026 | L43: 12/26 | M43: 20
A44: Venda-PRD00254 | B44: 264 | C44: 17/04/2025 | D44: Venda | E44: 311 | F44: PRD00254 | G44: MASC COND MANUT CROM 300ML | H44: CROMATIC | I44: 235 | J44: 1207160027 | K44: 31/07/2026 | L44: 07/26 | M44: 1
A45: Venda-PRD00002 | B45: 263 | C45: 17/04/2025 | D45: Venda | E45: 102 | F45: PRD00002 | G45: KERATIN SEALING CROMATIC 500ML | H45: CROMATIC | I45: 234 | J45: 29082023094 | K45: 29/08/2027 | L45: 08/27 | M45: 75
A46: Quarentena-PRD00167 | B46: 262 | C46: 16/04/2025 | D46: Quarentena | E46: 265 | F46: PRD00167 | G46: SH BRILHO PEROLA MAIS 5L | H46: MAISON | I46: 233 | J46: 2803250003 | K46: 31/03/2028 | L46: 03/28 | M46: 22
A47: Venda-PRD00006 | B47: 261 | C47: 16/04/2025 | D47: Venda | E47: 106 | F47: PRD00006 | G47: SH DAYBYDAY CEN 500ML | H47: DAYBYDAY | I47: 232 | J47: 1509210022 | K47: 30/09/2026 | L47: 09/26 | M47: 2
A48: Venda-PRD00006 | B48: 260 | C48: 16/04/2025 | D48: Venda | E48: 106 | F48: PRD00006 | G48: SH DAYBYDAY CEN 500ML | H48: DAYBYDAY | I48: 231 | J48: 2205240028 | K48: 31/05/2028 | L48: 05/28 | M48: 9
A49: Venda-PRD00007 | B49: 259 | C49: 16/04/2025 | D49: Venda | E49: 107 | F49: PRD00007 | G49: MASC REVIT DAYBYDAY CEN 500G | H49: DAYBYDAY | I49: 230 | J49: 2608240024 | K49: 31/08/2027 | L49: 08/27 | M49: 462
A50: Venda-PRD00173 | B50: 258 | C50: 16/04/2025 | D50: Venda | E50: 271 | F50: PRD00173 | G50: FINAL OL OJON M PLU 500ML | H50: MAISON | I50: 229 | J50: 2003240031 | K50: 31/03/2027 | L50: 03/27 | M50: 10
A51: Venda-PRD00199 | B51: 233 | C51: 15/04/2025 | D51: Venda | E51: 297 | F51: PRD00199 | G51: SH SHOCK3 PRO REPAIR 1L | H51: SHOCK3 | I51: 228 | J51: 2602240017 | K51: 28/02/2027 | L51: 02/27 | M51: 2
A52: Venda-PRD00195 | B52: 232 | C52: 15/04/2025 | D52: Venda | E52: 293 | F52: PRD00195 | G52: REGENER SHOCK3 P REP 1L | H52: SHOCK3 | I52: 227 | J52: 2102240011 | K52: 28/02/2027 | L52: 02/27 | M52: 2
A53: Venda-PRD00195 | B53: 231 | C53: 15/04/2025 | D53: Venda | E53: 293 | F53: PRD00195 | G53: REGENER SHOCK3 P REP 1L | H53: SHOCK3 | I53: 226 | J53: 2204240023 | K53: 30/04/2027 | L53: 04/27 | M53: 1
A54: Venda-PRD00192 | B54: 230 | C54: 15/04/2025 | D54: Venda | E54: 290 | F54: PRD00192 | G54: KIT SHOCK3 PR 120ML | H54: SHOCK3 | I54: 225 | J54: 1909240024 | K54: 30/09/2027 | L54: 09/27 | M54: 70
A55: Venda-PRD00196 | B55: 229 | C55: 15/04/2025 | D55: Venda | E55: 294 | F55: PRD00196 | G55: REGENER SHOCK3 P REP 300ML | H55: SHOCK3 | I55: 224 | J55: 2204240023 | K55: 30/04/2027 | L55: 04/27 | M55: 2
A56: Venda-PRD00201 | B56: 228 | C56: 15/04/2025 | D56: Venda | E56: 299 | F56: PRD00201 | G56: SH SHOCK3 PRO REPAIR 500ML | H56: SHOCK3 | I56: 223 | J56: 1812240015 | K56: 31/12/2027 | L56: 12/27 | M56: 3
A57: Venda-PRD00200 | B57: 227 | C57: 15/04/2025 | D57: Venda | E57: 298 | F57: PRD00200 | G57: SH SHOCK3 PRO REPAIR 300ML | H57: SHOCK3 | I57: 222 | J57: 2703240036 | K57: 31/03/2027 | L57: 03/27 | M57: 25
A58: Venda-PRD00200 | B58: 226 | C58: 15/04/2025 | D58: Venda | E58: 298 | F58: PRD00200 | G58: SH SHOCK3 PRO REPAIR 300ML | H58: SHOCK3 | I58: 221 | J58: 0305240002 | K58: 31/05/2027 | L58: 05/27 | M58: 5
A59: Venda-PRD00200 | B59: 225 | C59: 15/04/2025 | D59: Venda | E59: 298 | F59: PRD00200 | G59: SH SHOCK3 PRO REPAIR 300ML | H59: SHOCK3 | I59: 220 | J59: 2602240017 | K59: 28/02/2027 | L59: 02/27 | M59: 1
A60: Venda-PRD00191 | B60: 224 | C60: 15/04/2025 | D60: Venda | E60: 289 | F60: PRD00191 | G60: COMP FINAL SHOCK3 60G | H60: SHOCK3 | I60: 219 | J60: 1007240009 | K60: 31/07/2027 | L60: 07/27 | M60: 93
A61: Venda-PRD00014 | B61: 223 | C61: 15/04/2025 | D61: Venda | E61: 113 | F61: PRD00014 | G61: BLINDAGEM NANO REDUT PR 1L | H61: SHOCK3 | I61: 218 | J61: 0703250003 | K61: 31/03/2028 | L61: 03/28 | M61: 81
A62: Venda-PRD00014 | B62: 222 | C62: 15/04/2025 | D62: Venda | E62: 113 | F62: PRD00014 | G62: BLINDAGEM NANO REDUT PR 1L | H62: SHOCK3 | I62: 217 | J62: 2904240030 | K62: 30/04/2027 | L62: 04/27 | M62: 1
A63: Venda-PRD00190 | B63: 221 | C63: 15/04/2025 | D63: Venda | E63: 288 | F63: PRD00190 | G63: SH ALTA HID MONOI PR 500ML | H63: MONOI | I63: 216 | J63: 1308240012 | K63: 31/08/2027 | L63: 08/27 | M63: 73
A64: Venda-PRD00184 | B64: 220 | C64: 15/04/2025 | D64: Venda | E64: 282 | F64: PRD00184 | G64: REDUTOR VOLUME MONOI PR 1L | H64: MONOI | I64: 215 | J64: 08052023020 | K64: 08/05/2026 | L64: 05/26 | M64: 4
A65: Venda-PRD00186 | B65: 219 | C65: 15/04/2025 | D65: Venda | E65: 284 | F65: PRD00186 | G65: SH DEEP COLD MONOI PR 1L | H65: MONOI | I65: 214 | J65: 1801240003 | K65: 31/01/2027 | L65: 01/27 | M65: 24
A66: Venda-PRD00185 | B66: 218 | C66: 15/04/2025 | D66: Venda | E66: 283 | F66: PRD00185 | G66: REDUTOR VOLUME MONOI PR 500ML | H66: MONOI | I66: 213 | J66: 2911240015 | K66: 30/11/2027 | L66: 11/27 | M66: 188
A67: Venda-PRD00183 | B67: 217 | C67: 15/04/2025 | D67: Venda | E67: 281 | F67: PRD00183 | G67: FLUIDO FINA MONOI PR 500ML | H67: MONOI | I67: 212 | J67: 2701250012 | K67: 31/01/2028 | L67: 01/28 | M67: 97
A68: Venda-PRD00187 | B68: 216 | C68: 15/04/2025 | D68: Venda | E68: 285 | F68: PRD00187 | G68: SH DEEP COLD MONOI PR 500ML | H68: MONOI | I68: 211 | J68: 0304240002 | K68: 30/04/2027 | L68: 04/27 | M68: 43
A69: Venda-PRD00189 | B69: 215 | C69: 15/04/2025 | D69: Venda | E69: 287 | F69: PRD00189 | G69: REHIDRATANTE MONOI PR 500ML | H69: MONOI | I69: 210 | J69: 1308240013 | K69: 31/08/2027 | L69: 08/27 | M69: 105
A70: Venda-PRD00005 | B70: 214 | C70: 15/04/2025 | D70: Venda | E70: 105 | F70: PRD00005 | G70: MASC REG DAYBYDAY CAMOM 500G | H70: DAYBYDAY | I70: 209 | J70: 0209240002 | K70: 30/09/2027 | L70: 09/27 | M70: 76
A71: Venda-PRD00004 | B71: 213 | C71: 15/04/2025 | D71: Venda | E71: 104 | F71: PRD00004 | G71: SH DAYBYDAY CAMOMILA 500ML | H71: DAYBYDAY | I71: 208 | J71: 0409240008 | K71: 30/09/2027 | L71: 09/27 | M71: 121
A72: Venda-PRD00004 | B72: 212 | C72: 15/04/2025 | D72: Venda | E72: 104 | F72: PRD00004 | G72: SH DAYBYDAY CAMOMILA 500ML | H72: DAYBYDAY | I72: 207 | J72: 07062023040 | K72: 30/09/2026 | L72: 09/26 | M72: 0
A73: Venda-PRD00009 | B73: 211 | C73: 15/04/2025 | D73: Venda | E73: 109 | F73: PRD00009 | G73: MASC COND DAYBYDAY ABAC 500G | H73: DAYBYDAY | I73: 206 | J73: 1610240011 | K73: 31/10/2027 | L73: 10/27 | M73: 144
A74: Venda-PRD00009 | B74: 210 | C74: 15/04/2025 | D74: Venda | E74: 109 | F74: PRD00009 | G74: MASC COND DAYBYDAY ABAC 500G | H74: DAYBYDAY | I74: 205 | J74: 0410240003 | K74: 31/10/2027 | L74: 10/27 | M74: 2
A75: Venda-PRD00020 | B75: 209 | C75: 15/04/2025 | D75: Venda | E75: 119 | F75: PRD00020 | G75: SH MATIZADOR NC 300ML | H75: MATIZADORES | I75: 204 | J75: 121220220010 | K75: 31/12/2026 | L75: 12/26 | M75: 267
A76: Venda-PRD00301 | B76: 208 | C76: 15/04/2025 | D76: Venda | E76: 357 | F76: PRD00301 | G76: MASCARA MATIZADORA NC 300ML | H76: MATIZADORES | I76: 203 | J76: 2403250024 | K76: 31/03/2028 | L76: 03/28 | M76: 186
A77: Venda-PRD00151 | B77: 207 | C77: 15/04/2025 | D77: Venda | E77: 249 | F77: PRD00151 | G77: GLOSS MOD CACHOS OSM 500ML | H77: OSMIIUM | I77: 202 | J77: 0208240008 | K77: 31/08/2027 | L77: 08/27 | M77: 189
A78: Venda-PRD00147 | B78: 206 | C78: 15/04/2025 | D78: Venda | E78: 245 | F78: PRD00147 | G78: GLOSS MOD CACHOS OSM 300ML | H78: OSMIIUM | I78: 201 | J78: 0305240003 | K78: 31/05/2027 | L78: 05/27 | M78: 10
A79: Venda-PRD00147 | B79: 205 | C79: 15/04/2025 | D79: Venda | E79: 245 | F79: PRD00147 | G79: GLOSS MOD CACHOS OSM 300ML | H79: OSMIIUM | I79: 200 | J79: 02012024166 | K79: 31/01/2027 | L79: 01/27 | M79: 4
A80: Venda-PRD00147 | B80: 204 | C80: 15/04/2025 | D80: Venda | E80: 245 | F80: PRD00147 | G80: GLOSS MOD CACHOS OSM 300ML | H80: OSMIIUM | I80: 199 | J80: 08052023019 | K80: 31/05/2026 | L80: 05/26 | M80: 5
A81: Venda-PRD00150 | B81: 203 | C81: 15/04/2025 | D81: Venda | E81: 248 | F81: PRD00150 | G81: FLUIDO FIX CACHO OSM 500ML | H81: OSMIIUM | I81: 198 | J81: 1212240011 | K81: 31/12/2027 | L81: 12/27 | M81: 152
A82: Venda-PRD00146 | B82: 202 | C82: 15/04/2025 | D82: Venda | E82: 244 | F82: PRD00146 | G82: FLUIDO FIX CACHO OSM 300ML | H82: OSMIIUM | I82: 197 | J82: 09112023137 | K82: 30/11/2027 | L82: 11/27 | M82: 6
A83: Venda-PRD00146 | B83: 201 | C83: 15/04/2025 | D83: Venda | E83: 244 | F83: PRD00146 | G83: FLUIDO FIX CACHO OSM 300ML | H83: OSMIIUM | I83: 196 | J83: 01092023099 | K83: 30/09/2027 | L83: 09/27 | M83: 81
A84: Venda-PRD00153 | B84: 200 | C84: 15/04/2025 | D84: Venda | E84: 251 | F84: PRD00153 | G84: SH CACHOS OSMIUM 500ML | H84: OSMIIUM | I84: 195 | J84: 1204240012 | K84: 30/04/2027 | L84: 04/27 | M84: 121
A85: Venda-PRD00149 | B85: 199 | C85: 15/04/2025 | D85: Venda | E85: 247 | F85: PRD00149 | G85: SH CACHOS OSMIUM 300ML | H85: OSMIIUM | I85: 194 | J85: 251021005 | K85: 31/03/2026 | L85: 03/26 | M85: 1
A86: Venda-PRD00149 | B86: 198 | C86: 15/04/2025 | D86: Venda | E86: 247 | F86: PRD00149 | G86: SH CACHOS OSMIUM 300ML | H86: OSMIIUM | I86: 193 | J86: 2911240071 | K86: 30/11/2026 | L86: 11/26 | M86: 6
A87: Venda-PRD00149 | B87: 197 | C87: 15/04/2025 | D87: Venda | E87: 247 | F87: PRD00149 | G87: SH CACHOS OSMIUM 300ML | H87: OSMIIUM | I87: 192 | J87: 1204240012 | K87: 30/04/2027 | L87: 04/27 | M87: 14
A88: Venda-PRD00175 | B88: 196 | C88: 15/04/2025 | D88: Venda | E88: 273 | F88: PRD00175 | G88: MASC COND CAB COL EFFE 1L | H88: EFFECTUS | I88: 191 | J88: 15012024179 | K88: 31/01/2027 | L88: 01/27 | M88: 4
A89: Venda-PRD00177 | B89: 195 | C89: 15/04/2025 | D89: Venda | E89: 275 | F89: PRD00177 | G89: MASC COND EFFECTUS 500ML | H89: EFFECTUS | I89: 190 | J89: 15012024179 | K89: 31/01/2027 | L89: 01/27 | M89: 53
A90: Venda-PRD00179 | B90: 194 | C90: 15/04/2025 | D90: Venda | E90: 277 | F90: PRD00179 | G90: SH CAB TIN EFFECTUS 1L | H90: EFFECTUS | I90: 189 | J90: 071024004 | K90: 31/10/2027 | L90: 10/27 | M90: 24
A91: Venda-PRD00179 | B91: 193 | C91: 15/04/2025 | D91: Venda | E91: 277 | F91: PRD00179 | G91: SH CAB TIN EFFECTUS 1L | H91: EFFECTUS | I91: 188 | J91: 12012024176 | K91: 31/01/2027 | L91: 01/27 | M91: 15
A92: Venda-PRD00180 | B92: 192 | C92: 15/04/2025 | D92: Venda | E92: 278 | F92: PRD00180 | G92: SH CAB TIN EFFECTUS 500ML | H92: EFFECTUS | I92: 187 | J92: 0108240003 | K92: 31/08/2027 | L92: 08/27 | M92: 42
A93: Venda-PRD00182 | B93: 191 | C93: 15/04/2025 | D93: Venda | E93: 280 | F93: PRD00182 | G93: PH CONTROL PROREPAIR 500ML | H93: PRO REPAIR | I93: 186 | J93: 0107240001 | K93: 31/07/2027 | L93: 07/27 | M93: 126
A94: Venda-PRD00182 | B94: 190 | C94: 15/04/2025 | D94: Venda | E94: 280 | F94: PRD00182 | G94: PH CONTROL PROREPAIR 500ML | H94: PRO REPAIR | I94: 185 | J94: 2608210016 | K94: 31/08/2026 | L94: 08/26 | M94: 1
A95: Venda-PRD00178 | B95: 189 | C95: 15/04/2025 | D95: Venda | E95: 276 | F95: PRD00178 | G95: SH CAB TIN EFFECTUS 150ML | H95: EFFECTUS | I95: 184 | J95: 24032023014 | K95: 31/03/2026 | L95: 03/26 | M95: 1224
A96: Venda-PRD00176 | B96: 188 | C96: 15/04/2025 | D96: Venda | E96: 274 | F96: PRD00176 | G96: MASC COND EFFECTUS 150ML | H96: EFFECTUS | I96: 183 | J96: 24032023015 | K96: 31/03/2026 | L96: 03/26 | M96: 945
A97: Venda-PRD00015 | B97: 187 | C97: 15/04/2025 | D97: Venda | E97: 114 | F97: PRD00015 | G97: SH ULTRA GLOSS PR 1L | H97: SHOCK3 | I97: 182 | J97: 2904240032 | K97: 30/04/2027 | L97: 04/27 | M97: 22
A98: Venda-PRD00193 | B98: 186 | C98: 15/04/2025 | D98: Venda | E98: 291 | F98: PRD00193 | G98: REGEN NUT SHOCK3 OMEG 500G | H98: SHOCK3 | I98: 181 | J98: 0208240009 | K98: 31/08/2027 | L98: 08/27 | M98: 0
A99: Venda-PRD00197 | B99: 185 | C99: 15/04/2025 | D99: Venda | E99: 295 | F99: PRD00197 | G99: REGENER SHOCK3 P REP 500ML | H99: SHOCK3 | I99: 180 | J99: 0612240005 | K99: 31/12/2027 | L99: 12/27 | M99: 145
A100: Venda-PRD00008 | B100: 184 | C100: 15/04/2025 | D100: Venda | E100: 108 | F100: PRD00008 | G100: SH DAYBYDAY ABAC 500ML | H100: DAYBYDAY | I100: 179 | J100: 0209240001 | K100: 30/09/2027 | L100: 09/27 | M100: 2
A101: Venda-PRD00006 | B101: 183 | C101: 15/04/2025 | D101: Venda | E101: 106 | F101: PRD00006 | G101: SH DAYBYDAY CEN 500ML | H101: DAYBYDAY | I101: 178 | J101: 0309240005 | K101: 30/09/2027 | L101: 09/27 | M101: 1
A102: Venda-PRD00126 | B102: 178 | C102: 14/04/2025 | D102: Venda | E102: 224 | F102: PRD00126 | G102: COMP HID KAIKEN UNI 500ML | H102: KAIKEN | I102: 177 | J102: 1811210006 | K102: 30/11/2026 | L102: 11/26 | M102: 47
A103: Venda-PRD00127 | B103: 177 | C103: 14/04/2025 | D103: Venda | E103: 225 | F103: PRD00127 | G103: SH KAIKEN UNIQUE 500ML | H103: KAIKEN | I103: 176 | J103: 17022023002 | K103: 28/02/2026 | L103: 02/26 | M103: 7
A104: Venda-PRD00013 | B104: 176 | C104: 14/04/2025 | D104: Venda | E104: 112 | F104: PRD00013 | G104: KIT FIBER VIT NH | H104: FIBER VIT | I104: 175 | J104: 260624019 | K104: 30/06/2026 | L104: 06/26 | M104: 54
A105: Venda-PRD00134 | B105: 175 | C105: 14/04/2025 | D105: Venda | E105: 232 | F105: PRD00134 | G105: SOS PLAST CAPILAR 250ML 2UN | H105: SOS | I105: 174 | J105: 0507240006 | K105: 31/07/2027 | L105: 07/27 | M105: 68
A106: Venda-PRD00280 | B106: 174 | C106: 14/04/2025 | D106: Venda | E106: 337 | F106: PRD00280 | G106: MASC GREEN THERAPY OJON 500 ML | H106: OJON | I106: 173 | J106: 2807170074 | K106: 31/07/2026 | L106: 07/26 | M106: 29
A107: Venda-PRD00279 | B107: 173 | C107: 14/04/2025 | D107: Venda | E107: 336 | F107: PRD00279 | G107: SH GREEN THERAPY OJON 500 ML | H107: OJON | I107: 172 | J107: 2601240016 | K107: 31/01/2027 | L107: 01/27 | M107: 54
A108: Venda-PRD00172 | B108: 172 | C108: 14/04/2025 | D108: Venda | E108: 270 | F108: PRD00172 | G108: COMPOSTO OL OJON M PLU 1L | H108: MAISON | I108: 171 | J108: 06022023001 | K108: 28/02/2026 | L108: 02/26 | M108: 4
A109: Venda-PRD00174 | B109: 171 | C109: 14/04/2025 | D109: Venda | E109: 272 | F109: PRD00174 | G109: SH REPARA OL OJON M PLU 1L | H109: MAISON | I109: 170 | J109: 2601240015 | K109: 31/01/2027 | L109: 01/27 | M109: 7
A110: Venda-PRD00262 | B110: 170 | C110: 14/04/2025 | D110: Venda | E110: 319 | F110: PRD00262 | G110: LEAVE IN DEFRIZ LUMMEM 500ML | H110: LUMMEM | I110: 169 | J110: 0609240009 | K110: 30/09/2027 | L110: 09/27 | M110: 150
A111: Venda-PRD00160 | B111: 169 | C111: 14/04/2025 | D111: Venda | E111: 258 | F111: PRD00160 | G111: PRIMER CAPILAR LUMM 120ML | H111: LUMMEM | I111: 168 | J111: 21112023147 | K111: 30/11/2026 | L111: 11/26 | M111: 109
A112: Venda-PRD00132 | B112: 168 | C112: 14/04/2025 | D112: Venda | E112: 230 | F112: PRD00132 | G112: SOS NUTRICAO INTEN NH 1KG | H112: SOS | I112: 167 | J112: 2204240021 | K112: 30/04/2027 | L112: 04/27 | M112: 50
A113: Venda-PRD00130 | B113: 167 | C113: 14/04/2025 | D113: Venda | E113: 228 | F113: PRD00130 | G113: SOS BRILHO SUPREMO NH 1KG | H113: SOS | I113: 166 | J113: 11012024174 | K113: 31/01/2027 | L113: 01/27 | M113: 85
A114: Venda-PRD00131 | B114: 166 | C114: 14/04/2025 | D114: Venda | E114: 229 | F114: PRD00131 | G114: SOS EQUILIBRIO ABS NH 1KG | H114: SOS | I114: 165 | J114: 1904240020 | K114: 30/04/2027 | L114: 04/27 | M114: 16
A115: Venda-PRD00272 | B115: 165 | C115: 14/04/2025 | D115: Venda | E115: 329 | F115: PRD00272 | G115: MASC HID OLEO ARGAN ET 500G | H115: ELEMENTOS DA TERRA | I115: 164 | J115: 0905240012 | K115: 31/05/2027 | L115: 05/27 | M115: 108
A116: Venda-PRD00271 | B116: 164 | C116: 14/04/2025 | D116: Venda | E116: 328 | F116: PRD00271 | G116: COND OLEO DE ARGAN ET 250ML | H116: ELEMENTOS DA TERRA | I116: 163 | J116: 0805240009 | K116: 31/05/2027 | L116: 05/27 | M116: 322
A117: Venda-PRD00270 | B117: 163 | C117: 14/04/2025 | D117: Venda | E117: 327 | F117: PRD00270 | G117: SH OLEO DE ARGAN ET 250ML | H117: ELEMENTOS DA TERRA | I117: 162 | J117: 1405240017 | K117: 31/05/2027 | L117: 05/27 | M117: 232
A118: Venda-PRD00284 | B118: 162 | C118: 14/04/2025 | D118: Venda | E118: 341 | F118: PRD00284 | G118: REGEN INT 4X1 ET 15ML | H118: ELEMENTOS DA TERRA | I118: 161 | J118: 2405240034 | K118: 31/05/2027 | L118: 05/27 | M118: 38
A119: Venda-PRD00278 | B119: 161 | C119: 14/04/2025 | D119: Venda | E119: 335 | F119: PRD00278 | G119: MASC EXT MANDIOC ET 500G | H119: ELEMENTOS DA TERRA | I119: 160 | J119: 1605240019 | K119: 31/05/2027 | L119: 05/27 | M119: 49
A120: Venda-PRD00277 | B120: 160 | C120: 14/04/2025 | D120: Venda | E120: 334 | F120: PRD00277 | G120: COND EXT MANDIOC ET 250ML | H120: ELEMENTOS DA TERRA | I120: 159 | J120: 0905240011 | K120: 31/05/2027 | L120: 05/27 | M120: 292
A121: Venda-PRD00277 | B121: 159 | C121: 14/04/2025 | D121: Venda | E121: 334 | F121: PRD00277 | G121: COND EXT MANDIOC ET 250ML | H121: ELEMENTOS DA TERRA | I121: 158 | J121: 0902240009 | K121: 28/02/2027 | L121: 02/27 | M121: 6
A122: Venda-PRD00276 | B122: 158 | C122: 14/04/2025 | D122: Venda | E122: 333 | F122: PRD00276 | G122: SH EXT MANDIOC ET 250ML | H122: ELEMENTOS DA TERRA | I122: 157 | J122: 1605240018 | K122: 31/05/2027 | L122: 05/27 | M122: 232
A123: Venda-PRD00275 | B123: 157 | C123: 14/04/2025 | D123: Venda | E123: 332 | F123: PRD00275 | G123: MASC OLEO DE COCO ET 500G | H123: ELEMENTOS DA TERRA | I123: 156 | J123: 070524008 | K123: 31/05/2027 | L123: 05/27 | M123: 173
A124: Venda-PRD00274 | B124: 156 | C124: 14/04/2025 | D124: Venda | E124: 331 | F124: PRD00274 | G124: COND OLEO DE COCO ET 250ML | H124: ELEMENTOS DA TERRA | I124: 155 | J124: 0705240007 | K124: 31/05/2027 | L124: 05/27 | M124: 371
A125: Venda-PRD00273 | B125: 155 | C125: 14/04/2025 | D125: Venda | E125: 330 | F125: PRD00273 | G125: SH OLEO DE COCO ET 250ML | H125: ELEMENTOS DA TERRA | I125: 154 | J125: 1005240013 | K125: 31/05/2027 | L125: 05/27 | M125: 272
A126: Venda-PRD00269 | B126: 154 | C126: 14/04/2025 | D126: Venda | E126: 326 | F126: PRD00269 | G126: MASC REST PHYS BAUN ET 500G | H126: ELEMENTOS DA TERRA | I126: 153 | J126: 1303250009 | K126: 31/03/2028 | L126: 03/28 | M126: 212
A127: Venda-PRD00267 | B127: 153 | C127: 14/04/2025 | D127: Venda | E127: 324 | F127: PRD00267 | G127: SH PHYS BAUN ET 250ML | H127: ELEMENTOS DA TERRA | I127: 152 | J127: 121220220015 | K127: 31/12/2026 | L127: 12/26 | M127: 45
A128: Venda-PRD00267 | B128: 152 | C128: 14/04/2025 | D128: Venda | E128: 324 | F128: PRD00267 | G128: SH PHYS BAUN ET 250ML | H128: ELEMENTOS DA TERRA | I128: 151 | J128: 1303250010 | K128: 31/03/2028 | L128: 03/28 | M128: 218
A129: Venda-PRD00268 | B129: 151 | C129: 14/04/2025 | D129: Venda | E129: 325 | F129: PRD00268 | G129: COND PHYS BAUN ET 250ML | H129: ELEMENTOS DA TERRA | I129: 150 | J129: 1403250012 | K129: 31/03/2028 | L129: 03/28 | M129: 202
A130: Venda-PRD00266 | B130: 150 | C130: 14/04/2025 | D130: Venda | E130: 323 | F130: PRD00266 | G130: MASC REVIT DAM LANRANJ ET 500G | H130: ELEMENTOS DA TERRA | I130: 149 | J130: 1203250007 | K130: 31/03/2028 | L130: 03/28 | M130: 140
A131: Venda-PRD00265 | B131: 149 | C131: 14/04/2025 | D131: Venda | E131: 322 | F131: PRD00265 | G131: COND DAM LARANJ ET 250ML | H131: ELEMENTOS DA TERRA | I131: 148 | J131: 121220220014 | K131: 31/12/2026 | L131: 12/26 | M131: 37
A132: Venda-PRD00265 | B132: 148 | C132: 14/04/2025 | D132: Venda | E132: 322 | F132: PRD00265 | G132: COND DAM LARANJ ET 250ML | H132: ELEMENTOS DA TERRA | I132: 147 | J132: 1403250011 | K132: 31/03/2028 | L132: 03/28 | M132: 221
A133: Venda-PRD00264 | B133: 147 | C133: 14/04/2025 | D133: Venda | E133: 321 | F133: PRD00264 | G133: SH DAM LARANJ ET 250ML | H133: ELEMENTOS DA TERRA | I133: 146 | J133: 1203250008 | K133: 31/03/2028 | L133: 03/28 | M133: 136
A134: Venda-PRD00260 | B134: 146 | C134: 14/04/2025 | D134: Venda | E134: 317 | F134: PRD00260 | G134: COMP REC OLEO MACADAMIA ET 1KG | H134: ELEMENTOS DA TERRA | I134: 145 | J134: 2503250025 | K134: 31/03/2028 | L134: 03/28 | M134: 119
A135: Venda-PRD00259 | B135: 145 | C135: 14/04/2025 | D135: Venda | E135: 316 | F135: PRD00259 | G135: COMP REC OLEO DE TUTANO ET 1KG | H135: ELEMENTOS DA TERRA | I135: 144 | J135: 2009240025 | K135: 30/09/2027 | L135: 09/27 | M135: 50
A136: Venda-PRD00261 | B136: 144 | C136: 14/04/2025 | D136: Venda | E136: 318 | F136: PRD00261 | G136: COMP REC QUERATINA ET 1KG | H136: ELEMENTOS DA TERRA | I136: 143 | J136: 3009240030 | K136: 30/09/2027 | L136: 09/27 | M136: 93
A137: Venda-PRD00257 | B137: 143 | C137: 14/04/2025 | D137: Venda | E137: 314 | F137: PRD00257 | G137: COMP REC OLEO DE ARGAN ET 1KG | H137: ELEMENTOS DA TERRA | I137: 142 | J137: 00406240004 | K137: 30/06/2027 | L137: 06/27 | M137: 15
A138: Venda-PRD00201 | B138: 142 | C138: 14/04/2025 | D138: Venda | E138: 299 | F138: PRD00201 | G138: SH SHOCK3 PRO REPAIR 500ML | H138: SHOCK3 | I138: 141 | J138: 2602240017 | K138: 28/02/2027 | L138: 02/27 | M138: 5
A139: Venda-PRD00201 | B139: 141 | C139: 14/04/2025 | D139: Venda | E139: 299 | F139: PRD00201 | G139: SH SHOCK3 PRO REPAIR 500ML | H139: SHOCK3 | I139: 140 | J139: 27072023079 | K139: 31/07/2027 | L139: 07/27 | M139: 101
A140: Venda-PRD00197 | B140: 140 | C140: 14/04/2025 | D140: Venda | E140: 295 | F140: PRD00197 | G140: REGENER SHOCK3 P REP 500ML | H140: SHOCK3 | I140: 139 | J140: 220224001 | K140: 28/02/2026 | L140: 02/26 | M140: 4
A141: Reposição-PRD00172 | B141: 138 | C141: 14/04/2025 | D141: Reposição | E141: 270 | F141: PRD00172 | G141: COMPOSTO OL OJON M PLU 1L | H141: MAISON | I141: 138 | J141: 0909240011 | K141: 30/09/2027 | L141: 09/27 | M141: 88
A142: Reposição-PRD00177 | B142: 137 | C142: 14/04/2025 | D142: Reposição | E142: 275 | F142: PRD00177 | G142: MASC COND EFFECTUS 500ML | H142: EFFECTUS | I142: 137 | J142: 0710240005 | K142: 31/10/2027 | L142: 10/27 | M142: 93
A143: Reposição-PRD00013 | B143: 136 | C143: 14/04/2025 | D143: Reposição | E143: 112 | F143: PRD00013 | G143: KIT FIBER VIT NH | H143: FIBER VIT | I143: 136 | J143: 0909240013 | K143: 30/09/2026 | L143: 09/26 | M143: 91
A144: Reposição-PRD00023 | B144: 135 | C144: 14/04/2025 | D144: Reposição | E144: 121 | F144: PRD00023 | G144: AGUA OX NC 30VOL 1L | H144: TINTURAS | I144: 135 | J144: 1611210005 | K144: 30/11/2026 | L144: 11/26 | M144: 67
A145: Reposição-PRD00023 | B145: 134 | C145: 14/04/2025 | D145: Reposição | E145: 121 | F145: PRD00023 | G145: AGUA OX NC 30VOL 1L | H145: TINTURAS | I145: 134 | J145: 1811210009 | K145: 30/11/2026 | L145: 11/26 | M145: 78
A146: Reposição-PRD00159 | B146: 133 | C146: 14/04/2025 | D146: Reposição | E146: 257 | F146: PRD00159 | G146: PRIMER CAPILAR LUMM 250ML | H146: LUMMEM | I146: 133 | J146: 0810240006 | K146: 31/10/2027 | L146: 10/27 | M146: 256
A147: Reposição-PRD00160 | B147: 132 | C147: 14/04/2025 | D147: Reposição | E147: 258 | F147: PRD00160 | G147: PRIMER CAPILAR LUMM 120ML | H147: LUMMEM | I147: 132 | J147: 0810240006 | K147: 31/10/2027 | L147: 10/27 | M147: 229
A148: Quarentena-PRD00302 | B148: 131 | C148: 12/04/2025 | D148: Quarentena | E148: 358 | F148: PRD00302 | G148: LIQUIDO ATIVADOR OSMIUM 500 | H148: OSMIUM | I148: 131 | J148: 2003250021 | K148: 31/03/2028 | L148: 03/28 | M148: 71
A149: Venda-PRD00162 | B149: 130 | C149: 12/04/2025 | D149: Venda | E149: 260 | F149: PRD00162 | G149: COND BRILHO PEROLA E MAIS 5L | H149: MAISON | I149: 130 | J149: 2611240011 | K149: 30/11/2027 | L149: 11/27 | M149: 7
A150: Venda-PRD00167 | B150: 129 | C150: 12/04/2025 | D150: Venda | E150: 265 | F150: PRD00167 | G150: SH BRILHO PEROLA MAIS 5L | H150: MAISON | I150: 129 | J150: 0602250004 | K150: 29/02/2028 | L150: 02/28 | M150: 5
A151: Venda-PRD00167 | B151: 128 | C151: 12/04/2025 | D151: Venda | E151: 265 | F151: PRD00167 | G151: SH BRILHO PEROLA MAIS 5L | H151: MAISON | I151: 128 | J151: 2702250022 | K151: 29/02/2028 | L151: 02/28 | M151: 3
A152: Venda-PRD00170 | B152: 127 | C152: 12/04/2025 | D152: Venda | E152: 268 | F152: PRD00170 | G152: SH MANT KARITE MAISON 5L | H152: MAISON | I152: 127 | J152: 2502250017 | K152: 29/02/2028 | L152: 02/28 | M152: 6
A153: Venda-PRD00169 | B153: 126 | C153: 12/04/2025 | D153: Venda | E153: 267 | F153: PRD00169 | G153: SH ERVA DOCE MAISON 5L | H153: MAISON | I153: 126 | J153: 3010240018 | K153: 31/10/2027 | L153: 10/27 | M153: 8
A154: Venda-PRD00161 | B154: 125 | C154: 12/04/2025 | D154: Venda | E154: 259 | F154: PRD00161 | G154: COND ALECRIM E MENTA M 5L | H154: MAISON | I154: 125 | J154: 10112023139 | K154: 30/11/2026 | L154: 11/26 | M154: 17
A155: Venda-PRD00248 | B155: 124 | C155: 12/04/2025 | D155: Venda | E155: 305 | F155: PRD00248 | G155: BALS COND DAY BY DAY PROF SER 2,5L | H155: DAYBYDAY | I155: 124 | J155: 2401250011 | K155: 31/01/2028 | L155: 01/28 | M155: 34
A156: Venda-PRD00163 | B156: 123 | C156: 12/04/2025 | D156: Venda | E156: 261 | F156: PRD00163 | G156: COND ERVA DOCE MAISON 5L | H156: MAISON | I156: 123 | J156: 0409240007 | K156: 30/09/2027 | L156: 09/27 | M156: 8
A157: Venda-PRD00166 | B157: 122 | C157: 12/04/2025 | D157: Venda | E157: 264 | F157: PRD00166 | G157: SH ALECRIM E MENTA MAIS 5L | H157: MAISON | I157: 122 | J157: 2901250015 | K157: 31/01/2028 | L157: 01/28 | M157: 1
A158: Venda-PRD00166 | B158: 121 | C158: 12/04/2025 | D158: Venda | E158: 264 | F158: PRD00166 | G158: SH ALECRIM E MENTA MAIS 5L | H158: MAISON | I158: 121 | J158: 0304250008 | K158: 30/04/2028 | L158: 04/28 | M158: 4
A159: Venda-PRD00010 | B159: 120 | C159: 12/04/2025 | D159: Venda | E159: 110 | F159: PRD00010 | G159: SH DAYBYDAY PROF SERV 2,5L | H159: DAYBYDAY | I159: 120 | J159: 0302250001 | K159: 29/02/2028 | L159: 02/28 | M159: 27
A160: Venda-PRD00247 | B160: 119 | C160: 12/04/2025 | D160: Venda | E160: 304 | F160: PRD00247 | G160: SH BRILHO PEROLA MAIS 2,5L | H160: MAISON | I160: 119 | J160: 1003250005 | K160: 31/03/2028 | L160: 03/28 | M160: 21
A161: Reposição-PRD00171 | B161: 118 | C161: 12/04/2025 | D161: Reposição | E161: 269 | F161: PRD00171 | G161: SH MARACUJA E MEL MAISON 5L | H161: MAISON | I161: 118 | J161: 2803250031 | K161: 31/03/2028 | L161: 03/28 | M161: 3
A162: Venda-PRD00171 | B162: 117 | C162: 12/04/2025 | D162: Venda | E162: 269 | F162: PRD00171 | G162: SH MARACUJA E MEL MAISON 5L | H162: MAISON | I162: 117 | J162: 0304250004 | K162: 30/04/2028 | L162: 04/28 | M162: 21
A163: Venda-PRD00165 | B163: 116 | C163: 12/04/2025 | D163: Venda | E163: 263 | F163: PRD00165 | G163: COND MARACUJA MEL MAISO 5L | H163: MAISON | I163: 116 | J163: 0204250005 | K163: 30/04/2028 | L163: 04/28 | M163: 4
A164: Venda-PRD00165 | B164: 115 | C164: 12/04/2025 | D164: Venda | E164: 263 | F164: PRD00165 | G164: COND MARACUJA MEL MAISO 5L | H164: MAISON | I164: 115 | J164: 0804240011 | K164: 30/04/2027 | L164: 04/27 | M164: 13
A165: Venda-PRD00164 | B165: 114 | C165: 12/04/2025 | D165: Venda | E165: 262 | F165: PRD00164 | G165: COND MANT KARITE MAISON 5L | H165: MAISON | I165: 114 | J165: 0104250003 | K165: 30/04/2028 | L165: 04/28 | M165: 6
A166: Venda-PRD00164 | B166: 113 | C166: 12/04/2025 | D166: Venda | E166: 262 | F166: PRD00164 | G166: COND MANT KARITE MAISON 5L | H166: MAISON | I166: 113 | J166: 1405240016 | K166: 31/05/2027 | L166: 05/27 | M166: 6
A167: Venda-PRD00253 | B167: 112 | C167: 12/04/2025 | D167: Venda | E167: 310 | F167: PRD00253 | G167: SH MARACUJA E MEL MAISON 2,5L | H167: MAISON | I167: 112 | J167: 2310240016 | K167: 31/10/2027 | L167: 10/27 | M167: 21
A168: Venda-PRD00256 | B168: 111 | C168: 12/04/2025 | D168: Venda | E168: 313 | F168: PRD00256 | G168: COMP REC MANTEIG KARITE ET 1KG | H168: ELEMENTOS DA TERRA | I168: 111 | J168: 0904250014 | K168: 30/04/2028 | L168: 04/28 | M168: 118
A169: Venda-PRD00258 | B169: 110 | C169: 12/04/2025 | D169: Venda | E169: 315 | F169: PRD00258 | G169: COMP REC OLEO DE OLIVA ET 1KG | H169: ELEMENTOS DA TERRA | I169: 110 | J169: 0904250016 | K169: 30/04/2028 | L169: 04/28 | M169: 119
A170: Reposição-PRD00175 | B170: 109 | C170: 12/04/2025 | D170: Reposição | E170: 273 | F170: PRD00175 | G170: MASC COND CAB COL EFFE 1L | H170: EFFECTUS | I170: 109 | J170: 0710240005 | K170: 31/10/2027 | L170: 10/27 | M170: 49
A171: Reposição-PRD00135 | B171: 108 | C171: 12/04/2025 | D171: Reposição | E171: 233 | F171: PRD00135 | G171: SOS PLAST CAPILAR 15ML 24UN | H171: SOS | I171: 108 | J171: 1601250004 | K171: 31/01/2028 | L171: 01/28 | M171: 134
A172: Reposição-PRD00134 | B172: 107 | C172: 12/04/2025 | D172: Reposição | E172: 232 | F172: PRD00134 | G172: SOS PLAST CAPILAR 250ML 2UN | H172: SOS | I172: 107 | J172: 110225008 | K172: 29/02/2028 | L172: 02/28 | M172: 83
A173: Reposição-PRD00255 | B173: 106 | C173: 12/04/2025 | D173: Reposição | E173: 312 | F173: PRD00255 | G173: RECOND FINAL CROMAT 300ML | H173: CROMATIC | I173: 106 | J173: 0311160003 | K173: 31/07/2026 | L173: 07/26 | M173: 197
A174: Reposição-PRD00284 | B174: 105 | C174: 12/04/2025 | D174: Reposição | E174: 341 | F174: PRD00284 | G174: REGEN INT 4X1 ET 15ML | H174: ELEMENTOS DA TERRA | I174: 105 | J174: 0306240002 | K174: 30/06/2027 | L174: 06/27 | M174: 44
A175: Reposição-PRD00254 | B175: 104 | C175: 12/04/2025 | D175: Reposição | E175: 311 | F175: PRD00254 | G175: MASC COND MANUT CROM 300ML | H175: CROMATIC | I175: 104 | J175: 1207160027 | K175: 31/07/2026 | L175: 07/26 | M175: 225
A176: Reposição-PRD00193 | B176: 103 | C176: 12/04/2025 | D176: Reposição | E176: 291 | F176: PRD00193 | G176: REGEN NUT SHOCK3 OMEG 500G | H176: SHOCK3 | I176: 103 | J176: 0811240009 | K176: 30/11/2027 | L176: 11/27 | M176: 234
A177: Reposição-PRD00201 | B177: 102 | C177: 12/04/2025 | D177: Reposição | E177: 299 | F177: PRD00201 | G177: SH SHOCK3 PRO REPAIR 500ML | H177: SHOCK3 | I177: 102 | J177: 1402250010 | K177: 29/02/2028 | L177: 02/28 | M177: 207
A178: Reposição-PRD00193 | B178: 101 | C178: 12/04/2025 | D178: Reposição | E178: 291 | F178: PRD00193 | G178: REGEN NUT SHOCK3 OMEG 500G | H178: SHOCK3 | I178: 101 | J178: 1102250007 | K178: 29/02/2028 | L178: 02/28 | M178: 200
A179: Reposição-PRD00193 | B179: 100 | C179: 12/04/2025 | D179: Reposição | E179: 291 | F179: PRD00193 | G179: REGEN NUT SHOCK3 OMEG 500G | H179: SHOCK3 | I179: 100 | J179: 0210240002 | K179: 31/10/2027 | L179: 10/27 | M179: 0
A180: Reposição-PRD00201 | B180: 99 | C180: 12/04/2025 | D180: Reposição | E180: 299 | F180: PRD00201 | G180: SH SHOCK3 PRO REPAIR 500ML | H180: SHOCK3 | I180: 99 | J180: 0901250002 | K180: 31/01/2028 | L180: 01/28 | M180: 0
A181: Reposição-PRD00128 | B181: 98 | C181: 12/04/2025 | D181: Reposição | E181: 226 | F181: PRD00128 | G181: COMP HID KAIKEN UNIQUE 2KG | H181: KAIKEN | I181: 98 | J181: 0912240007 | K181: 31/12/2027 | L181: 12/27 | M181: 51
A182: Reposição-PRD00204 | B182: 97 | C182: 12/04/2025 | D182: Reposição | E182: 301 | F182: PRD00204 | G182: BALM CONTROLTOX PR 1L | H182: SHOCK3 | I182: 97 | J182: B2101210021 | K182: 31/12/2026 | L182: 12/26 | M182: 4
A183: Reposição-PRD00204 | B183: 96 | C183: 12/04/2025 | D183: Reposição | E183: 301 | F183: PRD00204 | G183: BALM CONTROLTOX PR 1L | H183: SHOCK3 | I183: 96 | J183: 05102023116 | K183: 31/10/2027 | L183: 10/27 | M183: 16
A184: Reposição-PRD00129 | B184: 95 | C184: 12/04/2025 | D184: Reposição | E184: 227 | F184: PRD00129 | G184: SH KAIKEN UNIQUE 1L | H184: KAIKEN | I184: 95 | J184: 111224010 | K184: 31/12/2027 | L184: 12/27 | M184: 51
A185: Reposição-PRD00127 | B185: 94 | C185: 12/04/2025 | D185: Reposição | E185: 225 | F185: PRD00127 | G185: SH KAIKEN UNIQUE 500ML | H185: KAIKEN | I185: 94 | J185: 1204240017 | K185: 30/04/2027 | L185: 04/27 | M185: 38
A186: Reposição-PRD00129 | B186: 93 | C186: 12/04/2025 | D186: Reposição | E186: 227 | F186: PRD00129 | G186: SH KAIKEN UNIQUE 1L | H186: KAIKEN | I186: 93 | J186: 120420240017 | K186: 30/04/2027 | L186: 04/27 | M186: 6
A187: Reposição-PRD00298 | B187: 92 | C187: 12/04/2025 | D187: Reposição | E187: 355 | F187: PRD00298 | G187: CR ALISANTE SODIO OSMIUM 1KG | H187: OSMIIUM | I187: 92 | J187: 0411240001 | K187: 30/11/2027 | L187: 11/27 | M187: 100
A188: Reposição-PRD00009 | B188: 91 | C188: 12/04/2025 | D188: Reposição | E188: 109 | F188: PRD00009 | G188: MASC COND DAYBYDAY ABAC 500G | H188: DAYBYDAY | I188: 91 | J188: 2410240014 | K188: 31/10/2027 | L188: 10/27 | M188: 285
A189: Reposição-PRD00284 | B189: 90 | C189: 12/04/2025 | D189: Reposição | E189: 341 | F189: PRD00284 | G189: REGEN INT 4X1 ET 15ML | H189: ELEMENTOS DA TERRA | I189: 90 | J189: 2606240020 | K189: 31/07/2027 | L189: 07/27 | M189: 42
A190: Reposição-PRD00009 | B190: 89 | C190: 12/04/2025 | D190: Reposição | E190: 109 | F190: PRD00009 | G190: MASC COND DAYBYDAY ABAC 500G | H190: DAYBYDAY | I190: 89 | J190: 2511240009 | K190: 30/11/2027 | L190: 11/27 | M190: 261
A191: Reposição-PRD00186 | B191: 88 | C191: 12/04/2025 | D191: Reposição | E191: 284 | F191: PRD00186 | G191: SH DEEP COLD MONOI PR 1L | H191: MONOI | I191: 88 | J191: 0404240007 | K191: 30/04/2027 | L191: 04/27 | M191: 6
A192: Reposição-PRD00184 | B192: 87 | C192: 12/04/2025 | D192: Reposição | E192: 282 | F192: PRD00184 | G192: REDUTOR VOLUME MONOI PR 1L | H192: MONOI | I192: 87 | J192: 3001250018 | K192: 31/01/2028 | L192: 01/28 | M192: 60
A193: Reposição-PRD00188 | B193: 86 | C193: 12/04/2025 | D193: Reposição | E193: 286 | F193: PRD00188 | G193: MONOI TAHITI PR 60ML | H193: MONOI | I193: 86 | J193: 005/22 | K193: 31/01/2027 | L193: 01/27 | M193: 371
A194: Reposição-PRD00161 | B194: 85 | C194: 12/04/2025 | D194: Reposição | E194: 259 | F194: PRD00161 | G194: COND ALECRIM E MENTA M 5L | H194: MAISON | I194: 85 | J194: 1604240018 | K194: 30/04/2027 | L194: 04/27 | M194: 25
A195: Reposição-PRD00187 | B195: 84 | C195: 12/04/2025 | D195: Reposição | E195: 285 | F195: PRD00187 | G195: SH DEEP COLD MONOI PR 500ML | H195: MONOI | I195: 84 | J195: 0108240001 | K195: 31/08/2027 | L195: 08/27 | M195: 129
A196: Reposição-PRD00186 | B196: 83 | C196: 12/04/2025 | D196: Reposição | E196: 284 | F196: PRD00186 | G196: SH DEEP COLD MONOI PR 1L | H196: MONOI | I196: 83 | J196: 0108240004 | K196: 31/08/2027 | L196: 08/27 | M196: 40
A197: Reposição-PRD00185 | B197: 82 | C197: 12/04/2025 | D197: Reposição | E197: 283 | F197: PRD00185 | G197: REDUTOR VOLUME MONOI PR 500ML | H197: MONOI | I197: 82 | J197: 2911240015 | K197: 30/11/2027 | L197: 11/27 | M197: 431
A198: Reposição-PRD00195 | B198: 81 | C198: 12/04/2025 | D198: Reposição | E198: 293 | F198: PRD00195 | G198: REGENER SHOCK3 P REP 1L | H198: SHOCK3 | I198: 81 | J198: 0612240005 | K198: 31/12/2027 | L198: 12/27 | M198: 51
A199: Reposição-PRD00199 | B199: 80 | C199: 12/04/2025 | D199: Reposição | E199: 297 | F199: PRD00199 | G199: SH SHOCK3 PRO REPAIR 1L | H199: SHOCK3 | I199: 80 | J199: 0403240003 | K199: 31/03/2027 | L199: 03/27 | M199: 7
A200: Reposição-PRD00199 | B200: 79 | C200: 12/04/2025 | D200: Reposição | E200: 297 | F200: PRD00199 | G200: SH SHOCK3 PRO REPAIR 1L | H200: SHOCK3 | I200: 79 | J200: 1012240008 | K200: 31/12/2027 | L200: 12/27 | M200: 50
... 78 more rows
